Workbook

Sheet Lump Sum (hidden)
B1: Lump Sum Investments - Effecttive Annual Cost calculator
B12: The Effective Annual Cost (EAC) is a measure which has been introduced to allow you to compare the cost you incur when you invest in different financial products. It is expressed as a percentage of your investment amount. The EAC is made up of four charges, which are added together, as shown in the table below. Some of the charges may vary, depending on your investment period. The EAC calculation assumes that an investor terminates his or her investment in the financial product at the end of the relevant periods shown in the table.
B13: All Fees, Costs and EAC components shown Inclusive of VAT. Please complete grey blocks.
S16: 1
B17: Lump sum investments
K18: 0.25
K19: 0.25
K20: 0.25
B27: All Fees, Costs and EAC components shown Inclusive of VAT
B29: Investment amount (Lump sum)
B31: Investment Fund(s) - Please Insert | C31: Allocation | D31: TER + TC
B32: Click on cell to select fund from the drop down list | C32: 1 | D32: =VLOOKUP(B32,TERs!$F:$H,2,FALSE)/100 -> 0
B33: Click on cell to select fund from the drop down list | C33: 0 | D33: =VLOOKUP(B33,TERs!$F:$H,2,FALSE)/100 -> 0
B34: Click on cell to select fund from the drop down list | C34: 0 | D34: =VLOOKUP(B34,TERs!$F:$H,2,FALSE)/100 -> 0
B35: If less than 6 months track record, then select from below | D35: Service Fee (Incl VAT)
B36: Click on cell to select fund from the drop down list | C36: 0 | D36: =VLOOKUP(B36,Fundlist!$A:$B,2,FALSE) -> 0
B37: Click on cell to select fund from the drop down list | C37: 0 | D37: =VLOOKUP(B37,Fundlist!$A:$B,2,FALSE) -> 0
B38: Weighted Average TER | C38: =SUM(C32:C37) -> 1 | D38: =SUMPRODUCT(D32:D37,$C$32:$C$37) -> 0
B39: If not 100% will reflect "ERROR" | C39: =IF(C38=100%," ","ERROR") -> 
B42: Initial Fees | C42: Percentage
B43: Fund management | C43: =#REF! -> 
B44: Administration | C44: 0
B45: Financial advice | C45: 0
B46: Total initial fees | C46: =C44+C45 -> 0
B48: Annual Fees | C48: Percentage
B49: Fund management fee | C49: =D38 -> 0 | D49: =($C$29-$D$45)*C49 -> 0
B50: less Rebate | C50: =-F38 -> 0 | D50: =($C$29-$D$45)*C50 -> 0
B51: Net Fund Management fee | C51: =C50+C49 -> 0 | D51: =D49+D50 -> 0
B52: Administration | C52: 0
B53: Financial advice | C53: 0
B54: Total ongoing fees | C54: =C52+C53 -> 0
B58: EAC - including VAT | C58: 1 Year | D58: 3 Years | E58: 5 Years | F58: 10 Years
B59: Investment Management Charges | C59: =D38 -> 0 | D59: =D38 -> 0 | E59: =D38 -> 0 | F59: =D38 -> 0
B60: Advice Charges | C60: =C45+C53 -> 0 | D60: =C53+C45/3 -> 0 | E60: =C53+C45/5 -> 0 | F60: =C53+C45/20 -> 0
B61: Administration Charges | C61: =C52+C44 -> 0 | D61: =C52+C44/3 -> 0 | E61: =C52+C44/5 -> 0 | F61: =C52+C44/20 -> 0
B62: Other Charges | C62: 0 | D62: 0 | E62: 0 | F62: 0
B63: Effective Annual Cost | C63: =SUM(C59:C62) -> 0 | D63: =SUM(D59:D62) -> 0 | E63: =SUM(E59:E62) -> 0 | F63: =SUM(F59:F62) -> 0
B65: Notes on calculation:
B66: Assume that on-going costs/fees are levied monthly in arrears for this exercise. In practise fees/costs will be applied in the calculation as they are actually levied.
B67: Assume recurring investments are made monthly in arrears
B68: The impact of each component must be calculated independently from other components.
B69: The total EAC is the sum of the individual components' contribution to EAC.
B71: EAC Notes:
B72: 1. The Investment management charge is based upon the portfolio’s most recent published historical total expense ratio which includes the total expense ratios of all the underlying holdings, including transaction costs. It is calculated and published on a quarterly basis. For the purpose of this document it is assumed that the underlying holdings of the portfolio and their related charges will remain unchanged in the future and therefore the same percentage should be captured for all periods.
B73: 2. This percentage should include initial charges, if any, levied during a specific year/period
B74: a. Where the client is making use of a financial advisor, the financial advisor is to complete this table in the presence of the client at the time of the client signing the application form. The Investment Management charge is the published total expense ratio (TER), including transaction costs charge as contained in the latest published Minimum Disclosure Document (MDD).
B75: b. Where the client is not making use of a financial advisor, then the client must insert the Investment Management charge as the published total expense ratio (TER), including transaction costs charge as contained in the latest published Minimum Disclosure Document (MDD). Please insert 0.00% as advice fee.
B76: 3. All charges includes value-added-tax (VAT) at the prevailing rate, where applicable.

Sheet Recurring
B1: Recurring Investments - Effective Annual Cost Calculator
B4: · Recurring investment requires calculation using the IRR methodology
B5: 1. Build up a cash flow schedule of the investment, including payment of all fees and use this to determine the final investment value at each disclosure period - Recurring Cash Flows (All Fees)
B6: 2. Build up a cash flow schedule of the investment, excluding the Admin fee components - Recurring Cash Flows (Admin)
B7: 3. Build up a cash flow schedule of the investment, excluding the Advice fee components - Recurring Cash Flows (Advice)
B8: 4. Build up a cash flow schedule of the investment, excluding the Fund management fee components - Recurring Cash Flows (Fund)
B9: 5. For each of the tabs in Steps 2,3 and 4 use Goal Seek to determine the reduced growth rate required to match the final investment value to those obtained in Step 1 – (done using the macro Calc_gReduced)
B10: 6. RIY = g – gReduced
B12: The Effective Annual Cost (EAC) is a measure which has been introduced to allow you to compare the charges you incur and their impact on investment returns when you invest in different Financial Products. It is expressed as an annualised percentage. The EAC is made up of four components, which are added together, as shown in the table below. The effect of some of the charges may vary, depending on your investment period. The EAC calculation assumes that an investor terminates his or her investment in the Financial Product at the end of the relevant periods shown in the table.
B14: All Fees, Costs and EAC components shown Inclusive of VAT. Please complete grey blocks.
B17: Recurring - RIY calculation
B19: · Recurring investment requires calculation using the IRR methodology
B20: 1. Build up a cash flow schedule of the investment, including payment of all fees and use this to determine the final investment value at each disclosure period - Recurring Cash Flows (All Fees)
B21: 2. Build up a cash flow schedule of the investment, excluding the Admin fee components - Recurring Cash Flows (Admin)
B22: 3. Build up a cash flow schedule of the investment, excluding the Advice fee components - Recurring Cash Flows (Advice)
B23: 4. Build up a cash flow schedule of the investment, excluding the Fund management fee components - Recurring Cash Flows (Fund)
B24: 5. For each of the tabs in Steps 2,3 and 4 use Goal Seek to determine the reduced growth rate required to match the final investment value to those obtained in Step 1 – (done using the macro Calc_gReduced)
B25: 6. RIY = g – gReduced
B27: All Fees, Costs and EAC components shown Inclusive of VAT
B29: Investment amount (Recurring)
B31: Investment Fund(s) please insert | C31: Allocation | D31: TER + TC (Incl VAT)
B32: Click on cell to select fund from the drop down list | C32: 1 | D32: =VLOOKUP(B32,TERs!$F:$H,2,FALSE)/100 -> 0
B33: Click on cell to select fund from the drop down list | C33: 0 | D33: =VLOOKUP(B33,TERs!$F:$H,2,FALSE)/100 -> 0
B34: Click on cell to select fund from the drop down list | C34: 0 | D34: =VLOOKUP(B34,TERs!$F:$H,2,FALSE)/100 -> 0
B35: Click on cell to select fund from the drop down list | C35: 0 | D35: =VLOOKUP(B35,TERs!$F:$H,2,FALSE)/100 -> 0
B36: Click on cell to select fund from the drop down list | C36: 0 | D36: =VLOOKUP(B36,TERs!$F:$H,2,FALSE)/100 -> 0
B37: Click on cell to select fund from the drop down list | C37: 0 | D37: =VLOOKUP(B37,TERs!$F:$H,2,FALSE)/100 -> 0
B38: Click on cell to select fund from the drop down list | C38: 0 | D38: =VLOOKUP(B38,TERs!$F:$H,2,FALSE)/100 -> 0
B39: If less than 6 months track record, then select from below | D39: Service Fee (Incl VAT)
B40: Click on cell to select fund from the drop down list | C40: 0 | D40: =VLOOKUP(B40,Fundlist!$A:$B,2,FALSE) -> 0
B41: Click on cell to select fund from the drop down list | C41: 0 | D41: =VLOOKUP(B41,Fundlist!$A:$B,2,FALSE) -> 0
B42: Click on cell to select fund from the drop down list | C42: 0 | D42: =VLOOKUP(B42,Fundlist!$A:$B,2,FALSE) -> 0
B43: Weighted Average TER | C43: =SUM(C32:C42) -> 1 | D43: =SUMPRODUCT(D32:D42,$C$32:$C$42) -> 0
B45: If not 100% will reflect "ERROR" | C45: =IF(C43=100%," ","ERROR") -> 
B47: Initial Fees (Incl VAT) | C47: Percentage
B48: Fund management | C48: =#REF! -> 
B49: Administration | C49: 0
B50: Financial advice | C50: 0
B51: Total Initial Fees | C51: =C49+C50 -> 0
B53: Annual Fees (Incl VAT) | C53: Percentage
B54: Fund management fee | C54: =($C$29-$D$50)*#REF! -> 
B55: less Rebate | C55: =($C$29-$D$50)*#REF! -> 
B56: Net Fund Management fee | C56: =C54+C55 -> 
B57: Administration | C57: 0
I58: On the first | J58: 0 | K58: 0
B59: Financial advice | C59: 0
B60: Total Ongoing Fees | C60: =C58+C59 -> 0
I61: Then | K61: 0
B62: Growth | C62: 0.06
B66: EAC - including VAT
B67: EAC - including VAT | C67: 1 Year | D67: 3 Years | E67: 5 Years | F67: 10 Years
B68: Investment Management Charges1 | C68: ='Recurring Cash Flows (Fund)'!X4 -> 0 | D68: ='Recurring Cash Flows (Fund)'!X5 -> 0 | E68: ='Recurring Cash Flows (Fund)'!X6 -> 0 | F68: ='Recurring Cash Flows (Fund)'!X7 -> 0
B69: Advice Charges2 | C69: ='Recurring Cash Flows (Advice)'!X4 -> 0 | D69: ='Recurring Cash Flows (Advice)'!X5 -> 0 | E69: ='Recurring Cash Flows (Advice)'!X6 -> 0 | F69: ='Recurring Cash Flows (Advice)'!X7 -> 0
B70: Administration Charges | C70: ='Recurring Cash Flows (Admin)'!X4 -> 0 | D70: ='Recurring Cash Flows (Admin)'!X5 -> 0 | E70: ='Recurring Cash Flows (Admin)'!X6 -> 0 | F70: ='Recurring Cash Flows (Admin)'!X7 -> 0
B71: Other Charges | C71: 0 | D71: 0 | E71: 0 | F71: 0
B72: Effective Annual Cost | C72: =SUM(C68:C71) -> 0 | D72: =SUM(D68:D71) -> 0 | E72: =SUM(E68:E71) -> 0 | F72: =SUM(F68:F71) -> 0
B74: Notes on calculation:
B75: Assume that on-going costs/fees are levied monthly in arrears for this exercise. In practise fees/costs will be applied in the calculation as they are actually levied.
B76: Assume recurring investments are made monthly in arrears
B77: The impact of each component must be calculated independently from other components.
B78: The total EAC is the sum of the individual components' contribution to EAC.
B80: EAC Notes:
B81: 1. The Investment management charge is based upon the portfolio’s most recent published historical total expense ratio which includes the total expense ratios of all the underlying holdings, including transaction costs. It is calculated and published on a quarterly basis. For the purpose of this document it is assumed that the underlying holdings of the portfolio and their related charges will remain unchanged in the future and therefore the same percentage should be captured for all periods.
B82: 2. This percentage should include initial charges, if any, levied during a specific year/period
B83: 3. All charges includes value-added-tax (VAT) at the prevailing rate, where applicable.
B84: 4. Please note that retail investors do not have access to the institutional classes. Retail classes are indicated on the relevant portfolio's MDD and is available on www.bcis.co.za.
B86: Disclaimer
B87: Boutique Collective Investments (RF) (Pty) Ltd (“BCI”) is a registered Manager of the Boutique Collective Investments Scheme, approved in terms of the Collective Investments Schemes Control Act, No 45 of 2002 and is a full member of the Association for Savings and Investment SA. Collective Investment Schemes in securities are generally medium to long term investments. The value of participatory interests may go up or down and past performance is not necessarily an indication of future performance. The Manager does not guarantee the capital or the return of a portfolio. Collective Investments are traded at ruling prices and can engage in borrowing and scrip lending. A schedule of fees, charges and maximum commissions is available on request. BCI reserves the right to close and reopen certain portfolios from time to time in order to manage them more efficiently. Additional information, including application forms, annual or quarterly reports can be obtained from BCI, free of charge. Although reasonable steps have been taken to ensure the validity and accuracy of the information in this document, BCI does not accept any responsibility for any claim, damages, loss or expense, however it arises, out of or in connection with the information in this document, whether by a client, investor or intermediary. This document should not be seen as an offer to purchase any specific product and is not to be construed as advice or guidance in any form whatsoever. Investors are encouraged to obtain independent professional investment and taxation advice before investing with or in any of BCI/the Manager’s products.

Sheet TERs (hidden)
A1: TER | B1: Total Expense Ratio | C1: BCI | D1: Boutique Collective Investments | F1: Click on cell to select fund from the drop down list | G1: 0 | H1: Total Expense Ratio (TER) % | J1: Performance Fee % | L1: Transaction Costs (TC) %
A2: TER | B2: Total Expense Ratio | C2: BCI | D2: Boutique Collective Investments | E2: MNTR | F2: 36ONE BCI Equity Fund Class A | G2: 2.464804865 | H2: 1.643157408 | I2: 31/12/2025 | J2: 0.4087099333 | K2: 31/12/2025 | L2: 0.8216474567
A3: TER | B3: Total Expense Ratio | C3: BCI | D3: Boutique Collective Investments | E3: MTRB | F3: 36ONE BCI Equity Fund Class B | G3: 0.9061383784 | H3: 0.08449121178 | I3: 31/12/2025 | J3: 0 | K3: 31/12/2025 | L3: 0.8216471667
A4: TER | B4: Total Expense Ratio | C4: BCI | D4: Boutique Collective Investments | E4: TSECC | F4: 36ONE BCI Equity Fund Class C2 | G4: 2.154278048 | H4: 1.332630718 | I4: 31/12/2025 | J4: 0.4432689667 | K4: 31/12/2025 | L4: 0.82164733
A5: TER | B5: Total Expense Ratio | C5: BCI | D5: Boutique Collective Investments | E5: TSMCD | F5: 36ONE BCI Equity Fund Class D | G5: 2.048122145 | H5: 1.226474828 | I5: 31/12/2025 | J5: 0.45208698 | K5: 31/12/2025 | L5: 0.8216473167
A6: TER | B6: Total Expense Ratio | C6: BCI | D6: Boutique Collective Investments | E6: BCIEQE | F6: 36ONE BCI Equity Fund Class E | G6: 1.943991202 | H6: 1.143585402 | I6: 31/12/2025 | J6: 0.37654358 | K6: 31/12/2025 | L6: 0.8004058
A7: TER | B7: Total Expense Ratio | C7: BCI | D7: Boutique Collective Investments | E7: ONEEFF | F7: 36ONE BCI Equity Fund Class F | G7: 1.941022302 | H7: 1.119375052 | I7: 31/12/2025 | J7: 0 | K7: 31/12/2025 | L7: 0.82164725
A8: TER | B8: Total Expense Ratio | C8: BCI | D8: Boutique Collective Investments | E8: 36BEFG | F8: 36ONE BCI Equity Fund Class G | G8: 1.480997582 | H8: 0.6593502618 | I8: 31/12/2025 | J8: 0 | K8: 31/12/2025 | L8: 0.82164732
A9: TER | B9: Total Expense Ratio | C9: BCI | D9: Boutique Collective Investments | E9: 36ONFH | F9: 36ONE BCI Equity Fund Class H | G9: 2.628371279 | H9: 1.811709702 | I9: 31/12/2025 | J9: 0 | K9: 31/12/2025 | L9: 0.8166615776
A10: TER | B10: Total Expense Ratio | C10: BCI | D10: Boutique Collective Investments | E10: MNFO | F10: 36ONE BCI Flexible Opportunity Fund Class A | G10: 2.234621817 | H10: 1.879910924 | I10: 31/12/2025 | J10: 0.6075032109 | K10: 31/12/2025 | L10: 0.3547108933
A11: TER | B11: Total Expense Ratio | C11: BCI | D11: Boutique Collective Investments | E11: TSFA | F11: 36ONE BCI Flexible Opportunity Fund Class A1 | G11: 2.145296353 | H11: 1.790585533 | I11: 31/12/2025 | J11: 0.5115790102 | K11: 31/12/2025 | L11: 0.35471082
A12: TER | B12: Total Expense Ratio | C12: BCI | D12: Boutique Collective Investments | E12: MFOB | F12: 36ONE BCI Flexible Opportunity Fund Class B | G12: 0.4220364009 | H12: 0.0673255642 | I12: 31/12/2025 | J12: 4.376785645e-07 | K12: 31/12/2025 | L12: 0.3547108367
A13: TER | B13: Total Expense Ratio | C13: BCI | D13: Boutique Collective Investments | E13: TSFCC | F13: 36ONE BCI Flexible Opportunity Fund Class C | G13: 1.738964446 | H13: 1.384253593 | I13: 31/12/2025 | J13: 0.5686929161 | K13: 31/12/2025 | L13: 0.3547108533
A14: TER | B14: Total Expense Ratio | C14: BCI | D14: Boutique Collective Investments | E14: TBOC1 | F14: 36ONE BCI Flexible Opportunity Fund Class C1 | G14: 2.00250882 | H14: 1.647797967 | I14: 31/12/2025 | J14: 0.7188459334 | K14: 31/12/2025 | L14: 0.3547108533
A15: TER | B15: Total Expense Ratio | C15: BCI | D15: Boutique Collective Investments | E15: TSFCD | F15: 36ONE BCI Flexible Opportunity Fund Class C2 | G15: 1.848304066 | H15: 1.49359322 | I15: 31/12/2025 | J15: 0.5647257697 | K15: 31/12/2025 | L15: 0.3547108467
A16: TER | B16: Total Expense Ratio | C16: BCI | D16: Boutique Collective Investments | E16: TMOFD | F16: 36ONE BCI Flexible Opportunity Fund Class D | G16: 1.341927446 | H16: 0.9872166291 | I16: 31/12/2025 | J16: 0 | K16: 31/12/2025 | L16: 0.3547108167
A17: TER | B17: Total Expense Ratio | C17: BCI | D17: Boutique Collective Investments | E17: MFOD2 | F17: 36ONE BCI Flexible Opportunity Fund Class D2 | G17: 1.86365779 | H17: 1.508946953 | I17: 31/12/2025 | J17: 0.6932764201 | K17: 31/12/2025 | L17: 0.3547108367
A18: TER | B18: Total Expense Ratio | C18: BCI | D18: Boutique Collective Investments | E18: BFLXD3 | F18: 36ONE BCI Flexible Opportunity Fund Class D3 | G18: 1.688577894 | H18: 1.333867527 | I18: 31/12/2025 | J18: 0.5283143807 | K18: 31/12/2025 | L18: 0.3547103667
A19: TER | B19: Total Expense Ratio | C19: BCI | D19: Boutique Collective Investments | E19: 36LXFE | F19: 36ONE BCI Flexible Opportunity Fund Class E | G19: 1.226918599 | H19: 0.8722077655 | I19: 31/12/2025 | J19: 0 | K19: 31/12/2025 | L19: 0.3547108333
A20: TER | B20: Total Expense Ratio | C20: BCI | D20: Boutique Collective Investments | E20: 360OFF | F20: 36ONE BCI Flexible Opportunity Fund Class F | G20: 1.401100787 | H20: 1.04638995 | I20: 31/12/2025 | J20: 0 | K20: 31/12/2025 | L20: 0.3547108367
A21: TER | B21: Total Expense Ratio | C21: BCI | D21: Boutique Collective Investments | E21: 36FNDA | F21: 36ONE BCI Global Equity Feeder Fund Class A | G21: 2.278037563 | H21: 2.27803757 | I21: 31/12/2025 | J21: 0.23330217 | K21: 31/12/2025 | L21: -6.666666667e-09
A22: TER | B22: Total Expense Ratio | C22: BCI | D22: Boutique Collective Investments | E22: BCIGFB | F22: 36ONE BCI Global Equity Feeder Fund Class B | G22: 1.13755321 | H22: 1.137553223 | I22: 31/12/2025 | J22: 0 | K22: 31/12/2025 | L22: -1.333333333e-08
A23: TER | B23: Total Expense Ratio | C23: BCI | D23: Boutique Collective Investments | E23: ONEGFC | F23: 36ONE BCI Global Equity Feeder Fund Class C | G23: 1.236890354 | H23: 1.236890364 | I23: 31/12/2025 | J23: 0 | K23: 31/12/2025 | L23: -1e-08
A24: TER | B24: Total Expense Ratio | C24: BCI | D24: Boutique Collective Investments | E24: BSEB3 | F24: 36ONE BCI SA Equity Fund Class B3 | G24: 1.756838296 | H24: 1.074434379 | I24: 31/12/2025 | J24: 0.5361337022 | K24: 31/12/2025 | L24: 0.6824039167
A25: TER | B25: Total Expense Ratio | C25: BCI | D25: Boutique Collective Investments | E25: BCSEC | F25: 36ONE BCI SA Equity Fund Class C | G25: 2.308336497 | H25: 1.62593244 | I25: 31/12/2025 | J25: 0.6277037171 | K25: 31/12/2025 | L25: 0.6824040567
A26: TER | B26: Total Expense Ratio | C26: BCI | D26: Boutique Collective Investments | E26: BSEF1 | F26: 36ONE BCI SA Equity Fund Class C1 | G26: 2.305271881 | H26: 1.622867887 | I26: 31/12/2025 | J26: 0.6280046806 | K26: 31/12/2025 | L26: 0.6824039933
A27: TER | B27: Total Expense Ratio | C27: BCI | D27: Boutique Collective Investments | E27: BCSE | F27: 36ONE BCI SA Equity Fund Class D | G27: 2.003060351 | H27: 1.320656141 | I27: 31/12/2025 | J27: 0.7273692239 | K27: 31/12/2025 | L27: 0.68240421
A28: TER | B28: Total Expense Ratio | C28: BCI | D28: Boutique Collective Investments | E28: BSEFE | F28: 36ONE BCI SA Equity Fund Class E | G28: 1.385741393 | H28: 0.70333735 | I28: 31/12/2025 | J28: 0 | K28: 31/12/2025 | L28: 0.6824040433
A29: TER | B29: Total Expense Ratio | C29: BCI | D29: Boutique Collective Investments | E29: BSEFF | F29: 36ONE BCI SA Equity Fund Class F | G29: 1.563323847 | H29: 0.88091981 | I29: 31/12/2025 | J29: 0 | K29: 31/12/2025 | L29: 0.6824040367
A30: TER | B30: Total Expense Ratio | C30: BCI | D30: Boutique Collective Investments | E30: BSEFG | F30: 36ONE BCI SA Equity Fund Class G | G30: 2.075790807 | H30: 1.393386777 | I30: 31/12/2025 | J30: 0 | K30: 31/12/2025 | L30: 0.68240403
A31: TER | B31: Total Expense Ratio | C31: BCI | D31: Boutique Collective Investments | E31: OCSEFH | F31: 36ONE BCI SA Equity Fund Class H | G31: 2.165066852 | H31: 1.482662882 | I31: 31/12/2025 | J31: 0.7761469384 | K31: 31/12/2025 | L31: 0.68240397
A32: TER | B32: Total Expense Ratio | C32: BCI | D32: Boutique Collective Investments | E32: 360NEI | F32: 36ONE BCI SA Equity Fund Class I | G32: 0.70127398 | H32: 0.01886997667 | I32: 31/12/2025 | J32: 0 | K32: 31/12/2025 | L32: 0.6824040033
A33: TER | B33: Total Expense Ratio | C33: BCI | D33: Boutique Collective Investments | E33: ONEEEJ | F33: 36ONE BCI SA Equity Fund Class J | G33: 0.92204794 | H33: 0.2396443033 | I33: 31/12/2025 | J33: 0.22 | K33: 31/12/2025 | L33: 0.6824036367
A34: TER | B34: Total Expense Ratio | C34: BCI | D34: Boutique Collective Investments | E34: ONBEFK | F34: 36ONE BCI SA Equity Fund Class K | G34: 1.831779917 | H34: 1.123662617 | I34: 31/12/2025 | J34: 0.6017998844 | K34: 31/12/2025 | L34: 0.7081173004
A35: TER | B35: Total Expense Ratio | C35: BCI | D35: Boutique Collective Investments | E35: 361EFL | F35: 36ONE BCI SA Equity Fund Class L | G35: 1.794993855 | H35: 1.114461552 | I35: 31/12/2025 | J35: 0.5859839614 | K35: 31/12/2025 | L35: 0.6805323033
A36: TER | B36: Total Expense Ratio | C36: BCI | D36: Boutique Collective Investments | E36: CISETY | F36: 36ONE BCI SA Equity Fund Class M | G36: 1.491418171 | H36: 0.67 | I36: 31/12/2025 | J36: 0.1081056896 | K36: 31/12/2025 | L36: 0.8214181711
A37: TER | B37: Total Expense Ratio | C37: BCI | D37: Boutique Collective Investments | E37: 36EETY | F37: 36ONE BCI SA Equity Fund Class N | G37: 1.436386701 | H37: 0.7715102766 | I37: 31/12/2025 | J37: 0.1793252639 | K37: 31/12/2025 | L37: 0.6648764241
A38: TER | B38: Total Expense Ratio | C38: BCI | D38: Boutique Collective Investments | E38: 36BSEF | F38: 36ONE BCI SA Equity Fund O | G38: 1.295819796 | H38: 0.4773704493 | I38: 31/12/2025 | J38: 0.00133928741 | K38: 31/12/2025 | L38: 0.8184493471
A39: TER | B39: Total Expense Ratio | C39: BCI | D39: Boutique Collective Investments | E39: SBEEFA | F39: 3B BCI Blended Equity Fund Class A | G39: 1.706530263 | H39: 1.09358783 | I39: 31/12/2025 | J39: 0 | K39: 31/12/2025 | L39: 0.6129424333
A40: TER | B40: Total Expense Ratio | C40: BCI | D40: Boutique Collective Investments | E40: SBCEFB | F40: 3B BCI Blended Equity Fund Class B | G40: 1.64969939 | H40: 1.036756797 | I40: 31/12/2025 | J40: 0 | K40: 31/12/2025 | L40: 0.6129425933
A41: TER | B41: Total Expense Ratio | C41: BCI | D41: Boutique Collective Investments | E41: SBBSFC | F41: 3B BCI Blended Equity Fund Class C | G41: 1.349375286 | H41: 0.8486424451 | I41: 31/12/2025 | J41: 0 | K41: 31/12/2025 | L41: 0.5007328413
A42: TER | B42: Total Expense Ratio | C42: BCI | D42: Boutique Collective Investments | E42: MNIP | F42: 3B BCI Cautious Managed Fund Class A | G42: 2.535359307 | H42: 2.44277037 | I42: 31/12/2025 | J42: 0.2926659633 | K42: 31/12/2025 | L42: 0.09258893667
A43: TER | B43: Total Expense Ratio | C43: BCI | D43: Boutique Collective Investments | E43: MNEF | F43: 3B BCI Equity Fund Class A | G43: 1.911393133 | H43: 1.798746563 | I43: 31/12/2025 | J43: 0.3235177867 | K43: 31/12/2025 | L43: 0.11264657
A44: TER | B44: Total Expense Ratio | C44: BCI | D44: Boutique Collective Investments | E44: BCEFUB | F44: 3B BCI Equity Fund Class B | G44: 1.516149483 | H44: 1.403502913 | I44: 31/12/2025 | J44: 0.21576244 | K44: 31/12/2025 | L44: 0.11264657
A45: TER | B45: Total Expense Ratio | C45: BCI | D45: Boutique Collective Investments | E45: 3BBCFB | F45: 3B BCI Flexible Balanced Fund Class B | G45: 0.7855702404 | H45: 0.7140624821 | I45: 31/12/2025 | J45: 0 | K45: 31/12/2025 | L45: 0.07150775833
A46: TER | B46: Total Expense Ratio | C46: BCI | D46: Boutique Collective Investments | E46: 3BBDFB | F46: 3B BCI Flexible Defensive Fund Class B | G46: 0.9146447633 | H46: 0.8636781824 | I46: 31/12/2025 | J46: 0 | K46: 31/12/2025 | L46: 0.05096658085
A47: TER | B47: Total Expense Ratio | C47: BCI | D47: Boutique Collective Investments | E47: MNFF | F47: 3B BCI Flexible Managed Fund Class A | G47: 2.026954597 | H47: 1.931922687 | I47: 31/12/2025 | J47: 0.1895884933 | K47: 31/12/2025 | L47: 0.09503191
A48: TER | B48: Total Expense Ratio | C48: BCI | D48: Boutique Collective Investments | E48: BCIMFB | F48: 3B BCI Flexible Managed Fund Class B | G48: 1.70669189 | H48: 1.61165998 | I48: 31/12/2025 | J48: 0.1569287833 | K48: 31/12/2025 | L48: 0.09503191
A49: TER | B49: Total Expense Ratio | C49: BCI | D49: Boutique Collective Investments | E49: BCIIFA | F49: 3B BCI Income Fund Class A | G49: 0.82919869 | H49: 0.8036494933 | I49: 31/12/2025 | J49: 0 | K49: 31/12/2025 | L49: 0.02554919667
A50: TER | B50: Total Expense Ratio | C50: BCI | D50: Boutique Collective Investments | E50: BCIIFB | F50: 3B BCI Income Fund Class B | G50: 0.6970309 | H50: 0.6714817067 | I50: 31/12/2025 | J50: 0 | K50: 31/12/2025 | L50: 0.02554919333
A51: TER | B51: Total Expense Ratio | C51: BCI | D51: Boutique Collective Investments | E51: MPRU | F51: 3B BCI Prudential Fund of Funds Class 3B1 | G51: 2.232884733 | H51: 2.055168613 | I51: 31/12/2025 | J51: 0 | K51: 31/12/2025 | L51: 0.17771612
A52: TER | B52: Total Expense Ratio | C52: BCI | D52: Boutique Collective Investments | E52: MPRD | F52: 3B BCI Prudential Fund of Funds Class 3B2 | G52: 2.623604523 | H52: 2.445888403 | I52: 31/12/2025 | J52: 0 | K52: 31/12/2025 | L52: 0.17771612
A53: TER | B53: Total Expense Ratio | C53: BCI | D53: Boutique Collective Investments | E53: MSTA | F53: 3B BCI Stable Fund of Funds Class 3B1 | G53: 1.79904252 | H53: 1.749610827 | I53: 31/12/2025 | J53: 0 | K53: 31/12/2025 | L53: 0.04943169333
A54: TER | B54: Total Expense Ratio | C54: BCI | D54: Boutique Collective Investments | E54: MSTB | F54: 3B BCI Stable Fund of Funds Class 3B2 | G54: 2.124993073 | H54: 2.036983393 | I54: 31/12/2025 | J54: 0 | K54: 31/12/2025 | L54: 0.08800968
A55: TER | B55: Total Expense Ratio | C55: BCI | D55: Boutique Collective Investments | E55: MW3B1 | F55: 3B BCI Worldwide Flexible Fund of Funds Class 3B1 | G55: 2.245871117 | H55: 2.09132902 | I55: 31/12/2025 | J55: 0 | K55: 31/12/2025 | L55: 0.1545420967
A56: TER | B56: Total Expense Ratio | C56: BCI | D56: Boutique Collective Investments | E56: BWGFA | F56: 3B BCI Worldwide Flexible Growth Fund Class A | G56: 1.705646807 | H56: 1.523556195 | I56: 31/12/2025 | J56: 0 | K56: 31/12/2025 | L56: 0.1820906128
A57: TER | B57: Total Expense Ratio | C57: BCI | D57: Boutique Collective Investments | E57: IBWFFA | F57: 3B BCI Worldwide Growth Fund of Funds Class A | G57: 1.367498577 | H57: 1.064901623 | I57: 31/12/2025 | J57: 0 | K57: 31/12/2025 | L57: 0.3025969533
A58: TER | B58: Total Expense Ratio | C58: BCI | D58: Boutique Collective Investments | E58: IBWFB | F58: 3B BCI Worldwide Growth Fund of Funds Class B | G58: 1.137556307 | H58: 0.8349593567 | I58: 31/12/2025 | J58: 0 | K58: 31/12/2025 | L58: 0.30259695
A59: TER | B59: Total Expense Ratio | C59: BCI | D59: Boutique Collective Investments | E59: MDAF | F59: 4D BCI Aggressive Flexible Fund of Funds Class A | G59: 2.576070607 | H59: 2.412892077 | I59: 31/12/2025 | J59: 0 | K59: 31/12/2025 | L59: 0.16317853
A60: TER | B60: Total Expense Ratio | C60: BCI | D60: Boutique Collective Investments | E60: 4DAS1 | F60: 4D BCI Aggressive Flexible Fund of Funds Class S | G60: 2.576330887 | H60: 2.413152357 | I60: 31/12/2025 | J60: 0 | K60: 31/12/2025 | L60: 0.16317853
A61: TER | B61: Total Expense Ratio | C61: BCI | D61: Boutique Collective Investments | E61: MDCU | F61: 4D BCI Cautious Fund of Funds Class A | G61: 2.21211737 | H61: 2.099159397 | I61: 31/12/2025 | J61: 0 | K61: 31/12/2025 | L61: 0.1129579733
A62: TER | B62: Total Expense Ratio | C62: BCI | D62: Boutique Collective Investments | E62: 4DCS1 | F62: 4D BCI Cautious Fund of Funds Class S | G62: 2.212145627 | H62: 2.099187653 | I62: 31/12/2025 | J62: 0 | K62: 31/12/2025 | L62: 0.1129579733
A63: TER | B63: Total Expense Ratio | C63: BCI | D63: Boutique Collective Investments | E63: MDFF | F63: 4D BCI Flexible Fund Class A | G63: 1.811107013 | H63: 1.584685573 | I63: 31/12/2025 | J63: 0.2324517333 | K63: 31/12/2025 | L63: 0.22642144
A64: TER | B64: Total Expense Ratio | C64: BCI | D64: Boutique Collective Investments | E64: MDMF | F64: 4D BCI Moderate Fund of Funds Class A | G64: 2.438314847 | H64: 2.237534283 | I64: 31/12/2025 | J64: 0 | K64: 31/12/2025 | L64: 0.2007805633
A65: TER | B65: Total Expense Ratio | C65: BCI | D65: Boutique Collective Investments | E65: 4DMS1 | F65: 4D BCI Moderate Fund of Funds Class S | G65: 2.43823647 | H65: 2.237455907 | I65: 31/12/2025 | J65: 0 | K65: 31/12/2025 | L65: 0.2007805633
A66: TER | B66: Total Expense Ratio | C66: BCI | D66: Boutique Collective Investments | E66: MIPR | F66: Accorn BCI Balanced Fund Class A | G66: 3.284413063 | H66: 2.893132923 | I66: 31/12/2025 | J66: 0.29969997 | K66: 31/12/2025 | L66: 0.39128014
A67: TER | B67: Total Expense Ratio | C67: BCI | D67: Boutique Collective Investments | E67: WMMCB | F67: Accorn BCI Balanced Fund Class B | G67: 2.190947503 | H67: 1.799668187 | I67: 31/12/2025 | J67: 0 | K67: 31/12/2025 | L67: 0.3912793167
A68: TER | B68: Total Expense Ratio | C68: BCI | D68: Boutique Collective Investments | E68: WMMCC | F68: Accorn BCI Balanced Fund Class C | G68: 1.927298817 | H68: 1.536019097 | I68: 31/12/2025 | J68: 0 | K68: 31/12/2025 | L68: 0.39127972
A69: TER | B69: Total Expense Ratio | C69: BCI | D69: Boutique Collective Investments | E69: WBBFD | F69: Accorn BCI Balanced Fund Class D | G69: 2.801955937 | H69: 2.410675917 | I69: 31/12/2025 | J69: 0.3416149 | K69: 31/12/2025 | L69: 0.39128002
A70: TER | B70: Total Expense Ratio | C70: BCI | D70: Boutique Collective Investments | E70: WWBCFE | F70: Accorn BCI Balanced Fund Class E | G70: 3.033121857 | H70: 2.64184202 | I70: 31/12/2025 | J70: 0.31196442 | K70: 31/12/2025 | L70: 0.3912798367
A71: TER | B71: Total Expense Ratio | C71: BCI | D71: Boutique Collective Investments | E71: WWBCFF | F71: Accorn BCI Balanced Fund Class F | G71: 2.793280823 | H71: 2.40200099 | I71: 31/12/2025 | J71: 0.3394739333 | K71: 31/12/2025 | L71: 0.3912798333
A72: TER | B72: Total Expense Ratio | C72: BCI | D72: Boutique Collective Investments | E72: ABBFD2 | F72: Accorn BCI Balanced Fund D2 | G72: 2.174932858 | H72: 1.893570117 | I72: 31/12/2025 | J72: 0 | K72: 31/12/2025 | L72: 0.2813627413
A73: TER | B73: Total Expense Ratio | C73: BCI | D73: Boutique Collective Investments | E73: ABEFD2 | F73: Accorn BCI Equity Fund 7 | G73: 2.258501407 | H73: 1.712160762 | I73: 31/12/2025 | J73: 0 | K73: 31/12/2025 | L73: 0.5463406447
A74: TER | B74: Total Expense Ratio | C74: BCI | D74: Boutique Collective Investments | E74: WMEFA | F74: Accorn BCI Equity Fund Class A | G74: 3.359940263 | H74: 2.618768197 | I74: 31/12/2025 | J74: 0.1837450733 | K74: 31/12/2025 | L74: 0.7411720667
A75: TER | B75: Total Expense Ratio | C75: BCI | D75: Boutique Collective Investments | E75: WMEFB | F75: Accorn BCI Equity Fund Class B | G75: 2.380206012 | H75: 1.639034762 | I75: 31/12/2025 | J75: 0 | K75: 31/12/2025 | L75: 0.74117125
A76: TER | B76: Total Expense Ratio | C76: BCI | D76: Boutique Collective Investments | E76: WMEFC | F76: Accorn BCI Equity Fund Class C | G76: 2.117308983 | H76: 1.376137903 | I76: 31/12/2025 | J76: 0 | K76: 31/12/2025 | L76: 0.74117108
A77: TER | B77: Total Expense Ratio | C77: BCI | D77: Boutique Collective Investments | E77: WEQFD | F77: Accorn BCI Equity Fund Class D | G77: 2.875719563 | H77: 2.134548183 | I77: 31/12/2025 | J77: 0.22312829 | K77: 31/12/2025 | L77: 0.74117138
A78: TER | B78: Total Expense Ratio | C78: BCI | D78: Boutique Collective Investments | E78: WAREFE | F78: Accorn BCI Equity Fund Class E | G78: 3.0369085 | H78: 2.397231465 | I78: 31/12/2025 | J78: 0.195001525 | K78: 31/12/2025 | L78: 0.639677035
A79: TER | B79: Total Expense Ratio | C79: BCI | D79: Boutique Collective Investments | E79: WAREFF | F79: Accorn BCI Equity Fund Class F | G79: 2.859499057 | H79: 2.11832769 | I79: 31/12/2025 | J79: 0.2197012367 | K79: 31/12/2025 | L79: 0.7411713667
A80: TER | B80: Total Expense Ratio | C80: BCI | D80: Boutique Collective Investments | E80: WMICA | F80: Accorn BCI International Fund of Funds Class A | G80: 3.058295473 | H80: 3.058295473 | I80: 31/12/2025 | J80: 0 | K80: 31/12/2025 | L80: 0
A81: TER | B81: Total Expense Ratio | C81: BCI | D81: Boutique Collective Investments | E81: WMICB | F81: Accorn BCI International Fund of Funds Class B | G81: 2.961634483 | H81: 2.961634483 | I81: 31/12/2025 | J81: 0 | K81: 31/12/2025 | L81: 0
A82: TER | B82: Total Expense Ratio | C82: BCI | D82: Boutique Collective Investments | E82: WMICC | F82: Accorn BCI International Fund of Funds Class C | G82: 2.75047968 | H82: 2.75047968 | I82: 31/12/2025 | J82: 0 | K82: 31/12/2025 | L82: 0
A83: TER | B83: Total Expense Ratio | C83: BCI | D83: Boutique Collective Investments | E83: WBIFD | F83: Accorn BCI International Fund of Funds Class D | G83: 3.057821783 | H83: 3.057821783 | I83: 31/12/2025 | J83: 0 | K83: 31/12/2025 | L83: 0
A84: TER | B84: Total Expense Ratio | C84: BCI | D84: Boutique Collective Investments | E84: MADB | F84: ADB BCI Balanced Fund of Funds Class A | G84: 1.802081333 | H84: 1.759051643 | I84: 31/12/2025 | J84: 0 | K84: 31/12/2025 | L84: 0.04302969
A85: TER | B85: Total Expense Ratio | C85: BCI | D85: Boutique Collective Investments | E85: MABB | F85: ADB BCI Balanced Fund of Funds Class A1 | G85: 1.112013253 | H85: 1.068983563 | I85: 31/12/2025 | J85: 0 | K85: 31/12/2025 | L85: 0.04302969
A86: TER | B86: Total Expense Ratio | C86: BCI | D86: Boutique Collective Investments | E86: MADF | F86: ADB BCI Flexible Prudential Fund of Funds Class A | G86: 1.89155367 | H86: 1.832012003 | I86: 31/12/2025 | J86: 0 | K86: 31/12/2025 | L86: 0.05954166667
A87: TER | B87: Total Expense Ratio | C87: BCI | D87: Boutique Collective Investments | E87: MADA | F87: ADB BCI Flexible Prudential Fund of Funds Class A1 | G87: 1.20150317 | H87: 1.141961503 | I87: 31/12/2025 | J87: 0 | K87: 31/12/2025 | L87: 0.05954166667
A88: TER | B88: Total Expense Ratio | C88: BCI | D88: Boutique Collective Investments | E88: ACBEIF | F88: AG Capital BCI Enhanced Income Fund 1 | G88: 0.82 | H88: 0.82 | I88: 31/12/2025 | J88: 0 | K88: 31/12/2025 | L88: 0
A89: TER | B89: Total Expense Ratio | C89: BCI | D89: Boutique Collective Investments | E89: ACBQFF | F89: AG Capital BCI Omega Quant Flexible Fund A | G89: 1.9 | H89: 1.49 | I89: 31/12/2025 | J89: 0.3 | K89: 31/12/2025 | L89: 0.41
A90: TER | B90: Total Expense Ratio | C90: BCI | D90: Boutique Collective Investments | E90: AGFCL1 | F90: AG Capital BCI Value Flexible Fund A | G90: 4.57506869 | H90: 1.77761284 | I90: 31/12/2025 | J90: 0 | K90: 31/12/2025 | L90: 2.79745585
A91: TER | B91: Total Expense Ratio | C91: BCI | D91: Boutique Collective Investments | E91: AWBBFA | F91: All Weather BCI Balanced Fund Class A | G91: 2.706802195 | H91: 2.030380784 | I91: 31/12/2025 | J91: 0 | K91: 31/12/2025 | L91: 0.6764214114
A92: TER | B92: Total Expense Ratio | C92: BCI | D92: Boutique Collective Investments | E92: ABWFA1 | F92: All Weather BCI Balanced Fund Class A1 | G92: 2.214755395 | H92: 1.81421482 | I92: 31/12/2025 | J92: 0 | K92: 31/12/2025 | L92: 0.400540575
A93: TER | B93: Total Expense Ratio | C93: BCI | D93: Boutique Collective Investments | E93: ALLBFB | F93: All Weather BCI Balanced Fund Class B | G93: 1.264756865 | H93: 0.5904174207 | I93: 31/12/2025 | J93: 0 | K93: 31/12/2025 | L93: 0.6743394447
A94: TER | B94: Total Expense Ratio | C94: BCI | D94: Boutique Collective Investments | E94: AWBBFC | F94: All Weather BCI Balanced Fund Class C | G94: 1.665379059 | H94: 0.9896750374 | I94: 31/12/2025 | J94: 0 | K94: 31/12/2025 | L94: 0.6757040214
A95: TER | B95: Total Expense Ratio | C95: BCI | D95: Boutique Collective Investments | E95: ALLEFA | F95: All Weather BCI Best Ideas Equity Fund Class A | G95: 6.240265888 | H95: 1.970518835 | I95: 31/12/2025 | J95: 0.33 | K95: 31/12/2025 | L95: 4.269747053
A96: TER | B96: Total Expense Ratio | C96: BCI | D96: Boutique Collective Investments | E96: ALLEFB | F96: All Weather BCI Best Ideas Equity Fund Class B | G96: 4.487278718 | H96: 0.217531665 | I96: 31/12/2025 | J96: 0 | K96: 31/12/2025 | L96: 4.269747053
A97: TER | B97: Total Expense Ratio | C97: BCI | D97: Boutique Collective Investments | E97: AWBEFC | F97: All Weather BCI Best Ideas Equity Fund Class C | G97: 5.055493216 | H97: 0.7857461638 | I97: 31/12/2025 | J97: 0 | K97: 31/12/2025 | L97: 4.269747053
A98: TER | B98: Total Expense Ratio | C98: BCI | D98: Boutique Collective Investments | E98: AWRBFA | F98: All Weather BCI Bond Fund Class A | G98: 0.7850012767 | H98: 0.7178357249 | I98: 31/12/2025 | J98: 0 | K98: 31/12/2025 | L98: 0.06716555177
A99: TER | B99: Total Expense Ratio | C99: BCI | D99: Boutique Collective Investments | E99: ABBFA2 | F99: All Weather BCI Bond Fund Class A1 | G99: 0.5535 | H99: 0.5535 | I99: 31/12/2025 | J99: 0 | K99: 31/12/2025 | L99: 0
A100: TER | B100: Total Expense Ratio | C100: BCI | D100: Boutique Collective Investments | E100: AWEBFC | F100: All Weather BCI Bond Fund Class C | G100: 0.2089758934 | H100: 0.1418103416 | I100: 31/12/2025 | J100: 0 | K100: 31/12/2025 | L100: 0.06716555177
A101: TER | B101: Total Expense Ratio | C101: BCI | D101: Boutique Collective Investments | E101: AWBBFD | F101: All Weather BCI Bond Fund Class D | G101: 0.3190118062 | H101: 0.3190118062 | I101: 31/12/2025 | J101: 0 | K101: 31/12/2025 | L101: 0
A102: TER | B102: Total Expense Ratio | C102: BCI | D102: Boutique Collective Investments | E102: AWNEA2 | F102: All Weather BCI Equity Fund Class A2 | G102: 0.78339213 | H102: 0.33391852 | I102: 31/12/2025 | J102: 0.01733910333 | K102: 31/12/2025 | L102: 0.44947361
A103: TER | B103: Total Expense Ratio | C103: BCI | D103: Boutique Collective Investments | E103: AWNEB2 | F103: All Weather BCI Equity Fund Class B2 | G103: 1.4802773 | H103: 1.030816163 | I103: 31/12/2025 | J103: 0.02416587667 | K103: 31/12/2025 | L103: 0.4494611367
A104: TER | B104: Total Expense Ratio | C104: BCI | D104: Boutique Collective Investments | E104: AWNEC1 | F104: All Weather BCI Equity Fund Class C1 | G104: 0.4786532567 | H104: 0.02917994667 | I104: 31/12/2025 | J104: 0 | K104: 31/12/2025 | L104: 0.44947331
A105: TER | B105: Total Expense Ratio | C105: BCI | D105: Boutique Collective Investments | E105: AWNED1 | F105: All Weather BCI Equity Fund Class D1 | G105: 0.8967462433 | H105: 0.4472729233 | I105: 31/12/2025 | J105: 0.01570266 | K105: 31/12/2025 | L105: 0.44947332
A106: TER | B106: Total Expense Ratio | C106: BCI | D106: Boutique Collective Investments | E106: AWBCFE | F106: All Weather BCI Equity Fund Class E | G106: 1.075607037 | H106: 0.6261337467 | I106: 31/12/2025 | J106: 0.02228974 | K106: 31/12/2025 | L106: 0.44947329
A107: TER | B107: Total Expense Ratio | C107: BCI | D107: Boutique Collective Investments | E107: AWBEFF | F107: All Weather BCI Equity Fund Class F | G107: 0.9960817933 | H107: 0.5466085067 | I107: 31/12/2025 | J107: 0 | K107: 31/12/2025 | L107: 0.4494732867
A108: TER | B108: Total Expense Ratio | C108: BCI | D108: Boutique Collective Investments | E108: AWBEFG | F108: All Weather BCI Equity Fund Class G | G108: 1.152710414 | H108: 0.7185221428 | I108: 31/12/2025 | J108: 0 | K108: 31/12/2025 | L108: 0.4341882716
A109: TER | B109: Total Expense Ratio | C109: BCI | D109: Boutique Collective Investments | E109: ALLWEH | F109: All Weather BCI Equity Fund Class H | G109: 1.309032592 | H109: 0.8918177714 | I109: 31/12/2025 | J109: 0 | K109: 31/12/2025 | L109: 0.4172148205
A110: TER | B110: Total Expense Ratio | C110: BCI | D110: Boutique Collective Investments | E110: AWRFIA | F110: All Weather BCI Flexible Income Fund Class A | G110: 3.041429868 | H110: 1.847677979 | I110: 31/12/2025 | J110: 0 | K110: 31/12/2025 | L110: 1.193751889
A111: TER | B111: Total Expense Ratio | C111: BCI | D111: Boutique Collective Investments | E111: AWBFIC | F111: All Weather BCI Flexible Income Fund Class C | G111: 2.352732755 | H111: 1.158956009 | I111: 31/12/2025 | J111: 0 | K111: 31/12/2025 | L111: 1.193776745
A112: TER | B112: Total Expense Ratio | C112: BCI | D112: Boutique Collective Investments | E112: ALLIFD | F112: All Weather BCI Flexible Income Fund Class D | G112: 0.61 | H112: 0.45 | I112: 31/12/2025 | J112: 0 | K112: 31/12/2025 | L112: 0.16
A113: TER | B113: Total Expense Ratio | C113: BCI | D113: Boutique Collective Investments | E113: AWBPA1 | F113: All Weather BCI Property Fund Class A1 | G113: 1.359889904 | H113: 1.094835003 | I113: 31/12/2025 | J113: 0 | K113: 31/12/2025 | L113: 0.2650549005
A114: TER | B114: Total Expense Ratio | C114: BCI | D114: Boutique Collective Investments | E114: AWBPFB | F114: All Weather BCI Property Fund Class B | G114: 0.3529885394 | H114: 0.05814229986 | I114: 31/12/2025 | J114: 0 | K114: 31/12/2025 | L114: 0.2948462396
A115: TER | B115: Total Expense Ratio | C115: BCI | D115: Boutique Collective Investments | E115: AWBPFC | F115: All Weather BCI Property Fund Class C | G115: 0.6901812502 | H115: 0.4251238697 | I115: 31/12/2025 | J115: 0 | K115: 31/12/2025 | L115: 0.2650573805
A116: TER | B116: Total Expense Ratio | C116: BCI | D116: Boutique Collective Investments | E116: ALBSFA | F116: All Weather BCI SA Balanced Fund Class A | G116: 4.632258431 | H116: 3.051162984 | I116: 31/12/2025 | J116: 0.1578827833 | K116: 31/12/2025 | L116: 1.581095447
A117: TER | B117: Total Expense Ratio | C117: BCI | D117: Boutique Collective Investments | E117: AWBCIC | F117: All Weather BCI SA Balanced Fund Class C | G117: 0.6509162011 | H117: 0.07670632614 | I117: 31/12/2025 | J117: 0 | K117: 31/12/2025 | L117: 0.574209875
A118: TER | B118: Total Expense Ratio | C118: BCI | D118: Boutique Collective Investments | E118: BCIBFA | F118: Aluwani BCI Balanced Fund Class A | G118: 1.50599387 | H118: 1.20933965 | I118: 31/12/2025 | J118: 0 | K118: 31/12/2025 | L118: 0.29665422
A119: TER | B119: Total Expense Ratio | C119: BCI | D119: Boutique Collective Investments | E119: BCIBFB | F119: Aluwani BCI Balanced Fund Class B | G119: 1.218164533 | H119: 0.9215103133 | I119: 31/12/2025 | J119: 0 | K119: 31/12/2025 | L119: 0.29665422
A120: TER | B120: Total Expense Ratio | C120: BCI | D120: Boutique Collective Investments | E120: ALBBFC | F120: Aluwani BCI Balanced Fund Class C | G120: 0.5285784 | H120: 0.23192418 | I120: 31/12/2025 | J120: 0 | K120: 31/12/2025 | L120: 0.29665422
A121: TER | B121: Total Expense Ratio | C121: BCI | D121: Boutique Collective Investments | E121: ALYFDB | F121: Aluwani BCI Enhanced Yield Fund Class B | G121: 0.37332896 | H121: 0.37332896 | I121: 31/12/2025 | J121: 0 | K121: 31/12/2025 | L121: 0
A122: TER | B122: Total Expense Ratio | C122: BCI | D122: Boutique Collective Investments | E122: BCIFFA | F122: Aluwani BCI Flexible Income Fund Class A | G122: 0.3608300233 | H122: 0.36077459 | I122: 31/12/2025 | J122: 0 | K122: 31/12/2025 | L122: 5.543333333e-05
A123: TER | B123: Total Expense Ratio | C123: BCI | D123: Boutique Collective Investments | E123: BCIFFB | F123: Aluwani BCI Flexible Income Fund Class B | G123: 0.01600349333 | H123: 0.01594805333 | I123: 31/12/2025 | J123: 0 | K123: 31/12/2025 | L123: 5.544e-05
A124: TER | B124: Total Expense Ratio | C124: BCI | D124: Boutique Collective Investments | E124: AHYFDA | F124: Aluwani BCI High Yield Fund Class A | G124: 0.6939190133 | H124: 0.6939190133 | I124: 31/12/2025 | J124: 0 | K124: 31/12/2025 | L124: 0
A125: TER | B125: Total Expense Ratio | C125: BCI | D125: Boutique Collective Investments | E125: AHYFDB | F125: Aluwani BCI High Yield Fund Class B | G125: 0.4638181033 | H125: 0.4638181033 | I125: 31/12/2025 | J125: 0 | K125: 31/12/2025 | L125: 0
A126: TER | B126: Total Expense Ratio | C126: BCI | D126: Boutique Collective Investments | E126: ALUWFC | F126: Aluwani BCI High Yield Fund Class C | G126: 0.004265190687 | H126: 0.004265190687 | I126: 31/12/2025 | J126: 0 | K126: 31/12/2025 | L126: 0
A127: TER | B127: Total Expense Ratio | C127: BCI | D127: Boutique Collective Investments | E127: ALYFND | F127: Aluwani BCI High Yield Fund Class D | G127: 0.4064050567 | H127: 0.4064050567 | I127: 31/12/2025 | J127: 0 | K127: 31/12/2025 | L127: 0
A128: TER | B128: Total Expense Ratio | C128: BCI | D128: Boutique Collective Investments | E128: ABHYFF | F128: Aluwani BCI High Yield Fund Class F | G128: 0.4066541166 | H128: 0.4066541166 | I128: 31/12/2025 | J128: 0 | K128: 31/12/2025 | L128: 0
A129: TER | B129: Total Expense Ratio | C129: BCI | D129: Boutique Collective Investments | E129: RSOA | F129: Aluwani BCI Top 25 Equity Fund Class A | G129: 1.64447066 | H129: 1.45652423 | I129: 31/12/2025 | J129: 0 | K129: 31/12/2025 | L129: 0.18794643
A130: TER | B130: Total Expense Ratio | C130: BCI | D130: Boutique Collective Investments | E130: MTTC1 | F130: Aluwani BCI Top 25 Equity Fund Class C1 | G130: 1.184430683 | H130: 0.9964842533 | I130: 31/12/2025 | J130: 0 | K130: 31/12/2025 | L130: 0.18794643
A131: TER | B131: Total Expense Ratio | C131: BCI | D131: Boutique Collective Investments | E131: RMSF | F131: Aluwani BCI Top 25 Equity Fund Class R | G131: 1.356955913 | H131: 1.169009483 | I131: 31/12/2025 | J131: 0 | K131: 31/12/2025 | L131: 0.18794643
A132: TER | B132: Total Expense Ratio | C132: BCI | D132: Boutique Collective Investments | E132: ABDIFA | F132: Amity BCI Diversified Income Fund Class A | G132: 0.8217587567 | H132: 0.8217587433 | I132: 31/12/2025 | J132: 0 | K132: 31/12/2025 | L132: 1.333333333e-08
A133: TER | B133: Total Expense Ratio | C133: BCI | D133: Boutique Collective Investments | E133: AMBEFA | F133: Amity BCI Equity Fund Class A | G133: 2.940151688 | H133: 1.267170952 | I133: 31/12/2025 | J133: 0 | K133: 31/12/2025 | L133: 1.672980737
A134: TER | B134: Total Expense Ratio | C134: BCI | D134: Boutique Collective Investments | E134: AGDFA | F134: Amity BCI Global Diversified Fund of Funds Class A | G134: 1.21172084 | H134: 1.21108894 | I134: 31/12/2025 | J134: 0 | K134: 31/12/2025 | L134: 0.0006319
A135: TER | B135: Total Expense Ratio | C135: BCI | D135: Boutique Collective Investments | E135: ABMSA | F135: Amity BCI Managed Select Fund of Funds Class A | G135: 1.955909367 | H135: 1.85837497 | I135: 31/12/2025 | J135: 0 | K135: 31/12/2025 | L135: 0.09753439667
A136: TER | B136: Total Expense Ratio | C136: BCI | D136: Boutique Collective Investments | E136: MAPF | F136: Amity BCI Prudent Fund of Funds Class A | G136: 2.090106553 | H136: 2.02801823 | I136: 31/12/2025 | J136: 0 | K136: 31/12/2025 | L136: 0.06208832333
A137: TER | B137: Total Expense Ratio | C137: BCI | D137: Boutique Collective Investments | E137: ABSSA | F137: Amity BCI Steady Growth Fund of Funds Class A | G137: 1.821241907 | H137: 1.782539377 | I137: 31/12/2025 | J137: 0 | K137: 31/12/2025 | L137: 0.03870253
A138: TER | B138: Total Expense Ratio | C138: BCI | D138: Boutique Collective Investments | E138: VPCFU | F138: Ampersand BCI Balanced Fund of Funds Class A | G138: 2.102446102 | H138: 2.0059832 | I138: 31/12/2025 | J138: 0 | K138: 31/12/2025 | L138: 0.09646290233
A139: TER | B139: Total Expense Ratio | C139: BCI | D139: Boutique Collective Investments | E139: ASCPL6 | F139: Ampersand BCI Balanced Fund of Funds Class A1 | G139: 2.068160242 | H139: 1.97169734 | I139: 31/12/2025 | J139: 0 | K139: 31/12/2025 | L139: 0.09646290233
A140: TER | B140: Total Expense Ratio | C140: BCI | D140: Boutique Collective Investments | E140: VCSB1 | F140: Ampersand BCI Balanced Fund of Funds Class B | G140: 1.814052415 | H140: 1.717589513 | I140: 31/12/2025 | J140: 0 | K140: 31/12/2025 | L140: 0.09646290233
A141: TER | B141: Total Expense Ratio | C141: BCI | D141: Boutique Collective Investments | E141: ABCBFC | F141: Ampersand BCI Bond Fund C | G141: 0.7613396657 | H141: 0.7613396657 | I141: 31/12/2025 | J141: 0 | K141: 31/12/2025 | L141: 0
A142: TER | B142: Total Expense Ratio | C142: BCI | D142: Boutique Collective Investments | E142: AMSBFA | F142: Ampersand BCI Bond Fund Class A | G142: 1.267233863 | H142: 1.264586085 | I142: 31/12/2025 | J142: 0 | K142: 31/12/2025 | L142: 0.002647777593
A143: TER | B143: Total Expense Ratio | C143: BCI | D143: Boutique Collective Investments | E143: AMSBFB | F143: Ampersand BCI Bond Fund Class B | G143: 1.036685673 | H143: 1.034037892 | I143: 31/12/2025 | J143: 0 | K143: 31/12/2025 | L143: 0.002647780926
A144: TER | B144: Total Expense Ratio | C144: BCI | D144: Boutique Collective Investments | E144: VPCFC | F144: Ampersand BCI Cautious Fund of Funds Class A | G144: 1.90434858 | H144: 1.859152121 | I144: 31/12/2025 | J144: 0 | K144: 31/12/2025 | L144: 0.04519645876
A145: TER | B145: Total Expense Ratio | C145: BCI | D145: Boutique Collective Investments | E145: ASCFA1 | F145: Ampersand BCI Cautious Fund of Funds Class A1 | G145: 1.872768087 | H145: 1.827571628 | I145: 31/12/2025 | J145: 0 | K145: 31/12/2025 | L145: 0.04519645876
A146: TER | B146: Total Expense Ratio | C146: BCI | D146: Boutique Collective Investments | E146: VCPB1 | F146: Ampersand BCI Cautious Fund of Funds Class B | G146: 1.615728367 | H146: 1.570531908 | I146: 31/12/2025 | J146: 0 | K146: 31/12/2025 | L146: 0.04519645876
A147: TER | B147: Total Expense Ratio | C147: BCI | D147: Boutique Collective Investments | E147: AMCEFC | F147: Ampersand BCI Equity Fund C | G147: 1.146999738 | H147: 0.8747003448 | I147: 31/12/2025 | J147: 0 | K147: 31/12/2025 | L147: 0.272299393
A148: TER | B148: Total Expense Ratio | C148: BCI | D148: Boutique Collective Investments | E148: ASEFDA | F148: Ampersand BCI Equity Fund Class A | G148: 1.348930187 | H148: 1.138175947 | I148: 31/12/2025 | J148: 0 | K148: 31/12/2025 | L148: 0.21075424
A149: TER | B149: Total Expense Ratio | C149: BCI | D149: Boutique Collective Investments | E149: AMECB | F149: Ampersand BCI Equity Fund Class B | G149: 1.38742981 | H149: 1.176675527 | I149: 31/12/2025 | J149: 0 | K149: 31/12/2025 | L149: 0.2107542833
A150: TER | B150: Total Expense Ratio | C150: BCI | D150: Boutique Collective Investments | E150: ABGBFA | F150: Ampersand BCI Global Balanced Feeder Fund Class A | G150: 1.745414065 | H150: 1.7453068 | I150: 31/12/2025 | J150: 0 | K150: 31/12/2025 | L150: 0.000107265
A151: TER | B151: Total Expense Ratio | C151: BCI | D151: Boutique Collective Investments | E151: ABGBFB | F151: Ampersand BCI Global Balanced Feeder Fund Class B | G151: 1.51875206 | H151: 1.5186448 | I151: 31/12/2025 | J151: 0 | K151: 31/12/2025 | L151: 0.00010726
A152: TER | B152: Total Expense Ratio | C152: BCI | D152: Boutique Collective Investments | E152: ASIIFA | F152: Ampersand BCI Income Fund Class A | G152: 1.043614584 | H152: 1.042244257 | I152: 31/12/2025 | J152: 0 | K152: 31/12/2025 | L152: 0.001370327646
A153: TER | B153: Total Expense Ratio | C153: BCI | D153: Boutique Collective Investments | E153: ASCIFB | F153: Ampersand BCI Income Fund Class B | G153: 0.9834692178 | H153: 0.9820988869 | I153: 31/12/2025 | J153: 0 | K153: 31/12/2025 | L153: 0.001370330979
A154: TER | B154: Total Expense Ratio | C154: BCI | D154: Boutique Collective Investments | E154: VPCFF | F154: Ampersand BCI Moderate Fund of Funds Class A | G154: 2.010237998 | H154: 1.938999326 | I154: 31/12/2025 | J154: 0 | K154: 31/12/2025 | L154: 0.07123867225
A155: TER | B155: Total Expense Ratio | C155: BCI | D155: Boutique Collective Investments | E155: ASCPS4 | F155: Ampersand BCI Moderate Fund of Funds Class A1 | G155: 1.979412885 | H155: 1.908174212 | I155: 31/12/2025 | J155: 0 | K155: 31/12/2025 | L155: 0.07123867225
A156: TER | B156: Total Expense Ratio | C156: BCI | D156: Boutique Collective Investments | E156: VCFB1 | F156: Ampersand BCI Moderate Fund of Funds Class B | G156: 1.721833465 | H156: 1.650594792 | I156: 31/12/2025 | J156: 0 | K156: 31/12/2025 | L156: 0.07123867225
A157: TER | B157: Total Expense Ratio | C157: BCI | D157: Boutique Collective Investments | E157: AFIB1 | F157: Ampersand BCI Property Fund Class B | G157: 1.098225471 | H157: 1.058672599 | I157: 31/12/2025 | J157: 0 | K157: 31/12/2025 | L157: 0.039552872
A158: TER | B158: Total Expense Ratio | C158: BCI | D158: Boutique Collective Investments | E158: AMWFFA | F158: Ampersand BCI Worldwide Flexible Fund of Funds Class A | G158: 2.130298072 | H158: 1.99939986 | I158: 31/12/2025 | J158: 0 | K158: 31/12/2025 | L158: 0.1308982117
A159: TER | B159: Total Expense Ratio | C159: BCI | D159: Boutique Collective Investments | E159: AMWFFB | F159: Ampersand BCI Worldwide Flexible Fund of Funds Class B | G159: 1.901085679 | H159: 1.76939986 | I159: 31/12/2025 | J159: 0 | K159: 31/12/2025 | L159: 0.1316858188
A160: TER | B160: Total Expense Ratio | C160: BCI | D160: Boutique Collective Investments | E160: ANGGFA | F160: AnBro BCI Global Equity Fund A | G160: 2.168076383 | H160: 1.902260913 | I160: 31/12/2025 | J160: 0 | K160: 31/12/2025 | L160: 0.26581547
A161: TER | B161: Total Expense Ratio | C161: BCI | D161: Boutique Collective Investments | E161: ANGGFB | F161: AnBro BCI Global Equity Fund B | G161: 1.91351558 | H161: 1.91 | I161: 31/12/2025 | J161: 0 | K161: 31/12/2025 | L161: 0.00351558
A162: TER | B162: Total Expense Ratio | C162: BCI | D162: Boutique Collective Investments | E162: ABAIA | F162: Anchor BCI Africa Flexible Income Fund Class A | G162: 1.306333177 | H162: 1.306331877 | I162: 31/12/2025 | J162: 0.4330095033 | K162: 31/12/2025 | L162: 1.3e-06
A163: TER | B163: Total Expense Ratio | C163: BCI | D163: Boutique Collective Investments | E163: ANBFFB | F163: Anchor BCI Africa Flexible Income Fund Class B | G163: 0.7009586833 | H163: 0.7009577167 | I163: 31/12/2025 | J163: 0 | K163: 31/12/2025 | L163: 9.666666667e-07
A164: TER | B164: Total Expense Ratio | C164: BCI | D164: Boutique Collective Investments | E164: ANBCFC | F164: Anchor BCI Africa Flexible Income Fund Class C | G164: 0.17749548 | H164: 0.1774943433 | I164: 31/12/2025 | J164: 0 | K164: 31/12/2025 | L164: 1.136666667e-06
A165: TER | B165: Total Expense Ratio | C165: BCI | D165: Boutique Collective Investments | E165: ABFA | F165: Anchor BCI Bond Fund Class A | G165: 0.6530785233 | H165: 0.6529294433 | I165: 31/12/2025 | J165: 0 | K165: 31/12/2025 | L165: 0.00014908
A166: TER | B166: Total Expense Ratio | C166: BCI | D166: Boutique Collective Investments | E166: ABFB | F166: Anchor BCI Bond Fund Class B | G166: 0.1296999133 | H166: 0.12955084 | I166: 31/12/2025 | J166: 0 | K166: 31/12/2025 | L166: 0.0001490733333
A167: TER | B167: Total Expense Ratio | C167: BCI | D167: Boutique Collective Investments | E167: ANCFND | F167: Anchor BCI Bond Fund Class D | G167: 0.3654855467 | H167: 0.36533647 | I167: 31/12/2025 | J167: 0 | K167: 31/12/2025 | L167: 0.0001490766667
A168: TER | B168: Total Expense Ratio | C168: BCI | D168: Boutique Collective Investments | E168: ABCBFE | F168: Anchor BCI Bond Fund Class E | G168: 0.4808744875 | H168: 0.4807965208 | I168: 31/12/2025 | J168: 0 | K168: 31/12/2025 | L168: 7.796666667e-05
A169: TER | B169: Total Expense Ratio | C169: BCI | D169: Boutique Collective Investments | E169: ANCCIF | F169: Anchor BCI Core Income Fund C | G169: 0.1351158728 | H169: 0.1351158728 | I169: 31/12/2025 | J169: 0 | K169: 31/12/2025 | L169: 0
A170: TER | B170: Total Expense Ratio | C170: BCI | D170: Boutique Collective Investments | E170: ABCIIA | F170: Anchor BCI Core Income Fund Class A | G170: 0.6526586733 | H170: 0.65265878 | I170: 31/12/2025 | J170: 0 | K170: 31/12/2025 | L170: -1.066666667e-07
A171: TER | B171: Total Expense Ratio | C171: BCI | D171: Boutique Collective Investments | E171: ABCIIB | F171: Anchor BCI Core Income Fund Class B | G171: 0.42132129 | H171: 0.42132129 | I171: 31/12/2025 | J171: 0 | K171: 31/12/2025 | L171: 0
A172: TER | B172: Total Expense Ratio | C172: BCI | D172: Boutique Collective Investments | E172: ABDGFC | F172: Anchor BCI Diversified Growth Fund C | G172: 1.219111628 | H172: 1.021530668 | I172: 31/12/2025 | J172: 0 | K172: 31/12/2025 | L172: 0.1975809602
A173: TER | B173: Total Expense Ratio | C173: BCI | D173: Boutique Collective Investments | E173: ABDGA | F173: Anchor BCI Diversified Growth Fund Class A | G173: 1.752913987 | H173: 1.51787272 | I173: 31/12/2025 | J173: 0 | K173: 31/12/2025 | L173: 0.2350412667
A174: TER | B174: Total Expense Ratio | C174: BCI | D174: Boutique Collective Investments | E174: ABDGB | F174: Anchor BCI Diversified Growth Fund Class B | G174: 1.27920369 | H174: 1.044155017 | I174: 31/12/2025 | J174: 0 | K174: 31/12/2025 | L174: 0.2350486733
A175: TER | B175: Total Expense Ratio | C175: BCI | D175: Boutique Collective Investments | E175: ABDAA | F175: Anchor BCI Diversified Moderate Fund Class A | G175: 1.69441913 | H175: 1.497418613 | I175: 31/12/2025 | J175: 0 | K175: 31/12/2025 | L175: 0.1970005167
A176: TER | B176: Total Expense Ratio | C176: BCI | D176: Boutique Collective Investments | E176: ABDAB | F176: Anchor BCI Diversified Moderate Fund Class B | G176: 1.227178037 | H176: 1.030176203 | I176: 31/12/2025 | J176: 0 | K176: 31/12/2025 | L176: 0.1970018333
A177: TER | B177: Total Expense Ratio | C177: BCI | D177: Boutique Collective Investments | E177: ABDSA | F177: Anchor BCI Diversified Stable Fund Class A | G177: 1.35298872 | H177: 1.205828953 | I177: 31/12/2025 | J177: 0 | K177: 31/12/2025 | L177: 0.1471597667
A178: TER | B178: Total Expense Ratio | C178: BCI | D178: Boutique Collective Investments | E178: ABDSB | F178: Anchor BCI Diversified Stable Fund Class B | G178: 0.9788009033 | H178: 0.8316401233 | I178: 31/12/2025 | J178: 0 | K178: 31/12/2025 | L178: 0.14716078
A179: TER | B179: Total Expense Ratio | C179: BCI | D179: Boutique Collective Investments | E179: AMEFA | F179: Anchor BCI Equity Fund Class A | G179: 1.733547587 | H179: 1.209335837 | I179: 31/12/2025 | J179: 0 | K179: 31/12/2025 | L179: 0.52421175
A180: TER | B180: Total Expense Ratio | C180: BCI | D180: Boutique Collective Investments | E180: AMEFB | F180: Anchor BCI Equity Fund Class B | G180: 1.446064217 | H180: 0.9218524833 | I180: 31/12/2025 | J180: 0 | K180: 31/12/2025 | L180: 0.5242117333
A181: TER | B181: Total Expense Ratio | C181: BCI | D181: Boutique Collective Investments | E181: ABEFD | F181: Anchor BCI Equity Fund Class D | G181: 1.158235153 | H181: 0.6340403167 | I181: 31/12/2025 | J181: 0 | K181: 31/12/2025 | L181: 0.5241948367
A182: TER | B182: Total Expense Ratio | C182: BCI | D182: Boutique Collective Investments | E182: AMFFA | F182: Anchor BCI Flexible Fund Class A | G182: 1.115940305 | H182: 1.053110681 | I182: 31/12/2025 | J182: 0 | K182: 31/12/2025 | L182: 0.06282962398
A183: TER | B183: Total Expense Ratio | C183: BCI | D183: Boutique Collective Investments | E183: ABFIA | F183: Anchor BCI Flexible Income Fund Class A | G183: 1.1817511 | H183: 1.179909563 | I183: 31/12/2025 | J183: 0 | K183: 31/12/2025 | L183: 0.001841536667
A184: TER | B184: Total Expense Ratio | C184: BCI | D184: Boutique Collective Investments | E184: ABFIB | F184: Anchor BCI Flexible Income Fund Class B | G184: 0.8811647 | H184: 0.88 | I184: 31/12/2025 | J184: 0 | K184: 31/12/2025 | L184: 0.0011647
A185: TER | B185: Total Expense Ratio | C185: BCI | D185: Boutique Collective Investments | E185: ABFIC | F185: Anchor BCI Flexible Income Fund Class C | G185: 0.6641364367 | H185: 0.6622948933 | I185: 31/12/2025 | J185: 0 | K185: 31/12/2025 | L185: 0.001841543333
A186: TER | B186: Total Expense Ratio | C186: BCI | D186: Boutique Collective Investments | E186: ANBFDD | F186: Anchor BCI Flexible Income Fund Class D | G186: 0.43416439 | H186: 0.4323228567 | I186: 31/12/2025 | J186: 0 | K186: 31/12/2025 | L186: 0.001841533333
A187: TER | B187: Total Expense Ratio | C187: BCI | D187: Boutique Collective Investments | E187: ANFFE | F187: Anchor BCI Flexible Income Fund Class E | G187: 0.4916863767 | H187: 0.4898448533 | I187: 31/12/2025 | J187: 0 | K187: 31/12/2025 | L187: 0.001841523333
A188: TER | B188: Total Expense Ratio | C188: BCI | D188: Boutique Collective Investments | E188: ABGEFF | F188: Anchor BCI Global Equity Feeder Fund Class A | G188: 1.904200197 | H188: 1.904200217 | I188: 31/12/2025 | J188: 0 | K188: 31/12/2025 | L188: -2e-08
A189: TER | B189: Total Expense Ratio | C189: BCI | D189: Boutique Collective Investments | E189: ABGFFB | F189: Anchor BCI Global Flexible Income Fund Class B | G189: 0.7548753533 | H189: 0.7548732433 | I189: 31/12/2025 | J189: 0 | K189: 31/12/2025 | L189: 2.11e-06
A190: TER | B190: Total Expense Ratio | C190: BCI | D190: Boutique Collective Investments | E190: ABGTA | F190: Anchor BCI Global Technology Fund Class A | G190: 1.209929375 | H190: 1.199985295 | I190: 31/12/2025 | J190: 0 | K190: 31/12/2025 | L190: 0.00994408
A191: TER | B191: Total Expense Ratio | C191: BCI | D191: Boutique Collective Investments | E191: ABGTB | F191: Anchor BCI Global Technology Fund Class B | G191: 0.110040542 | H191: 0.100096472 | I191: 31/12/2025 | J191: 0 | K191: 31/12/2025 | L191: 0.00994407
A192: TER | B192: Total Expense Ratio | C192: BCI | D192: Boutique Collective Investments | E192: ANBCIC | F192: Anchor BCI Global Technology Fund Class C | G192: 0.9342514077 | H192: 0.9243073443 | I192: 31/12/2025 | J192: 0 | K192: 31/12/2025 | L192: 0.009944063333
A193: TER | B193: Total Expense Ratio | C193: BCI | D193: Boutique Collective Investments | E193: ABMF | F193: Anchor BCI Managed Fund Class A | G193: 1.6723614 | H193: 1.519752673 | I193: 31/12/2025 | J193: 0 | K193: 31/12/2025 | L193: 0.1526087267
A194: TER | B194: Total Expense Ratio | C194: BCI | D194: Boutique Collective Investments | E194: ABMFB | F194: Anchor BCI Managed Fund Class B | G194: 1.212522597 | H194: 1.059913873 | I194: 31/12/2025 | J194: 0 | K194: 31/12/2025 | L194: 0.1526087233
A195: TER | B195: Total Expense Ratio | C195: BCI | D195: Boutique Collective Investments | E195: BIWWFA | F195: Anchor BCI Moderate Worldwide Flexible Fund Class A | G195: 0.37295164 | H195: 0.3448081967 | I195: 31/12/2025 | J195: 0 | K195: 31/12/2025 | L195: 0.02814344333
A196: TER | B196: Total Expense Ratio | C196: BCI | D196: Boutique Collective Investments | E196: BBMFFC | F196: Anchor BCI Moderate Worldwide Flexible Fund Class C | G196: 1.207880993 | H196: 1.17973421 | I196: 31/12/2025 | J196: 0 | K196: 31/12/2025 | L196: 0.02814678333
A197: TER | B197: Total Expense Ratio | C197: BCI | D197: Boutique Collective Investments | E197: ABPFA | F197: Anchor BCI Property Fund Class A | G197: 1.701941467 | H197: 1.654846727 | I197: 31/12/2025 | J197: 0 | K197: 31/12/2025 | L197: 0.04709474
A198: TER | B198: Total Expense Ratio | C198: BCI | D198: Boutique Collective Investments | E198: ANBEFA | F198: Anchor BCI SA Equity Fund Class A | G198: 1.78546011 | H198: 1.17812622 | I198: 31/12/2025 | J198: 0 | K198: 31/12/2025 | L198: 0.60733389
A199: TER | B199: Total Expense Ratio | C199: BCI | D199: Boutique Collective Investments | E199: ANBEFB | F199: Anchor BCI SA Equity Fund Class B | G199: 0.7451832867 | H199: 0.1378495933 | I199: 31/12/2025 | J199: 0 | K199: 31/12/2025 | L199: 0.6073336933
A200: TER | B200: Total Expense Ratio | C200: BCI | D200: Boutique Collective Investments | E200: ABSEFC | F200: Anchor BCI SA Equity Fund Class C | G200: 1.565041574 | H200: 0.9493930081 | I200: 31/12/2025 | J200: 0 | K200: 31/12/2025 | L200: 0.6156485656
... 1130 more rows

Sheet Fundlist (hidden)
A1: Click on cell to select fund from the drop down list | B1: 0 | C1: service fee incl VAT
A2: 36ONE BCI Flexible Opportunity Fund - Class G | B2: 0.008625
A3: 3B BCI Enhanced Yield Fund - Class A | B3: 0.005175
A4: 3B BCI Enhanced Yield Fund - Class B | B4: 0.004025
A5: 3B BCI Flexible Balanced Fund - Class A | B5: 0.0069
A6: 3B BCI Flexible Defensive Fund - Class A | B6: 0.00575
A7: 3B BCI Flexible Managed Fund - Class C | B7: 0.009775
A8: 3B BCI Worldwide Flexible Fund of Funds - Class 3B2 | B8: 0.0115
A9: All Weather BCI Balanced Fund - Class A1 | B9: 0.0138
A10: All Weather BCI Best Ideas Equity Fund - Class D | B10: 0.008625
A11: All Weather BCI Best Ideas Equity Fund - Class E | B11: 0.008625
A12: All Weather BCI Bond Fund - Class B | B12: 0.004025
A13: All Weather BCI Flexible Income Fund - Class B | B13: 0.005175
A14: All Weather BCI Global Emerging Markets Feeder Fund - Class A | B14: 0.001725
A15: All Weather BCI Global Emerging Markets Feeder Fund - Class B | B15: 0
A16: All Weather BCI Global Resources Fund - Class A | B16: 0.0115
A17: All Weather BCI Global Resources Fund - Class B | B17: 0
A18: All Weather BCI Property Fund - Class A | B18: 0.009775
A19: All Weather BCI SA Balanced Fund - Class B | B19: 0.004025
A20: Aluwani BCI Enhanced Yield Fund - Class A | B20: 0.0046
A21: Aluwani BCI Enhanced Yield Fund - Class C | B21: 0
A22: Aluwani BCI High Yield Fund - Class E | B22: 0.00069
A23: Aluwani BCI Top 25 Equity Fund - Class B3 | B23: 0
A24: Amity BCI Global Diversified Fund of Funds - Class B | B24: 0.0023
A25: Amity BCI Steady Growth Fund of Funds - Class B | B25: 0.002875
A26: Ampersand BCI Property Fund - Class C | B26: 0.0048875
A27: Anchor BCI Bond Fund - Class C | B27: 0.0043125
A28: Anchor BCI Diversified Moderate Fund - Class C | B28: 0.0069
A29: Anchor BCI Diversified Moderate Fund - Class F | B29: 0.0161
A30: Anchor BCI Diversified Stable Fund - Class C | B30: 0.006325
A31: Anchor BCI Diversified Stable Fund - Class F | B31: 0.01495
A32: Anchor BCI Flexible Fund - Class B | B32: 0.008625
A33: Anchor BCI Flexible Fund - Class D | B33: 0.009775
A34: Anchor BCI Global Flexible Income Fund - Class A | B34: 0.009775
A35: Anchor BCI Property Fund - Class B | B35: 0.0069
A36: Argon BCI Absolute Return Fund - Class D | B36: 0.0048415
A37: Argon BCI Absolute Return Fund - Class E | B37: 0.00575
A38: Argon BCI Equity Fund - Class A | B38: 0.009775
A39: Argon BCI Flexible Income Fund - Class B | B39: 0
A40: Balondolozi BCI Absolute Return Fund - Class A | B40: 0.0115
A41: Balondolozi BCI Absolute Return Fund - Class C | B41: 0.0069
A42: Balondolozi BCI Absolute Return Fund - Class D | B42: 0.006325
A43: Balondolozi BCI Absolute Return Fund - Class E | B43: 0.0023
A44: Balondolozi BCI Global Bond Fund - Class A1 | B44: 0.008625
A45: Balondolozi BCI Global Bond Fund - Class A3 | B45: 0.0046
A46: Balondolozi BCI Global Bond Fund - Class A4 | B46: 0.00345
A47: Balondolozi BCI Global Equity Fund - Class A1 | B47: 0.008625
A48: Balondolozi BCI Global Equity Fund - Class A2 | B48: 0.00575
A49: Balondolozi BCI Global Equity Fund - Class A3 | B49: 0.0046
A50: Balondolozi BCI Global Equity Fund - Class A4 | B50: 0.00345
A51: Balondolozi BCI Income Fund - Class A | B51: 0.008625
A52: Balondolozi BCI Income Fund - Class C | B52: 0.0046
A53: Balondolozi BCI Income Fund - Class D | B53: 0.00345
A54: Balondolozi BCI Income Fund - Class E | B54: 0.0023
A55: Bateleur BCI SA Equity Fund - Class D | B55: 0.008625
A56: BCI Best Blend Specialist Equity Fund - Class E | B56: 0.0115
A57: BCI Colchester Global Bond Feeder Fund - Class A | B57: 0.001725
A58: BCI Colchester Global Bond Feeder Fund - Class B | B58: 0.00115
A59: BCI Global Opportunity Fund - Class T | B59: 0.0115
A60: BCI Guernsey Global Growth Feeder Fund - Class GD | B60: 0.0046
A61: BCI Guernsey Global Growth Feeder Fund - Class GR | B61: 0.00506
A62: BCI Guinness Global Equity Income Feeder Fund - Class D | B62: 0.00115
A63: BCI HAN-GINS Tech Megatrend Equal Weight Feeder Fund - Class A | B63: 0.002875
A64: BCI HAN-GINS Tech Megatrend Equal Weight Feeder Fund - Class B | B64: 0.000575
A65: BCI HAN-GINS Tech Megatrend Equal Weight Feeder Fund - Class C | B65: 0.001725
A66: BCI Lindsell Train Global Equity Feeder Fund - Class C | B66: 0.001725
A67: BCI MI Thornbridge Global Opportunities Feeder Fund - Class A | B67: 0.0046
A68: BCI MI Thornbridge Global Opportunities Feeder Fund - Class C | B68: 0.001725
A69: BCI Nomura Global High Conviction Feeder Fund - Class A | B69: 0.002875
A70: BCI Ranmore Global Value Equity Feeder Fund - Class S | B70: 0.000575
A71: BCI SA Equity Fund - Class A | B71: 0.00805
A72: BCI SA Equity Fund - Class B | B72: 0
A73: BCI SA Equity Fund - Class C | B73: 0.001725
A74: BCI Sands Capital Emerging Markets Feeder Fund - Class I | B74: 0.00115
A75: BCI Sands Capital Global Growth Feeder Fund - Class M | B75: 0.00115
A76: BCI Worldwide Flexible Style Fund - Class A | B76: 0.00805
A77: BCI Worldwide Flexible Style Fund - Class B | B77: 0.001955
A78: Bellamont BCI Worldwide Flexible Fund - Class B | B78: 0.0046
A79: Bellamont BCI Worldwide Flexible Fund - Class C | B79: 0.001725
A80: Bellamont BCI Global Equity Feeder Fund - Class B | B80: 0.0046
A81: Bellamont BCI Global Equity Feeder Fund - Class C | B81: 0.001725
A82: Bellamont BCI Emerging Market Feeder Fund - Class A | B82: 0.01035
A83: Bellamont BCI Small Cap Global Equity Fund - Class A | B83: 0.0161
A84: Bellamont BCI Small Cap Global Equity Fund - Class B | B84: 0.012075
A85: BlueAlpha BCI All Seasons Fund - Class C | B85: 0.009775
A86: BlueAlpha BCI Balanced Fund - Class A | B86: 0.0115
A87: BlueAlpha BCI Equity Fund - Class D | B87: 0
A88: BlueAlpha BCI Equity Fund - Class E | B88: 0.00966
A89: BlueAlpha BCI Global Equity Fund - Class E | B89: 0.0069
A90: Cadiz BCI Absolute Yield Fund - Class B1 | B90: 0.023
A91: Capita BCI Global Equity Fund of Funds - Class A | B91: 0.00115
A92: Cartesian BCI Money Market Fund - Class C | B92: 0
A93: Cedar Lane BCI Flexible Fund - Class A | B93: 0.008625
A94: Cedar Lane BCI Worldwide Flexible Fund - Class A | B94: 0.008625
A95: Citrine BCI Enhanced Interest Fund - Class A | B95: 0.007245
A96: Citrine BCI Global Equity Fund - Class A | B96: 0.00989
A97: Citrine BCI SA Bond Fund - Class A | B97: 0.00598
A98: Colourfield BCI Core Income Fund - Class A | B98: 0.00115
A99: Edge BCI Global Flexible Fund - Class A | B99: 0.0092
A100: Edge BCI Global Flexible Fund - Class B | B100: 0.00575
A101: Edify BCI Income Fund - Class A | B101: 0.008625
A102: Engelberg BCI Balanced Fund - Class B | B102: 0.00345
A103: Fairtree BCI Income Plus Fund - Class K | B103: 0
A104: Fairtree BCI Income Plus Fund - Class L | B104: 0
A105: Fairtree BCI Income Plus Fund - Class N | B105: 0
A106: Financial Fitness BCI Flexible Fund of Funds - Class T | B106: 0.005175
A107: Flagship BCI Global Flexible Equity Fund - Class A1 | B107: 0.014375
A108: Granate BCI Balanced Fund - Class D | B108: 0.008625
A109: Granate BCI Flexible Fund - Class D | B109: 0.008625
A110: Granate BCI Global Flexible Feeder Fund - Class A | B110: 0.00092
A111: Granate BCI Global Flexible Feeder Fund - Class T | B111: 0.00092
A112: Harvard House BCI Flexible Growth Fund of Funds - Class C | B112: 0.008625
A113: Hollard BCI Conservative Growth Fund of Funds - Class H | B113: 0.0115
A114: Hollard BCI Equity Fund - Class H | B114: 0.0092
A115: Hollard BCI Managed Growth Fund of Funds - Class H | B115: 0.0115
A116: Hollard BCI Moderate Growth Fund of Funds - Class H | B116: 0.0115
A117: Hollard BCI Property Fund - Class E | B117: 0.006325
A118: Hollard BCI Property Fund - Class H | B118: 0.0100625
A119: ID Capital BCI Balanced Fund - Class C | B119: 0.01035
A120: ID Capital BCI Worldwide Equity Fund - Class B | B120: 0.00575
A121: ID Capital BCI Worldwide Flexible Fund - Class C | B121: 0.0092
A122: ID Capital BCI Worldwide Flexible Fund - Class D | B122: 0.00759
A123: Independent Securities BCI Worldwide Flexible Fund - Class E | B123: 0.016675
A124: Index Solutions BCI Balanced Fund - Class A | B124: 0.00575
A125: Instit BCI Enhanced Yield Fund - Class B | B125: 0.0069
A126: Instit BCI Flexible Income Fund - Class B | B126: 0.006325
A127: Investec BCI Balanced Fund of Funds - Class D | B127: 0.0008625
A128: Investec BCI Global Leaders Equity Feeder Fund - Class I | B128: 0.0069
A129: Investec BCI Institutional Balanced Fund - Class B | B129: 0.0069
A130: Investec BCI Institutional Balanced Fund - Class D | B130: 0.01035
A131: Investin BCI Balanced Fund - Class A | B131: 0.009775
A132: Investin BCI Equity Fund - Class A | B132: 0.009775
A133: Lunar BCI Worldwide Flexible Fund - Class B | B133: 0.008625
A134: Mazi BCI Equity Fund - Class E | B134: 0.0046
A135: Mazi BCI Inflation Beater Fund - Class A | B135: 0.0115
A136: Mazi BCI Inflation Beater Fund - Class B | B136: 0.0069
A137: Mazi BCI Inflation Beater Fund - Class C | B137: 0.004025
A138: Methodical BCI Equity Fund - Class B4 | B138: 0.002875
A139: Methodical BCI Equity Preserver Fund - Class B2 | B139: 0.006325
A140: Mi-Plan BCI Balanced Defensive Fund - Class T | B140: 0.008625
A141: Mi-Plan BCI Balanced Fund - Class T | B141: 0.008625
A142: Mi-Plan BCI Balanced Plus Fund - Class T | B142: 0.008625
A143: Mi-Plan BCI Global AI Opportunity Fund - Class B1 | B143: 0.00575
A144: Mi-Plan BCI Global AI Opportunity Fund - Class T | B144: 0.010925
A145: Mi-Plan BCI Global Macro Fund - Class T | B145: 0.0115
A146: MitonOptimal BCI Active Beta Fund - Class T | B146: 0.0060375
A147: MitonOptimal BCI Cautious Fund - Class A3 | B147: 0.007475
A148: MitonOptimal BCI Cautious Fund - Class A4 | B148: 0.007475
A149: MitonOptimal BCI Cautious Fund - Class A5 | B149: 0.007475
A150: MitonOptimal BCI Cautious Fund - Class B | B150: 0.0046
A151: MitonOptimal BCI Equity Growth Fund - Class T | B151: 0.008625
A152: MitonOptimal BCI Foreign Flexible Feeder Fund - Class T | B152: 0.0046
A153: MitonOptimal BCI Income Plus Fund of Funds - Class A3 | B153: 0.007475
A154: MitonOptimal BCI Income Plus Fund of Funds - Class A4 | B154: 0.007475
A155: MitonOptimal BCI Income Plus Fund of Funds - Class A5 | B155: 0.007475
A156: MitonOptimal BCI Interest Plus Fund - Class T | B156: 0.0069
A157: MitonOptimal BCI Moderate Growth Fund - Class A3 | B157: 0.007475
A158: MitonOptimal BCI Moderate Growth Fund - Class A4 | B158: 0.007475
A159: MitonOptimal BCI Moderate Growth Fund - Class A5 | B159: 0.007475
A160: MitonOptimal BCI Moderate Growth Fund - Class B | B160: 0.0046
A161: MitonOptimal BCI Worldwide Active Beta Fund - Class T | B161: 0.0060375
A162: MitonOptimal BCI Worldwide Growth Fund - Class A | B162: 0.00575
A163: MitonOptimal BCI Worldwide Growth Fund - Class B | B163: 0.0046
A164: MM BCI Cautious Fund of Funds - Class A1 | B164: 0.0083375
A165: MM BCI Moderate Fund of Funds - Class A1 | B165: 0.0083375
A166: Numoro BCI Income Fund - Class B | B166: 0.005175
A167: Odyssey BCI Worldwide Flexible Fund - Class B | B167: 0.01035
A168: Oakhaven BCI Property Fund - Class A1 | B168: 0.0028175
A169: Oakhaven BCI Property Fund - Class A3 | B169: 0.0062675
A170: Oakhaven BCI Property Fund - Class A4 | B170: 0.0102925
A171: Oakhaven BCI Property Fund - Class E | B171: 0.0010925
A172: Optimum BCI Balanced Fund - Class D | B172: 0.0115
A173: Optimum BCI Balanced Fund - Class GD | B173: 0.012075
A174: Optimum BCI Balanced Fund - Class GR | B174: 0.012535
A175: Optimum BCI Equity Fund - Class B | B175: 0.015525
A176: Optimum BCI Equity Fund - Class GD | B176: 0.0161
A177: Optimum BCI Equity Fund - Class GR | B177: 0.01656
A178: Optimum BCI Global Strategic Managed Fund of Funds - Class A | B178: 0.0115
A179: Optimum BCI Global Strategic Managed Fund of Funds - Class B | B179: 0.007475
A180: Optimum BCI Income Fund - Class GD | B180: 0.007475
A181: Optimum BCI Income Fund - Class GR | B181: 0.007935
A182: Optimum BCI Managed Growth Fund - Class GD | B182: 0.012075
A183: Optimum BCI Managed Growth Fund - Class GR | B183: 0.012535
A184: Optimum BCI Stable Fund - Class GD | B184: 0.012075
A185: Optimum BCI Stable Fund - Class GR | B185: 0.012535
A186: Optimum BCI Worldwide Flexible Fund of Funds - Class GD | B186: 0.012075
A187: Optimum BCI Worldwide Flexible Fund of Funds - Class GR | B187: 0.012535
A188: Palmyra BCI Balanced Fund - Class C | B188: 0.00115
A189: Palmyra BCI Global Flexible Fund of Funds - Class G | B189: 0.00115
A190: Palmyra BCI Property Fund - Class B | B190: 0.008625
A191: Palmyra BCI SA Equity Fund - Class F | B191: 0.0115
A192: Palmyra BCI Stable Fund - Class C | B192: 0.00115
A193: PBi BCI Worldwide Flexible Fund - Class B | B193: 0.003105
A194: Peregrine BCI Diversified Fund - Class A | B194: 0.007475
A195: Peregrine BCI Diversified Fund - Class B | B195: 0
A196: Peregrine BCI Global High Equity Feeder Fund - Class A | B196: 0.001725
A197: Peregrine BCI Global High Equity Feeder Fund - Class B | B197: 0.00069
A198: Peregrine BCI Global High Equity Feeder Fund - Class C | B198: 0.00115
A199: Plexus Wealth BCI Balanced Fund - Class C | B199: 0.010925
A200: Plexus Wealth BCI Conservative Fund - Class C | B200: 0.010925
... 99 more rows

Sheet Input (hidden)
B2: EXAMPLE OF SIMPLE EAC CALCULATION
M4: 0.06 | O4: 0.06
B5: Input | M5: 0.06 | O5: 0.06
D6: Gross | F6: IFA Initial Fee incl VAT on Lump Sum | H6: Admin Initial Fee Incl VAT on Lump Sum | J6: Admin Initial Fee Incl VAT on Recurring | K6: Initial IFA Fee Incl VAT on Recurring | M6: 0.06 | O6: 0.06
B7: Initial Lump Sum Value | D7: 0 | F7: ='Lump Sum'!C45 -> 0 | H7: ='Lump Sum'!C44 -> 0 | J7: =H7 -> 0 | K7: =F7 -> 0 | M7: 0.06 | O7: 0.06
B9: Initial Recurring Investment assumed end of month | D9: 20000 | F9: per month
B10: Recurring Investment Escalation | F10: per annum
B12: Ongoing Annual Fees:
B13: IFA Fee Incl Vat | D13: ='Lump Sum'!C53 -> 0
H15: Annual Fee incl VAT
B16: Annual Admin Fee Slider | F16: On the first | G16: 250000 | H16: 0.0057
F17: The next | G17: 500000 | H17: 0.00456
H18: 0.00285
B20: Weighted Average TER of funds | D20: ='Lump Sum'!D39 -> 0 | F20: Weighted Average Rebate | H20: 0
B22: Gross Return Assumption | D22: 0.06
D24: Gross | F24: Net of Annual Product Fees | H24: Ned of Annual Advice Fees
B25: Monthly Net Rate | D25: =(1+D22)^(1/12)-1 -> 0.004867550565
F26: ='EAC CALC AND OUTPUT'!M7 -> 0.06082702838 | H26: ='EAC CALC AND OUTPUT'!O7 -> 0.06898418062
B27: Fund BuildUp | F27: =(1+F26)^(1/12)-1 -> 0.004932861646 | H27: =(1+H26)^(1/12)-1 -> 0.005574549768
C28: Gross Recurring Investment | D28: Gross Fund | E28: Net monthly growth rate after admin fee | F28: Funf Net of Admin Fees | H28: Fund Net of IFA Fees
B29: Gross Amount | D29: =D9 -> 20000 | F29: =D29 -> 20000 | H29: =F29 -> 20000
B30: Fund end of Month | D30: 0 | F30: =F29*(1-H7) -> 20000 | H30: =H29*(1-F7) -> 20000
B31: 1 | C31: =$D$9 -> 20000 | D31: =D30*(1+$D$25)+C32 -> 20000 | F31: =0*F30*(1+E31)+C31*(1-$J$7) ->  | H31: =0*H30*(1+$H$27)*(1-$D$13/12)+C31*(1-$K$7) -> 20000
B32: 2 | C32: =$D$9 -> 20000 | D32: 40097.35101 | F32: =F31*(1+E32)+C32*(1-$J$7) ->  | H32: =H31*(1+$H$27)*(1-$D$13/12)+C32*(1-$K$7) -> 40111.491
B33: 3 | C33: 20000 | D33: 60292.52689 | H33: 60335.0945
B34: 4 | C34: 20000 | D34: 80586.00382 | H34: 80671.43549
B35: 5 | C35: 20000 | D35: 100978.2603 | H35: 101121.1424
B36: 6 | C36: 20000 | D36: 121469.7771 | H36: 121684.8473
B37: 7 | C37: 20000 | D37: 142061.0373 | H37: 142363.1855
B38: 8 | C38: 20000 | D38: 162752.5266 | H38: 163156.7962
B39: 9 | C39: 20000 | D39: 183544.7328 | H39: 184066.3218
B40: 10 | C40: 20000 | D40: 204438.146 | H40: 205092.4087
B41: 11 | C41: 20000 | D41: 225433.2591 | H41: 226235.7065
B42: 12 | C42: 20000 | D42: 246530.5668 | H42: 247496.8688
B43: 13 | C43: =C31*(1+$D$10) -> 20000 | D43: 267730.5668 | H43: 268876.5524
B44: 14 | C44: =C32*(1+$D$10) -> 20000 | D44: 289033.7589 | H44: 290375.4181
B45: 15 | C45: 20000 | D45: 310440.6453 | H45: 311994.1303
B46: 16 | C46: 20000 | D46: 331951.7309 | H46: 333733.3571
B47: 17 | C47: 20000 | D47: 353567.5227 | H47: 355593.7703
B48: 18 | C48: 20000 | D48: 375288.5305 | H48: 377576.0455
B49: 19 | C49: 20000 | D49: 397115.2664 | H49: 399680.862
B50: 20 | C50: 20000 | D50: 419048.2451 | H50: 421908.9028
B51: 21 | C51: 20000 | D51: 441087.9836 | H51: 444260.855
B52: 22 | C52: 20000 | D52: 463235.0016 | H52: 466737.4092
B53: 23 | C53: 20000 | D53: 485489.8214 | H53: 489339.2601
B54: 24 | C54: 20000 | D54: 507852.9677 | H54: 512067.1062
B55: 25 | C55: 20000 | D55: 530324.9677 | H55: 534921.6498
B56: 26 | C56: 20000 | D56: 552906.3513 | H56: 557903.5971
B57: 27 | C57: 20000 | D57: 575597.6509 | H57: 581013.6585
B58: 28 | C58: 20000 | D58: 598399.4016 | H58: 604252.5481
B59: 29 | C59: 20000 | D59: 621312.1409 | H59: 627620.984
B60: 30 | C60: 20000 | D60: 644336.4092 | H60: 651119.6884
B61: 31 | C61: 20000 | D61: 667472.7492 | H61: 674749.3875
B62: 32 | C62: 20000 | D62: 690721.7066 | H62: 698510.8115
B63: 33 | C63: 20000 | D63: 714083.8294 | H63: 722404.6948
B64: 34 | C64: 20000 | D64: 737559.6686 | H64: 746431.7757
B65: 35 | C65: 20000 | D65: 761149.7776 | H65: 770592.7968
B66: 36 | C66: 20000 | D66: 784854.7126 | H66: 794888.5047
B67: 37 | C67: 20000 | D67: 808675.0326 | H67: 819319.6502
B68: 38 | C68: 20000 | D68: 832611.2992 | H68: 843886.9884
B69: 39 | C69: 20000 | D69: 856664.0768 | H69: 868591.2784
B70: 40 | C70: 20000 | D70: 880833.9325 | H70: 893433.2837
B71: 41 | C71: 20000 | D71: 905121.4362 | H71: 918413.772
B72: 42 | C72: 20000 | D72: 929527.1606 | H72: 943533.5153
B73: 43 | C73: 20000 | D73: 954051.681 | H73: 968793.2899
B74: 44 | C74: 20000 | D74: 978695.5758 | H74: 994193.8763
B75: 45 | C75: 20000 | D75: 1003459.426 | H75: 1019736.06
B76: 46 | C76: 20000 | D76: 1028343.816 | H76: 1045420.629
B77: 47 | C77: 20000 | D77: 1053349.331 | H77: 1071248.378
B78: 48 | C78: 20000 | D78: 1078476.562 | H78: 1097220.106
B79: 49 | C79: 20000 | D79: 1103726.101 | H79: 1123336.614
B80: 50 | C80: 20000 | D80: 1129098.544 | H80: 1149598.71
B81: 51 | C81: 20000 | D81: 1154594.488 | H81: 1176007.205
B82: 52 | C82: 20000 | D82: 1180214.535 | H82: 1202562.915
B83: 53 | C83: 20000 | D83: 1205959.289 | H83: 1229266.662
B84: 54 | C84: 20000 | D84: 1231829.357 | H84: 1256119.271
B85: 55 | C85: 20000 | D85: 1257825.349 | H85: 1283121.57
B86: 56 | C86: 20000 | D86: 1283947.877 | H86: 1310274.395
B87: 57 | C87: 20000 | D87: 1310197.558 | H87: 1337578.585
B88: 58 | C88: 20000 | D88: 1336575.011 | H88: 1365034.983
B89: 59 | C89: 20000 | D89: 1363080.858 | H89: 1392644.439
B90: 60 | C90: 20000 | D90: 1389715.723 | H90: 1420407.804
B91: 61 | C91: 20000 | D91: 1416480.234 | H91: 1448325.938
B92: 62 | C92: 20000 | D92: 1443375.023 | H92: 1476399.703
B93: 63 | C93: 20000 | D93: 1470400.724 | H93: 1504629.967
B94: 64 | C94: 20000 | D94: 1497557.974 | H94: 1533017.602
B95: 65 | C95: 20000 | D95: =D94*(1+$D$25)+C96 -> 1524847.413 | H95: 1561563.485
B96: 66 | C96: 20000 | D96: 1552269.685 | F96: =F95*(1+E96)+C96*(1-$J$7) ->  | H96: =H95*(1+$H$27)*(1-$D$13/12)+C96*(1-$K$7) -> 1590268.498
B97: 67 | C97: 20000 | D97: 1579825.437 | H97: 1619133.529
B98: 68 | C98: 20000 | D98: 1607515.317 | H98: 1648159.469
B99: 69 | C99: 20000 | D99: 1635339.979 | H99: 1677347.216
B100: 70 | C100: 20000 | D100: 1663300.079 | H100: 1706697.672
B101: 71 | C101: 20000 | D101: 1691396.276 | H101: 1736211.743
B102: 72 | C102: 20000 | D102: 1719629.233 | H102: 1765890.342
B103: 73 | C103: 20000 | D103: 1747999.615 | H103: 1795734.385
B104: 74 | C104: 20000 | D104: 1776508.092 | H104: 1825744.796
B105: 75 | C105: 20000 | D105: 1805155.335 | H105: 1855922.501
B106: 76 | C106: 20000 | D106: 1833942.02 | H106: 1886268.434
B107: 77 | C107: 20000 | D107: 1862868.825 | H107: 1916783.531
B108: 78 | C108: =C96*(1+$D$10) -> 20000 | D108: 1891936.433 | H108: 1947468.736
B109: 79 | C109: 20000 | D109: 1921145.53 | H109: 1978324.997
B110: 80 | C110: 20000 | D110: 1950496.803 | H110: 2009353.268
B111: 81 | C111: 20000 | D111: 1979990.944 | H111: 2040554.508
B112: 82 | C112: 20000 | D112: 2009628.65 | H112: 2071929.681
B113: 83 | C113: 20000 | D113: 2039410.619 | H113: 2103479.756
B114: 84 | C114: 20000 | D114: 2069337.554 | H114: 2135205.709
B115: 85 | C115: 20000 | D115: 2099410.159 | H115: 2167108.519
B116: 86 | C116: 20000 | D116: 2129629.144 | H116: 2199189.173
B117: 87 | C117: 20000 | D117: 2159995.222 | H117: 2231448.663
B118: 88 | C118: 20000 | D118: 2190509.108 | H118: 2263887.985
B119: 89 | C119: 20000 | D119: 2221171.521 | H119: 2296508.141
B120: 90 | C120: 20000 | D120: 2251983.186 | H120: 2329310.14
B121: 91 | C121: 20000 | D121: 2282944.828 | H121: 2362294.995
B122: 92 | C122: 20000 | D122: 2314057.178 | H122: 2395463.726
B123: 93 | C123: 20000 | D123: 2345320.968 | H123: 2428817.358
B124: 94 | C124: 20000 | D124: 2376736.936 | H124: 2462356.921
B125: 95 | C125: 20000 | D125: 2408305.823 | H125: 2496083.452
B126: 96 | C126: 20000 | D126: 2440028.374 | H126: 2529997.994
B127: 97 | C127: 20000 | D127: 2471905.335 | H127: 2564101.593
B128: 98 | C128: 20000 | D128: 2503937.46 | H128: 2598395.305
B129: 99 | C129: 20000 | D129: 2536125.502 | H129: 2632880.189
B130: 100 | C130: 20000 | D130: 2568470.221 | H130: 2667557.311
B131: 101 | C131: 20000 | D131: 2600972.38 | H131: 2702427.742
B132: 102 | C132: 20000 | D132: 2633632.744 | H132: 2737492.56
B133: 103 | C133: 20000 | D133: 2666452.085 | H133: 2772752.848
B134: 104 | C134: 20000 | D134: 2699431.175 | H134: 2808209.697
B135: 105 | C135: 20000 | D135: 2732570.793 | H135: 2843864.202
B136: 106 | C136: 20000 | D136: 2765871.719 | H136: 2879717.464
B137: 107 | C137: 20000 | D137: 2799334.74 | H137: 2915770.593
B138: 108 | C138: 20000 | D138: 2832960.643 | H138: 2952024.701
B139: 109 | C139: 20000 | D139: 2866750.222 | H139: 2988480.91
B140: 110 | C140: 20000 | D140: 2900704.274 | H140: 3025140.345
B141: 111 | C141: 20000 | D141: 2934823.599 | H141: 3062004.141
B142: 112 | C142: 20000 | D142: 2969109.001 | H142: 3099073.435
B143: 113 | C143: 20000 | D143: 3003561.289 | H143: 3136349.374
B144: 114 | C144: 20000 | D144: 3038181.276 | H144: 3173833.11
B145: 115 | C145: 20000 | D145: 3072969.777 | H145: 3211525.8
B146: 116 | C146: 20000 | D146: 3107927.612 | H146: 3249428.611
B147: 117 | C147: 20000 | D147: 3143055.607 | H147: 3287542.712
B148: 118 | C148: 20000 | D148: 3178354.589 | H148: 3325869.283
B149: 119 | C149: 20000 | D149: 3213825.391 | H149: 3364409.507
B150: 120 | C150: 20000 | D150: 3249468.849 | H150: 3403164.575
B151: 121 | C151: 20000 | D151: 3285285.802 | H151: 3442135.685
B152: 122 | C152: 20000 | D152: 3321277.097 | H152: 3481324.042
B153: 123 | C153: 20000 | D153: 3357443.581 | H153: 3520730.856
B154: 124 | C154: 20000 | D154: 3393786.108 | H154: 3560357.345
B155: 125 | C155: 20000 | D155: 3430305.533 | H155: 3600204.735
B156: 126 | C156: 20000 | D156: 3467002.719 | H156: 3640274.255
B157: 127 | C157: 20000 | D157: 3503878.53 | H157: 3680567.145
B158: 128 | C158: 20000 | D158: 3540933.836 | H158: 3721084.65
B159: 129 | C159: 20000 | D159: =D158*(1+$D$25)+C160 -> 3578169.51 | H159: 3761828.021
B160: 130 | C160: 20000 | D160: 3615586.431 | F160: =F159*(1+E160)+C160*(1-$J$7) ->  | H160: =H159*(1+$H$27)*(1-$D$13/12)+C160*(1-$K$7) -> 3802798.519
B161: 131 | C161: 20000 | D161: 3653185.481 | H161: 3843997.409
B162: 132 | C162: 20000 | D162: 3690967.546 | H162: 3885425.963
B163: 133 | C163: 20000 | D163: 3728933.517 | H163: 3927085.464
B164: 134 | C164: 20000 | D164: 3767084.29 | H164: 3968977.197
B165: 135 | C165: 20000 | D165: 3805420.763 | H165: 4011102.458
B166: 136 | C166: 20000 | D166: 3843943.841 | H166: 4053462.548
B167: 137 | C167: 20000 | D167: 3882654.432 | H167: 4096058.777
B168: 138 | C168: 20000 | D168: 3921553.449 | H168: 4138892.461
B169: 139 | C169: 20000 | D169: 3960641.809 | H169: 4181964.923
B170: 140 | C170: 20000 | D170: 3999920.433 | H170: 4225277.494
B171: 141 | C171: 20000 | D171: 4039390.248 | H171: 4268831.514
B172: 142 | C172: =C160*(1+$D$10) -> 20000 | D172: 4079052.184 | H172: 4312628.328
B173: 143 | C173: 20000 | D173: 4118907.177 | H173: 4356669.289
B174: 144 | C174: 20000 | D174: 4158956.166 | H174: 4400955.759
B175: 145 | C175: 20000 | D175: 4199200.095 | H175: 4445489.105
B176: 146 | C176: 20000 | D176: 4239639.914 | H176: 4490270.706
B177: 147 | C177: 20000 | D177: 4280276.576 | H177: 4535301.943
B178: 148 | C178: 20000 | D178: 4321111.038 | H178: 4580584.21
B179: 149 | C179: 20000 | D179: 4362144.265 | H179: 4626118.904
B180: 150 | C180: 20000 | D180: 4403377.223 | H180: 4671907.434
B181: 151 | C181: 20000 | D181: 4444810.884 | H181: 4717951.215
B182: 152 | C182: 20000 | D182: 4486446.226 | H182: 4764251.669
B183: 153 | C183: 20000 | D183: 4528284.23 | H183: 4810810.227
B184: 154 | C184: 20000 | D184: 4570325.882 | H184: 4857628.328
B185: 155 | C185: 20000 | D185: 4612572.174 | H185: 4904707.419
B186: 156 | C186: 20000 | D186: 4655024.103 | H186: 4952048.954
B187: 157 | C187: 20000 | D187: 4697682.668 | H187: 4999654.398
B188: 158 | C188: 20000 | D188: 4740548.876 | H188: 5047525.22
B189: 159 | C189: 20000 | D189: 4783623.737 | H189: 5095662.9
B190: 160 | C190: 20000 | D190: 4826908.268 | H190: 5144068.927
B191: 161 | C191: 20000 | D191: 4870403.488 | H191: 5192744.795
B192: 162 | C192: 20000 | D192: 4914110.423 | H192: 5241692.009
B193: 163 | C193: 20000 | D193: 4958030.104 | H193: 5290912.082
B194: 164 | C194: 20000 | D194: 5002163.566 | H194: 5340406.535
B195: 165 | C195: 20000 | D195: 5046511.85 | H195: 5390176.897
B196: 166 | C196: 20000 | D196: 5091076.002 | H196: 5440224.707
B197: 167 | C197: 20000 | D197: 5135857.072 | H197: 5490551.51
B198: 168 | C198: 20000 | D198: 5180856.116 | H198: 5541158.863
B199: 169 | C199: 20000 | D199: 5226074.195 | H199: 5592048.328
B200: 170 | C200: 20000 | D200: 5271512.375 | H200: 5643221.48
B201: 171 | C201: 20000 | D201: 5317171.728 | H201: 5694679.899
B202: 172 | C202: 20000 | D202: 5363053.331 | H202: 5746425.176
B203: 173 | C203: 20000 | D203: 5409158.264 | H203: 5798458.909
B204: 174 | C204: 20000 | D204: 5455487.615 | H204: 5850782.707
B205: 175 | C205: 20000 | D205: 5502042.477 | H205: 5903398.186
B206: 176 | C206: 20000 | D206: 5548823.947 | H206: 5956306.973
B207: 177 | C207: 20000 | D207: 5595833.128 | H207: 6009510.703
B208: 178 | C208: 20000 | D208: 5643071.129 | H208: 6063011.019
... 62 more rows

Sheet EAC CALC AND OUTPUT (hidden)
B3: Year | C3: Product Costs | D3: Advice | E3: TER | F3: Total | I3: Values | J3: Gross | K3: After Product Costs | L3: After Advice Costs | N3: Impact PC | P3: Impact Advice
B4: 1 | I4: 1 | J4: =Input!D42 -> 246530.5668 | K4: =Input!F42 ->  | L4: =Input!H42 -> 247496.8688 | M4: 0.08650875001 | N4: =J4-K4 ->  | O4: 0.1486718693 | P4: =J4-L4 -> -966.3019144
B5: 3 | I5: 3 | J5: =Input!D66 -> 784854.7126 | K5: =Input!F66 ->  | L5: =Input!H66 -> 794888.5047 | M5: 0.06810711844 | N5: =J5-K5 ->  | O5: 0.09090384394 | P5: =J5-L5 -> -10033.79211
B6: 5 | I6: 5 | J6: =Input!D90 -> 1389715.723 | K6: =Input!F90 ->  | L6: =Input!H90 -> 1420407.804 | M6: 0.06471355828 | N6: =J6-K6 ->  | O6: 0.08046146036 | P6: =J6-L6 -> -30692.08158
B7: 20 | I7: 20 | J7: =Input!D270 -> 9048772.651 | K7: =Input!F270 ->  | L7: =Input!H270 -> 10034419.67 | M7: 0.06082702838 | N7: =J7-K7 ->  | O7: 0.06898418062 | P7: =J7-L7 -> -985647.0236
I9: Rec
I11: EAC | J11: 1 | K11: 3 | L11: 5 | M11: 20
I12: Product Costs | J12: =M4-6% -> 0.02650875001 | K12: =M5-6% -> 0.008107118439 | L12: =M6-6% -> 0.004713558277 | M12: =M7-6% -> 0.0008270283788
I13: Advice Costs | J13: =O4-6% -> 0.08867186934 | K13: =O5-6% -> 0.03090384394 | L13: =O6-6% -> 0.02046146036 | M13: =O7-6% -> 0.008984180619
I14: TER | J14: =Input!$D$20 -> 0 | K14: =Input!$D$20 -> 0 | L14: =Input!$D$20 -> 0 | M14: =Input!$D$20 -> 0
I15: Total EAC | J15: =SUM(J12:J14) -> 0.1151806194 | K15: =SUM(K12:K14) -> 0.03901096238 | L15: =SUM(L12:L14) -> 0.02517501864 | M15: =SUM(M12:M14) -> 0.009811208998
F16: On the first | G16: 250000
F17: The next | G17: 500000
D20: ='Lump Sum'!D39 -> 0
F26: ='EAC CALC AND OUTPUT'!M4 -> 0.08650875001

Sheet Recurring Cash Flows (All Fees) (hidden)
I1: Growth | J1: TER | T1: Admin Fees | U1: On | V1: Advisor Fees | W1: On | X1: Fund Fees | Y1: On
A2: Date | B2: =TODAY() -> 2026-04-24 | E2: =Recurring!C50 -> 0 | F2: =Recurring!C49 -> 0 | G2: =Recurring!#REF! ->  | I2: =Recurring!C62 -> 0.06 | J2: =Recurring!D43 -> 0 | Q2: =Recurring!C59 -> 0
A3: CashFlow Dates | B3: Year | C3: Month | D3: Initial Investment | E3: Advisor Initial Fee | F3: Admin Initial Fee | G3: Fund Initial Fee | H3: Net Inv Amount | I3: Growth Before AMF | J3: AMF | K3: Before Fees | L3: Admin Fee (Min) | M3: Admin Fee(Max) | N3: Admin Fee (actual) | O3: Fund Access Fee | P3: Wealth Service | Q3: Ongoing Advisor Fees | R3: Fund After | U3: Portfolio Value | V3: g
A4: =B2+1-1 -> 2026-04-24 | B4: =ROUNDDOWN((C4-1)/12,0) -> 0 | C4: 1 | D4: ='Lump Sum'!C29+Recurring!C29 -> 0 | E4: =IF(Advisor = "On",-1*E$2*$D4,0) -> 0 | F4: =IF(Admin = "On",-1*F$2*$D4,0) -> 0 | G4: =IF(Fund = "On",-1*G$2*$D4,0) ->  | H4: =SUM(D4:G4) ->  | I4: =H4*(1+$I$2)^(YEARFRAC(A4,A5,3)) ->  | J4: =IF(Fund="On",-1*$J$2*I4/12,0) ->  | K4: =SUM(I4:J4) ->  | N4: =IF(Admin="On",-1*TieredValue(K4,Recurring!$C$58:$D$62)/12,0) ->  | Q4: =IF(Advisor = "On",-1*Q$2*$K4/12,0) ->  | R4: =SUM(K4,N4:Q4) ->  | T4: 1 Year | U4: =R15 ->  | V4: =$I$2 -> 0.06
A5: =DATE(YEAR(A4+1),MONTH(A4+1)+1,DAY(A4+1))-1 -> 2026-05-24 | B5: =ROUNDDOWN((C5-1)/12,0) -> 0 | C5: 2 | D5: =Recurring!$C$29 -> 0 | E5: 0 | F5: 0 | H5: =R4+SUM(D5:G5) ->  | I5: =H5*(1+$I$2)^(YEARFRAC(A5,A6,3)) ->  | K5: =SUM(I5:J5) ->  | N5: =IF(Admin="On",-1*TieredValue(K5,Recurring!$C$58:$D$62)/12,0) ->  | R5: =SUM(K5,N5:Q5) ->  | T5: 3 Year | U5: =R39 ->  | V5: =$I$2 -> 0.06
A6: =DATE(YEAR(A5+1),MONTH(A5+1)+1,DAY(A5+1))-1 -> 2026-06-24 | B6: 0 | C6: 3 | D6: =Recurring!$C$29 -> 0 | E6: 0 | F6: 0 | H6: =R5+SUM(D6:G6) ->  | N6: =IF(Admin="On",-1*TieredValue(K6,Recurring!$C$58:$D$62)/12,0) ->  | T6: 5 Year | U6: =R63 ->  | V6: =$I$2 -> 0.06
A7: 2026-07-24 | B7: 0 | C7: 4 | D7: =Recurring!$C$29 -> 0 | E7: 0 | F7: 0 | N7: =IF(Admin="On",-1*TieredValue(K7,Recurring!$C$58:$D$62)/12,0) ->  | T7: 10 Year | U7: =R135 ->  | V7: =$I$2 -> 0.06
A8: 2026-08-24 | B8: 0 | C8: 5 | D8: =Recurring!$C$29 -> 0 | E8: 0 | F8: 0 | N8: =IF(Admin="On",-1*TieredValue(K8,Recurring!$C$58:$D$62)/12,0) -> 
A9: 2026-09-24 | B9: 0 | C9: 6 | D9: =Recurring!$C$29 -> 0 | E9: 0 | F9: 0 | N9: =IF(Admin="On",-1*TieredValue(K9,Recurring!$C$58:$D$62)/12,0) -> 
A10: 2026-10-24 | B10: 0 | C10: 7 | D10: =Recurring!$C$29 -> 0 | E10: 0 | F10: 0 | N10: =IF(Admin="On",-1*TieredValue(K10,Recurring!$C$58:$D$62)/12,0) -> 
A11: 2026-11-24 | B11: 0 | C11: 8 | D11: =Recurring!$C$29 -> 0 | E11: 0 | F11: 0 | N11: =IF(Admin="On",-1*TieredValue(K11,Recurring!$C$58:$D$62)/12,0) -> 
A12: 2026-12-24 | B12: 0 | C12: 9 | D12: =Recurring!$C$29 -> 0 | E12: 0 | F12: 0 | N12: =IF(Admin="On",-1*TieredValue(K12,Recurring!$C$58:$D$62)/12,0) -> 
A13: 2027-01-24 | B13: 0 | C13: 10 | D13: =Recurring!$C$29 -> 0 | E13: 0 | F13: 0 | N13: =IF(Admin="On",-1*TieredValue(K13,Recurring!$C$58:$D$62)/12,0) -> 
A14: 2027-02-24 | B14: 0 | C14: 11 | D14: =Recurring!$C$29 -> 0 | E14: 0 | F14: 0 | N14: =IF(Admin="On",-1*TieredValue(K14,Recurring!$C$58:$D$62)/12,0) -> 
A15: 2027-03-24 | B15: 0 | C15: 12 | D15: =Recurring!$C$29 -> 0 | E15: 0 | F15: 0 | N15: =IF(Admin="On",-1*TieredValue(K15,Recurring!$C$58:$D$62)/12,0) -> 
A16: 2027-04-24 | B16: 1 | C16: 13 | D16: =Recurring!$C$29 -> 0 | E16: 0 | F16: 0 | N16: =IF(Admin="On",-1*TieredValue(K16,Recurring!$C$58:$D$62)/12,0) -> 
A17: 2027-05-24 | B17: 1 | C17: 14 | D17: =Recurring!$C$29 -> 0 | E17: 0 | F17: 0 | N17: =IF(Admin="On",-1*TieredValue(K17,Recurring!$C$58:$D$62)/12,0) -> 
A18: 2027-06-24 | B18: 1 | C18: 15 | D18: =Recurring!$C$29 -> 0 | E18: 0 | F18: 0 | N18: =IF(Admin="On",-1*TieredValue(K18,Recurring!$C$58:$D$62)/12,0) -> 
A19: 2027-07-24 | B19: 1 | C19: 16 | D19: =Recurring!$C$29 -> 0 | E19: 0 | F19: 0 | N19: =IF(Admin="On",-1*TieredValue(K19,Recurring!$C$58:$D$62)/12,0) -> 
A20: 2027-08-24 | B20: 1 | C20: 17 | D20: =Recurring!$C$29 -> 0 | E20: 0 | F20: 0 | N20: =IF(Admin="On",-1*TieredValue(K20,Recurring!$C$58:$D$62)/12,0) -> 
A21: 2027-09-24 | B21: 1 | C21: 18 | D21: =Recurring!$C$29 -> 0 | E21: 0 | F21: 0 | N21: =IF(Admin="On",-1*TieredValue(K21,Recurring!$C$58:$D$62)/12,0) -> 
A22: 2027-10-24 | B22: 1 | C22: 19 | D22: =Recurring!$C$29 -> 0 | E22: 0 | F22: 0 | N22: =IF(Admin="On",-1*TieredValue(K22,Recurring!$C$58:$D$62)/12,0) -> 
A23: 2027-11-24 | B23: 1 | C23: 20 | D23: =Recurring!$C$29 -> 0 | E23: 0 | F23: 0 | N23: =IF(Admin="On",-1*TieredValue(K23,Recurring!$C$58:$D$62)/12,0) -> 
A24: 2027-12-24 | B24: 1 | C24: 21 | D24: =Recurring!$C$29 -> 0 | E24: 0 | F24: 0 | N24: =IF(Admin="On",-1*TieredValue(K24,Recurring!$C$58:$D$62)/12,0) -> 
A25: 2028-01-24 | B25: 1 | C25: 22 | D25: =Recurring!$C$29 -> 0 | E25: 0 | F25: 0 | N25: =IF(Admin="On",-1*TieredValue(K25,Recurring!$C$58:$D$62)/12,0) -> 
A26: 2028-02-24 | B26: 1 | C26: 23 | D26: =Recurring!$C$29 -> 0 | E26: 0 | F26: 0 | N26: =IF(Admin="On",-1*TieredValue(K26,Recurring!$C$58:$D$62)/12,0) -> 
A27: 2028-03-24 | B27: 1 | C27: 24 | D27: =Recurring!$C$29 -> 0 | E27: 0 | F27: 0 | N27: =IF(Admin="On",-1*TieredValue(K27,Recurring!$C$58:$D$62)/12,0) -> 
A28: 2028-04-24 | B28: 2 | C28: 25 | D28: =Recurring!$C$29 -> 0 | E28: 0 | F28: 0 | N28: =IF(Admin="On",-1*TieredValue(K28,Recurring!$C$58:$D$62)/12,0) -> 
A29: 2028-05-24 | B29: 2 | C29: 26 | D29: =Recurring!$C$29 -> 0 | E29: 0 | F29: 0 | N29: =IF(Admin="On",-1*TieredValue(K29,Recurring!$C$58:$D$62)/12,0) -> 
A30: 2028-06-24 | B30: 2 | C30: 27 | D30: =Recurring!$C$29 -> 0 | E30: 0 | F30: 0 | N30: =IF(Admin="On",-1*TieredValue(K30,Recurring!$C$58:$D$62)/12,0) -> 
A31: 2028-07-24 | B31: 2 | C31: 28 | D31: =Recurring!$C$29 -> 0 | E31: 0 | F31: 0 | N31: =IF(Admin="On",-1*TieredValue(K31,Recurring!$C$58:$D$62)/12,0) -> 
A32: 2028-08-24 | B32: 2 | C32: 29 | D32: =Recurring!$C$29 -> 0 | E32: 0 | F32: 0 | N32: =IF(Admin="On",-1*TieredValue(K32,Recurring!$C$58:$D$62)/12,0) -> 
A33: 2028-09-24 | B33: 2 | C33: 30 | D33: =Recurring!$C$29 -> 0 | E33: 0 | F33: 0 | N33: =IF(Admin="On",-1*TieredValue(K33,Recurring!$C$58:$D$62)/12,0) -> 
A34: 2028-10-24 | B34: 2 | C34: 31 | D34: =Recurring!$C$29 -> 0 | E34: 0 | F34: 0 | N34: =IF(Admin="On",-1*TieredValue(K34,Recurring!$C$58:$D$62)/12,0) -> 
A35: 2028-11-24 | B35: 2 | C35: 32 | D35: =Recurring!$C$29 -> 0 | E35: 0 | F35: 0 | N35: =IF(Admin="On",-1*TieredValue(K35,Recurring!$C$58:$D$62)/12,0) -> 
A36: 2028-12-24 | B36: 2 | C36: 33 | D36: =Recurring!$C$29 -> 0 | E36: 0 | F36: 0 | N36: =IF(Admin="On",-1*TieredValue(K36,Recurring!$C$58:$D$62)/12,0) -> 
A37: 2029-01-24 | B37: 2 | C37: 34 | D37: =Recurring!$C$29 -> 0 | E37: 0 | F37: 0 | N37: =IF(Admin="On",-1*TieredValue(K37,Recurring!$C$58:$D$62)/12,0) -> 
A38: 2029-02-24 | B38: 2 | C38: 35 | D38: =Recurring!$C$29 -> 0 | E38: 0 | F38: 0 | N38: =IF(Admin="On",-1*TieredValue(K38,Recurring!$C$58:$D$62)/12,0) -> 
A39: 2029-03-24 | B39: 2 | C39: 36 | D39: =Recurring!$C$29 -> 0 | E39: 0 | F39: 0 | N39: =IF(Admin="On",-1*TieredValue(K39,Recurring!$C$58:$D$62)/12,0) -> 
A40: 2029-04-24 | B40: 3 | C40: 37 | D40: =Recurring!$C$29 -> 0 | E40: 0 | F40: 0 | N40: =IF(Admin="On",-1*TieredValue(K40,Recurring!$C$58:$D$62)/12,0) -> 
A41: 2029-05-24 | B41: 3 | C41: 38 | D41: =Recurring!$C$29 -> 0 | E41: 0 | F41: 0 | N41: =IF(Admin="On",-1*TieredValue(K41,Recurring!$C$58:$D$62)/12,0) -> 
A42: 2029-06-24 | B42: 3 | C42: 39 | D42: =Recurring!$C$29 -> 0 | E42: 0 | F42: 0 | N42: =IF(Admin="On",-1*TieredValue(K42,Recurring!$C$58:$D$62)/12,0) -> 
A43: 2029-07-24 | B43: 3 | C43: 40 | D43: =Recurring!$C$29 -> 0 | E43: 0 | F43: 0 | N43: =IF(Admin="On",-1*TieredValue(K43,Recurring!$C$58:$D$62)/12,0) -> 
A44: 2029-08-24 | B44: 3 | C44: 41 | D44: =Recurring!$C$29 -> 0 | E44: 0 | F44: 0 | N44: =IF(Admin="On",-1*TieredValue(K44,Recurring!$C$58:$D$62)/12,0) -> 
A45: 2029-09-24 | B45: 3 | C45: 42 | D45: =Recurring!$C$29 -> 0 | E45: 0 | F45: 0 | N45: =IF(Admin="On",-1*TieredValue(K45,Recurring!$C$58:$D$62)/12,0) -> 
A46: 2029-10-24 | B46: 3 | C46: 43 | D46: =Recurring!$C$29 -> 0 | E46: 0 | F46: 0 | H46: =R45+SUM(D46:G46) ->  | N46: =IF(Admin="On",-1*TieredValue(K46,Recurring!$C$58:$D$62)/12,0) -> 
A47: 2029-11-24 | B47: 3 | C47: 44 | D47: =Recurring!$C$29 -> 0 | E47: 0 | F47: 0 | N47: =IF(Admin="On",-1*TieredValue(K47,Recurring!$C$58:$D$62)/12,0) -> 
A48: 2029-12-24 | B48: 3 | C48: 45 | D48: =Recurring!$C$29 -> 0 | E48: 0 | F48: 0 | N48: =IF(Admin="On",-1*TieredValue(K48,Recurring!$C$58:$D$62)/12,0) -> 
A49: 2030-01-24 | B49: 3 | C49: 46 | D49: =Recurring!$C$29 -> 0 | E49: 0 | F49: 0 | N49: =IF(Admin="On",-1*TieredValue(K49,Recurring!$C$58:$D$62)/12,0) -> 
A50: 2030-02-24 | B50: 3 | C50: 47 | D50: =Recurring!$C$29 -> 0 | E50: 0 | F50: 0 | N50: =IF(Admin="On",-1*TieredValue(K50,Recurring!$C$58:$D$62)/12,0) -> 
A51: 2030-03-24 | B51: 3 | C51: 48 | D51: =Recurring!$C$29 -> 0 | E51: 0 | F51: 0 | N51: =IF(Admin="On",-1*TieredValue(K51,Recurring!$C$58:$D$62)/12,0) -> 
A52: 2030-04-24 | B52: 4 | C52: 49 | D52: =Recurring!$C$29 -> 0 | E52: 0 | F52: 0 | N52: =IF(Admin="On",-1*TieredValue(K52,Recurring!$C$58:$D$62)/12,0) -> 
A53: 2030-05-24 | B53: 4 | C53: 50 | D53: =Recurring!$C$29 -> 0 | E53: 0 | F53: 0 | N53: =IF(Admin="On",-1*TieredValue(K53,Recurring!$C$58:$D$62)/12,0) -> 
A54: 2030-06-24 | B54: 4 | C54: 51 | D54: =Recurring!$C$29 -> 0 | E54: 0 | F54: 0 | N54: =IF(Admin="On",-1*TieredValue(K54,Recurring!$C$58:$D$62)/12,0) -> 
A55: 2030-07-24 | B55: 4 | C55: 52 | D55: =Recurring!$C$29 -> 0 | E55: 0 | F55: 0 | N55: =IF(Admin="On",-1*TieredValue(K55,Recurring!$C$58:$D$62)/12,0) -> 
A56: 2030-08-24 | B56: 4 | C56: 53 | D56: =Recurring!$C$29 -> 0 | E56: 0 | F56: 0 | N56: =IF(Admin="On",-1*TieredValue(K56,Recurring!$C$58:$D$62)/12,0) -> 
A57: 2030-09-24 | B57: 4 | C57: 54 | D57: =Recurring!$C$29 -> 0 | E57: 0 | F57: 0 | H57: =R56+SUM(D57:G57) ->  | N57: =IF(Admin="On",-1*TieredValue(K57,Recurring!$C$58:$D$62)/12,0) -> 
A58: 2030-10-24 | B58: 4 | C58: 55 | D58: =Recurring!$C$29 -> 0 | E58: 0 | F58: 0 | N58: =IF(Admin="On",-1*TieredValue(K58,Recurring!$C$58:$D$62)/12,0) -> 
A59: 2030-11-24 | B59: 4 | C59: 56 | D59: =Recurring!$C$29 -> 0 | E59: 0 | F59: 0 | N59: =IF(Admin="On",-1*TieredValue(K59,Recurring!$C$58:$D$62)/12,0) -> 
A60: 2030-12-24 | B60: 4 | C60: 57 | D60: =Recurring!$C$29 -> 0 | E60: 0 | F60: 0 | N60: =IF(Admin="On",-1*TieredValue(K60,Recurring!$C$58:$D$62)/12,0) -> 
A61: 2031-01-24 | B61: 4 | C61: 58 | D61: =Recurring!$C$29 -> 0 | E61: 0 | F61: 0 | N61: =IF(Admin="On",-1*TieredValue(K61,Recurring!$C$58:$D$62)/12,0) -> 
A62: 2031-02-24 | B62: 4 | C62: 59 | D62: =Recurring!$C$29 -> 0 | E62: 0 | F62: 0 | N62: =IF(Admin="On",-1*TieredValue(K62,Recurring!$C$58:$D$62)/12,0) -> 
A63: 2031-03-24 | B63: 4 | C63: 60 | D63: =Recurring!$C$29 -> 0 | E63: 0 | F63: 0 | N63: =IF(Admin="On",-1*TieredValue(K63,Recurring!$C$58:$D$62)/12,0) -> 
A64: 2031-04-24 | B64: 5 | C64: 61 | D64: =Recurring!$C$29 -> 0 | E64: 0 | F64: 0 | N64: =IF(Admin="On",-1*TieredValue(K64,Recurring!$C$58:$D$62)/12,0) -> 
A65: 2031-05-24 | B65: 5 | C65: 62 | D65: =Recurring!$C$29 -> 0 | E65: 0 | F65: 0 | N65: =IF(Admin="On",-1*TieredValue(K65,Recurring!$C$58:$D$62)/12,0) -> 
A66: 2031-06-24 | B66: 5 | C66: 63 | D66: =Recurring!$C$29 -> 0 | E66: 0 | F66: 0 | N66: =IF(Admin="On",-1*TieredValue(K66,Recurring!$C$58:$D$62)/12,0) -> 
A67: 2031-07-24 | B67: 5 | C67: 64 | D67: =Recurring!$C$29 -> 0 | E67: 0 | F67: 0 | N67: =IF(Admin="On",-1*TieredValue(K67,Recurring!$C$58:$D$62)/12,0) -> 
A68: 2031-08-24 | B68: 5 | C68: 65 | D68: =Recurring!$C$29 -> 0 | E68: =IF(Advisor = "On",-1*E$2*$D68,0) -> 0 | F68: =IF(Admin = "On",-1*F$2*$D68,0) -> 0 | G68: =IF(Fund = "On",-1*G$2*$D68,0) ->  | J68: =IF(Fund="On",-1*$J$2*I68/12,0) ->  | N68: =IF(Admin="On",-1*TieredValue(K68,Recurring!$C$58:$D$62)/12,0) ->  | Q68: =IF(Advisor = "On",-1*Q$2*$K68/12,0) -> 
A69: 2031-09-24 | B69: =ROUNDDOWN((C69-1)/12,0) -> 5 | C69: 66 | D69: =Recurring!$C$29 -> 0 | E69: 0 | F69: 0 | I69: =H69*(1+$I$2)^(YEARFRAC(A69,A70,3)) ->  | K69: =SUM(I69:J69) ->  | N69: =IF(Admin="On",-1*TieredValue(K69,Recurring!$C$58:$D$62)/12,0) ->  | R69: =SUM(K69,N69:Q69) -> 
A70: =DATE(YEAR(A69+1),MONTH(A69+1)+1,DAY(A69+1))-1 -> 2031-10-24 | B70: 5 | C70: 67 | D70: =Recurring!$C$29 -> 0 | E70: 0 | F70: 0 | H70: =R69+SUM(D70:G70) ->  | N70: =IF(Admin="On",-1*TieredValue(K70,Recurring!$C$58:$D$62)/12,0) -> 
A71: 2031-11-24 | B71: 5 | C71: 68 | D71: =Recurring!$C$29 -> 0 | E71: 0 | F71: 0 | N71: =IF(Admin="On",-1*TieredValue(K71,Recurring!$C$58:$D$62)/12,0) -> 
A72: 2031-12-24 | B72: 5 | C72: 69 | D72: =Recurring!$C$29 -> 0 | E72: 0 | F72: 0 | N72: =IF(Admin="On",-1*TieredValue(K72,Recurring!$C$58:$D$62)/12,0) -> 
A73: 2032-01-24 | B73: 5 | C73: 70 | D73: =Recurring!$C$29 -> 0 | E73: 0 | F73: 0 | N73: =IF(Admin="On",-1*TieredValue(K73,Recurring!$C$58:$D$62)/12,0) -> 
A74: 2032-02-24 | B74: 5 | C74: 71 | D74: =Recurring!$C$29 -> 0 | E74: 0 | F74: 0 | N74: =IF(Admin="On",-1*TieredValue(K74,Recurring!$C$58:$D$62)/12,0) -> 
A75: 2032-03-24 | B75: 5 | C75: 72 | D75: =Recurring!$C$29 -> 0 | E75: 0 | F75: 0 | N75: =IF(Admin="On",-1*TieredValue(K75,Recurring!$C$58:$D$62)/12,0) -> 
A76: 2032-04-24 | B76: 6 | C76: 73 | D76: =Recurring!$C$29 -> 0 | E76: 0 | F76: 0 | N76: =IF(Admin="On",-1*TieredValue(K76,Recurring!$C$58:$D$62)/12,0) -> 
A77: 2032-05-24 | B77: 6 | C77: 74 | D77: =Recurring!$C$29 -> 0 | E77: 0 | F77: 0 | N77: =IF(Admin="On",-1*TieredValue(K77,Recurring!$C$58:$D$62)/12,0) -> 
A78: 2032-06-24 | B78: 6 | C78: 75 | D78: =Recurring!$C$29 -> 0 | E78: 0 | F78: 0 | N78: =IF(Admin="On",-1*TieredValue(K78,Recurring!$C$58:$D$62)/12,0) -> 
A79: 2032-07-24 | B79: 6 | C79: 76 | D79: =Recurring!$C$29 -> 0 | E79: 0 | F79: 0 | N79: =IF(Admin="On",-1*TieredValue(K79,Recurring!$C$58:$D$62)/12,0) -> 
A80: 2032-08-24 | B80: 6 | C80: 77 | D80: =Recurring!$C$29 -> 0 | E80: 0 | F80: 0 | N80: =IF(Admin="On",-1*TieredValue(K80,Recurring!$C$58:$D$62)/12,0) -> 
A81: 2032-09-24 | B81: 6 | C81: 78 | D81: =Recurring!$C$29 -> 0 | E81: 0 | F81: 0 | N81: =IF(Admin="On",-1*TieredValue(K81,Recurring!$C$58:$D$62)/12,0) -> 
A82: 2032-10-24 | B82: 6 | C82: 79 | D82: =Recurring!$C$29 -> 0 | E82: 0 | F82: 0 | N82: =IF(Admin="On",-1*TieredValue(K82,Recurring!$C$58:$D$62)/12,0) -> 
A83: 2032-11-24 | B83: 6 | C83: 80 | D83: =Recurring!$C$29 -> 0 | E83: 0 | F83: 0 | N83: =IF(Admin="On",-1*TieredValue(K83,Recurring!$C$58:$D$62)/12,0) -> 
A84: 2032-12-24 | B84: 6 | C84: 81 | D84: =Recurring!$C$29 -> 0 | E84: 0 | F84: 0 | N84: =IF(Admin="On",-1*TieredValue(K84,Recurring!$C$58:$D$62)/12,0) -> 
A85: 2033-01-24 | B85: 6 | C85: 82 | D85: =Recurring!$C$29 -> 0 | E85: 0 | F85: 0 | N85: =IF(Admin="On",-1*TieredValue(K85,Recurring!$C$58:$D$62)/12,0) -> 
A86: 2033-02-24 | B86: 6 | C86: 83 | D86: =Recurring!$C$29 -> 0 | E86: 0 | F86: 0 | N86: =IF(Admin="On",-1*TieredValue(K86,Recurring!$C$58:$D$62)/12,0) -> 
A87: 2033-03-24 | B87: 6 | C87: 84 | D87: =Recurring!$C$29 -> 0 | E87: 0 | F87: 0 | N87: =IF(Admin="On",-1*TieredValue(K87,Recurring!$C$58:$D$62)/12,0) -> 
A88: 2033-04-24 | B88: 7 | C88: 85 | D88: =Recurring!$C$29 -> 0 | E88: 0 | F88: 0 | N88: =IF(Admin="On",-1*TieredValue(K88,Recurring!$C$58:$D$62)/12,0) -> 
A89: 2033-05-24 | B89: 7 | C89: 86 | D89: =Recurring!$C$29 -> 0 | E89: 0 | F89: 0 | N89: =IF(Admin="On",-1*TieredValue(K89,Recurring!$C$58:$D$62)/12,0) -> 
A90: 2033-06-24 | B90: 7 | C90: 87 | D90: =Recurring!$C$29 -> 0 | E90: 0 | F90: 0 | N90: =IF(Admin="On",-1*TieredValue(K90,Recurring!$C$58:$D$62)/12,0) -> 
A91: 2033-07-24 | B91: 7 | C91: 88 | D91: =Recurring!$C$29 -> 0 | E91: 0 | F91: 0 | N91: =IF(Admin="On",-1*TieredValue(K91,Recurring!$C$58:$D$62)/12,0) -> 
A92: 2033-08-24 | B92: 7 | C92: 89 | D92: =Recurring!$C$29 -> 0 | E92: 0 | F92: 0 | N92: =IF(Admin="On",-1*TieredValue(K92,Recurring!$C$58:$D$62)/12,0) -> 
A93: 2033-09-24 | B93: 7 | C93: 90 | D93: =Recurring!$C$29 -> 0 | E93: 0 | F93: 0 | N93: =IF(Admin="On",-1*TieredValue(K93,Recurring!$C$58:$D$62)/12,0) -> 
A94: 2033-10-24 | B94: 7 | C94: 91 | D94: =Recurring!$C$29 -> 0 | E94: 0 | F94: 0 | N94: =IF(Admin="On",-1*TieredValue(K94,Recurring!$C$58:$D$62)/12,0) -> 
A95: 2033-11-24 | B95: 7 | C95: 92 | D95: =Recurring!$C$29 -> 0 | E95: 0 | F95: 0 | N95: =IF(Admin="On",-1*TieredValue(K95,Recurring!$C$58:$D$62)/12,0) -> 
A96: 2033-12-24 | B96: 7 | C96: 93 | D96: =Recurring!$C$29 -> 0 | E96: 0 | F96: 0 | N96: =IF(Admin="On",-1*TieredValue(K96,Recurring!$C$58:$D$62)/12,0) -> 
A97: 2034-01-24 | B97: 7 | C97: 94 | D97: =Recurring!$C$29 -> 0 | E97: 0 | F97: 0 | N97: =IF(Admin="On",-1*TieredValue(K97,Recurring!$C$58:$D$62)/12,0) -> 
A98: 2034-02-24 | B98: 7 | C98: 95 | D98: =Recurring!$C$29 -> 0 | E98: 0 | F98: 0 | N98: =IF(Admin="On",-1*TieredValue(K98,Recurring!$C$58:$D$62)/12,0) -> 
A99: 2034-03-24 | B99: 7 | C99: 96 | D99: =Recurring!$C$29 -> 0 | E99: 0 | F99: 0 | N99: =IF(Admin="On",-1*TieredValue(K99,Recurring!$C$58:$D$62)/12,0) -> 
A100: 2034-04-24 | B100: 8 | C100: 97 | D100: =Recurring!$C$29 -> 0 | E100: 0 | F100: 0 | N100: =IF(Admin="On",-1*TieredValue(K100,Recurring!$C$58:$D$62)/12,0) -> 
A101: 2034-05-24 | B101: 8 | C101: 98 | D101: =Recurring!$C$29 -> 0 | E101: 0 | F101: 0 | N101: =IF(Admin="On",-1*TieredValue(K101,Recurring!$C$58:$D$62)/12,0) -> 
A102: 2034-06-24 | B102: 8 | C102: 99 | D102: =Recurring!$C$29 -> 0 | E102: 0 | F102: 0 | N102: =IF(Admin="On",-1*TieredValue(K102,Recurring!$C$58:$D$62)/12,0) -> 
A103: 2034-07-24 | B103: 8 | C103: 100 | D103: =Recurring!$C$29 -> 0 | E103: 0 | F103: 0 | N103: =IF(Admin="On",-1*TieredValue(K103,Recurring!$C$58:$D$62)/12,0) -> 
A104: 2034-08-24 | B104: 8 | C104: 101 | D104: =Recurring!$C$29 -> 0 | E104: 0 | F104: 0 | N104: =IF(Admin="On",-1*TieredValue(K104,Recurring!$C$58:$D$62)/12,0) -> 
A105: 2034-09-24 | B105: 8 | C105: 102 | D105: =Recurring!$C$29 -> 0 | E105: 0 | F105: 0 | N105: =IF(Admin="On",-1*TieredValue(K105,Recurring!$C$58:$D$62)/12,0) -> 
A106: 2034-10-24 | B106: 8 | C106: 103 | D106: =Recurring!$C$29 -> 0 | E106: 0 | F106: 0 | N106: =IF(Admin="On",-1*TieredValue(K106,Recurring!$C$58:$D$62)/12,0) -> 
A107: 2034-11-24 | B107: 8 | C107: 104 | D107: =Recurring!$C$29 -> 0 | E107: 0 | F107: 0 | N107: =IF(Admin="On",-1*TieredValue(K107,Recurring!$C$58:$D$62)/12,0) -> 
A108: 2034-12-24 | B108: 8 | C108: 105 | D108: =Recurring!$C$29 -> 0 | E108: 0 | F108: 0 | N108: =IF(Admin="On",-1*TieredValue(K108,Recurring!$C$58:$D$62)/12,0) -> 
A109: 2035-01-24 | B109: 8 | C109: 106 | D109: =Recurring!$C$29 -> 0 | E109: 0 | F109: 0 | N109: =IF(Admin="On",-1*TieredValue(K109,Recurring!$C$58:$D$62)/12,0) -> 
A110: 2035-02-24 | B110: 8 | C110: 107 | D110: =Recurring!$C$29 -> 0 | E110: 0 | F110: 0 | N110: =IF(Admin="On",-1*TieredValue(K110,Recurring!$C$58:$D$62)/12,0) -> 
A111: 2035-03-24 | B111: 8 | C111: 108 | D111: =Recurring!$C$29 -> 0 | E111: 0 | F111: 0 | N111: =IF(Admin="On",-1*TieredValue(K111,Recurring!$C$58:$D$62)/12,0) -> 
A112: 2035-04-24 | B112: 9 | C112: 109 | D112: =Recurring!$C$29 -> 0 | E112: 0 | F112: 0 | N112: =IF(Admin="On",-1*TieredValue(K112,Recurring!$C$58:$D$62)/12,0) -> 
A113: 2035-05-24 | B113: 9 | C113: 110 | D113: =Recurring!$C$29 -> 0 | E113: 0 | F113: 0 | N113: =IF(Admin="On",-1*TieredValue(K113,Recurring!$C$58:$D$62)/12,0) -> 
A114: 2035-06-24 | B114: 9 | C114: 111 | D114: =Recurring!$C$29 -> 0 | E114: 0 | F114: 0 | N114: =IF(Admin="On",-1*TieredValue(K114,Recurring!$C$58:$D$62)/12,0) -> 
A115: 2035-07-24 | B115: 9 | C115: 112 | D115: =Recurring!$C$29 -> 0 | E115: 0 | F115: 0 | N115: =IF(Admin="On",-1*TieredValue(K115,Recurring!$C$58:$D$62)/12,0) -> 
A116: 2035-08-24 | B116: 9 | C116: 113 | D116: =Recurring!$C$29 -> 0 | E116: 0 | F116: 0 | N116: =IF(Admin="On",-1*TieredValue(K116,Recurring!$C$58:$D$62)/12,0) -> 
A117: 2035-09-24 | B117: 9 | C117: 114 | D117: =Recurring!$C$29 -> 0 | E117: 0 | F117: 0 | N117: =IF(Admin="On",-1*TieredValue(K117,Recurring!$C$58:$D$62)/12,0) -> 
A118: 2035-10-24 | B118: 9 | C118: 115 | D118: =Recurring!$C$29 -> 0 | E118: 0 | F118: 0 | N118: =IF(Admin="On",-1*TieredValue(K118,Recurring!$C$58:$D$62)/12,0) -> 
A119: 2035-11-24 | B119: 9 | C119: 116 | D119: =Recurring!$C$29 -> 0 | E119: 0 | F119: 0 | N119: =IF(Admin="On",-1*TieredValue(K119,Recurring!$C$58:$D$62)/12,0) -> 
A120: 2035-12-24 | B120: 9 | C120: 117 | D120: =Recurring!$C$29 -> 0 | E120: 0 | F120: 0 | N120: =IF(Admin="On",-1*TieredValue(K120,Recurring!$C$58:$D$62)/12,0) -> 
A121: 2036-01-24 | B121: 9 | C121: 118 | D121: =Recurring!$C$29 -> 0 | E121: 0 | F121: 0 | N121: =IF(Admin="On",-1*TieredValue(K121,Recurring!$C$58:$D$62)/12,0) -> 
A122: 2036-02-24 | B122: 9 | C122: 119 | D122: =Recurring!$C$29 -> 0 | E122: 0 | F122: 0 | N122: =IF(Admin="On",-1*TieredValue(K122,Recurring!$C$58:$D$62)/12,0) -> 
A123: 2036-03-24 | B123: 9 | C123: 120 | D123: =Recurring!$C$29 -> 0 | E123: 0 | F123: 0 | N123: =IF(Admin="On",-1*TieredValue(K123,Recurring!$C$58:$D$62)/12,0) -> 
A124: 2036-04-24 | B124: 10 | C124: 121 | D124: =Recurring!$C$29 -> 0 | E124: 0 | F124: 0 | N124: =IF(Admin="On",-1*TieredValue(K124,Recurring!$C$58:$D$62)/12,0) -> 
A125: 2036-05-24 | B125: 10 | C125: 122 | D125: =Recurring!$C$29 -> 0 | E125: 0 | F125: 0 | N125: =IF(Admin="On",-1*TieredValue(K125,Recurring!$C$58:$D$62)/12,0) -> 
A126: 2036-06-24 | B126: 10 | C126: 123 | D126: =Recurring!$C$29 -> 0 | E126: 0 | F126: 0 | N126: =IF(Admin="On",-1*TieredValue(K126,Recurring!$C$58:$D$62)/12,0) -> 
A127: 2036-07-24 | B127: 10 | C127: 124 | D127: =Recurring!$C$29 -> 0 | E127: 0 | F127: 0 | N127: =IF(Admin="On",-1*TieredValue(K127,Recurring!$C$58:$D$62)/12,0) -> 
A128: 2036-08-24 | B128: 10 | C128: 125 | D128: =Recurring!$C$29 -> 0 | E128: 0 | F128: 0 | N128: =IF(Admin="On",-1*TieredValue(K128,Recurring!$C$58:$D$62)/12,0) -> 
A129: 2036-09-24 | B129: 10 | C129: 126 | D129: =Recurring!$C$29 -> 0 | E129: 0 | F129: 0 | N129: =IF(Admin="On",-1*TieredValue(K129,Recurring!$C$58:$D$62)/12,0) -> 
A130: 2036-10-24 | B130: 10 | C130: 127 | D130: =Recurring!$C$29 -> 0 | E130: 0 | F130: 0 | N130: =IF(Admin="On",-1*TieredValue(K130,Recurring!$C$58:$D$62)/12,0) -> 
A131: 2036-11-24 | B131: 10 | C131: 128 | D131: =Recurring!$C$29 -> 0 | E131: 0 | F131: 0 | N131: =IF(Admin="On",-1*TieredValue(K131,Recurring!$C$58:$D$62)/12,0) -> 
A132: 2036-12-24 | B132: 10 | C132: 129 | D132: =Recurring!$C$29 -> 0 | E132: =IF(Advisor = "On",-1*E$2*$D132,0) -> 0 | F132: =IF(Admin = "On",-1*F$2*$D132,0) -> 0 | G132: =IF(Fund = "On",-1*G$2*$D132,0) ->  | J132: =IF(Fund="On",-1*$J$2*I132/12,0) ->  | N132: =IF(Admin="On",-1*TieredValue(K132,Recurring!$C$58:$D$62)/12,0) ->  | Q132: =IF(Advisor = "On",-1*Q$2*$K132/12,0) -> 
A133: 2037-01-24 | B133: =ROUNDDOWN((C133-1)/12,0) -> 10 | C133: 130 | D133: =Recurring!$C$29 -> 0 | E133: 0 | F133: 0 | I133: =H133*(1+$I$2)^(YEARFRAC(A133,A134,3)) ->  | K133: =SUM(I133:J133) ->  | N133: =IF(Admin="On",-1*TieredValue(K133,Recurring!$C$58:$D$62)/12,0) ->  | R133: =SUM(K133,N133:Q133) -> 
A134: =DATE(YEAR(A133+1),MONTH(A133+1)+1,DAY(A133+1))-1 -> 2037-02-24 | B134: 10 | C134: 131 | D134: =Recurring!$C$29 -> 0 | E134: 0 | F134: 0 | H134: =R133+SUM(D134:G134) ->  | N134: =IF(Admin="On",-1*TieredValue(K134,Recurring!$C$58:$D$62)/12,0) -> 
A135: 2037-03-24 | B135: 10 | C135: 132 | D135: =Recurring!$C$29 -> 0 | E135: 0 | F135: 0 | N135: =IF(Admin="On",-1*TieredValue(K135,Recurring!$C$58:$D$62)/12,0) -> 
A136: 2037-04-24 | B136: 11 | C136: 133 | D136: =Recurring!$C$29 -> 0 | E136: 0 | F136: 0 | N136: =IF(Admin="On",-1*TieredValue(K136,Recurring!$C$58:$D$62)/12,0) -> 
A137: 2037-05-24 | B137: 11 | C137: 134 | D137: =Recurring!$C$29 -> 0 | E137: 0 | F137: 0 | N137: =IF(Admin="On",-1*TieredValue(K137,Recurring!$C$58:$D$62)/12,0) -> 
A138: 2037-06-24 | B138: 11 | C138: 135 | D138: =Recurring!$C$29 -> 0 | E138: 0 | F138: 0 | N138: =IF(Admin="On",-1*TieredValue(K138,Recurring!$C$58:$D$62)/12,0) -> 
A139: 2037-07-24 | B139: 11 | C139: 136 | D139: =Recurring!$C$29 -> 0 | E139: 0 | F139: 0 | N139: =IF(Admin="On",-1*TieredValue(K139,Recurring!$C$58:$D$62)/12,0) -> 
A140: 2037-08-24 | B140: 11 | C140: 137 | D140: =Recurring!$C$29 -> 0 | E140: 0 | F140: 0 | N140: =IF(Admin="On",-1*TieredValue(K140,Recurring!$C$58:$D$62)/12,0) -> 
A141: 2037-09-24 | B141: 11 | C141: 138 | D141: =Recurring!$C$29 -> 0 | E141: 0 | F141: 0 | N141: =IF(Admin="On",-1*TieredValue(K141,Recurring!$C$58:$D$62)/12,0) -> 
A142: 2037-10-24 | B142: 11 | C142: 139 | D142: =Recurring!$C$29 -> 0 | E142: 0 | F142: 0 | N142: =IF(Admin="On",-1*TieredValue(K142,Recurring!$C$58:$D$62)/12,0) -> 
A143: 2037-11-24 | B143: 11 | C143: 140 | D143: =Recurring!$C$29 -> 0 | E143: 0 | F143: 0 | N143: =IF(Admin="On",-1*TieredValue(K143,Recurring!$C$58:$D$62)/12,0) -> 
A144: 2037-12-24 | B144: 11 | C144: 141 | D144: =Recurring!$C$29 -> 0 | E144: 0 | F144: 0 | N144: =IF(Admin="On",-1*TieredValue(K144,Recurring!$C$58:$D$62)/12,0) -> 
A145: 2038-01-24 | B145: 11 | C145: 142 | D145: =Recurring!$C$29 -> 0 | E145: 0 | F145: 0 | N145: =IF(Admin="On",-1*TieredValue(K145,Recurring!$C$58:$D$62)/12,0) -> 
A146: 2038-02-24 | B146: 11 | C146: 143 | D146: =Recurring!$C$29 -> 0 | E146: 0 | F146: 0 | N146: =IF(Admin="On",-1*TieredValue(K146,Recurring!$C$58:$D$62)/12,0) -> 
A147: 2038-03-24 | B147: 11 | C147: 144 | D147: =Recurring!$C$29 -> 0 | E147: 0 | F147: 0 | N147: =IF(Admin="On",-1*TieredValue(K147,Recurring!$C$58:$D$62)/12,0) -> 
A148: 2038-04-24 | B148: 12 | C148: 145 | D148: =Recurring!$C$29 -> 0 | E148: 0 | F148: 0 | N148: =IF(Admin="On",-1*TieredValue(K148,Recurring!$C$58:$D$62)/12,0) -> 
A149: 2038-05-24 | B149: 12 | C149: 146 | D149: =Recurring!$C$29 -> 0 | E149: 0 | F149: 0 | N149: =IF(Admin="On",-1*TieredValue(K149,Recurring!$C$58:$D$62)/12,0) -> 
A150: 2038-06-24 | B150: 12 | C150: 147 | D150: =Recurring!$C$29 -> 0 | E150: 0 | F150: 0 | N150: =IF(Admin="On",-1*TieredValue(K150,Recurring!$C$58:$D$62)/12,0) -> 
A151: 2038-07-24 | B151: 12 | C151: 148 | D151: =Recurring!$C$29 -> 0 | E151: 0 | F151: 0 | N151: =IF(Admin="On",-1*TieredValue(K151,Recurring!$C$58:$D$62)/12,0) -> 
A152: 2038-08-24 | B152: 12 | C152: 149 | D152: =Recurring!$C$29 -> 0 | E152: 0 | F152: 0 | N152: =IF(Admin="On",-1*TieredValue(K152,Recurring!$C$58:$D$62)/12,0) -> 
A153: 2038-09-24 | B153: 12 | C153: 150 | D153: =Recurring!$C$29 -> 0 | E153: 0 | F153: 0 | N153: =IF(Admin="On",-1*TieredValue(K153,Recurring!$C$58:$D$62)/12,0) -> 
A154: 2038-10-24 | B154: 12 | C154: 151 | D154: =Recurring!$C$29 -> 0 | E154: 0 | F154: 0 | N154: =IF(Admin="On",-1*TieredValue(K154,Recurring!$C$58:$D$62)/12,0) -> 
A155: 2038-11-24 | B155: 12 | C155: 152 | D155: =Recurring!$C$29 -> 0 | E155: 0 | F155: 0 | N155: =IF(Admin="On",-1*TieredValue(K155,Recurring!$C$58:$D$62)/12,0) -> 
A156: 2038-12-24 | B156: 12 | C156: 153 | D156: =Recurring!$C$29 -> 0 | E156: 0 | F156: 0 | N156: =IF(Admin="On",-1*TieredValue(K156,Recurring!$C$58:$D$62)/12,0) -> 
A157: 2039-01-24 | B157: 12 | C157: 154 | D157: =Recurring!$C$29 -> 0 | E157: 0 | F157: 0 | N157: =IF(Admin="On",-1*TieredValue(K157,Recurring!$C$58:$D$62)/12,0) -> 
A158: 2039-02-24 | B158: 12 | C158: 155 | D158: =Recurring!$C$29 -> 0 | E158: 0 | F158: 0 | N158: =IF(Admin="On",-1*TieredValue(K158,Recurring!$C$58:$D$62)/12,0) -> 
A159: 2039-03-24 | B159: 12 | C159: 156 | D159: =Recurring!$C$29 -> 0 | E159: 0 | F159: 0 | N159: =IF(Admin="On",-1*TieredValue(K159,Recurring!$C$58:$D$62)/12,0) -> 
A160: 2039-04-24 | B160: 13 | C160: 157 | D160: =Recurring!$C$29 -> 0 | E160: 0 | F160: 0 | N160: =IF(Admin="On",-1*TieredValue(K160,Recurring!$C$58:$D$62)/12,0) -> 
A161: 2039-05-24 | B161: 13 | C161: 158 | D161: =Recurring!$C$29 -> 0 | E161: 0 | F161: 0 | N161: =IF(Admin="On",-1*TieredValue(K161,Recurring!$C$58:$D$62)/12,0) -> 
A162: 2039-06-24 | B162: 13 | C162: 159 | D162: =Recurring!$C$29 -> 0 | E162: 0 | F162: 0 | N162: =IF(Admin="On",-1*TieredValue(K162,Recurring!$C$58:$D$62)/12,0) -> 
A163: 2039-07-24 | B163: 13 | C163: 160 | D163: =Recurring!$C$29 -> 0 | E163: 0 | F163: 0 | N163: =IF(Admin="On",-1*TieredValue(K163,Recurring!$C$58:$D$62)/12,0) -> 
A164: 2039-08-24 | B164: 13 | C164: 161 | D164: =Recurring!$C$29 -> 0 | E164: 0 | F164: 0 | N164: =IF(Admin="On",-1*TieredValue(K164,Recurring!$C$58:$D$62)/12,0) -> 
A165: 2039-09-24 | B165: 13 | C165: 162 | D165: =Recurring!$C$29 -> 0 | E165: 0 | F165: 0 | N165: =IF(Admin="On",-1*TieredValue(K165,Recurring!$C$58:$D$62)/12,0) -> 
A166: 2039-10-24 | B166: 13 | C166: 163 | D166: =Recurring!$C$29 -> 0 | E166: 0 | F166: 0 | N166: =IF(Admin="On",-1*TieredValue(K166,Recurring!$C$58:$D$62)/12,0) -> 
A167: 2039-11-24 | B167: 13 | C167: 164 | D167: =Recurring!$C$29 -> 0 | E167: 0 | F167: 0 | N167: =IF(Admin="On",-1*TieredValue(K167,Recurring!$C$58:$D$62)/12,0) -> 
A168: 2039-12-24 | B168: 13 | C168: 165 | D168: =Recurring!$C$29 -> 0 | E168: 0 | F168: 0 | N168: =IF(Admin="On",-1*TieredValue(K168,Recurring!$C$58:$D$62)/12,0) -> 
A169: 2040-01-24 | B169: 13 | C169: 166 | D169: =Recurring!$C$29 -> 0 | E169: 0 | F169: 0 | N169: =IF(Admin="On",-1*TieredValue(K169,Recurring!$C$58:$D$62)/12,0) -> 
A170: 2040-02-24 | B170: 13 | C170: 167 | D170: =Recurring!$C$29 -> 0 | E170: 0 | F170: 0 | N170: =IF(Admin="On",-1*TieredValue(K170,Recurring!$C$58:$D$62)/12,0) -> 
A171: 2040-03-24 | B171: 13 | C171: 168 | D171: =Recurring!$C$29 -> 0 | E171: 0 | F171: 0 | N171: =IF(Admin="On",-1*TieredValue(K171,Recurring!$C$58:$D$62)/12,0) -> 
A172: 2040-04-24 | B172: 14 | C172: 169 | D172: =Recurring!$C$29 -> 0 | E172: 0 | F172: 0 | N172: =IF(Admin="On",-1*TieredValue(K172,Recurring!$C$58:$D$62)/12,0) -> 
A173: 2040-05-24 | B173: 14 | C173: 170 | D173: =Recurring!$C$29 -> 0 | E173: 0 | F173: 0 | N173: =IF(Admin="On",-1*TieredValue(K173,Recurring!$C$58:$D$62)/12,0) -> 
A174: 2040-06-24 | B174: 14 | C174: 171 | D174: =Recurring!$C$29 -> 0 | E174: 0 | F174: 0 | N174: =IF(Admin="On",-1*TieredValue(K174,Recurring!$C$58:$D$62)/12,0) -> 
A175: 2040-07-24 | B175: 14 | C175: 172 | D175: =Recurring!$C$29 -> 0 | E175: 0 | F175: 0 | N175: =IF(Admin="On",-1*TieredValue(K175,Recurring!$C$58:$D$62)/12,0) -> 
A176: 2040-08-24 | B176: 14 | C176: 173 | D176: =Recurring!$C$29 -> 0 | E176: 0 | F176: 0 | N176: =IF(Admin="On",-1*TieredValue(K176,Recurring!$C$58:$D$62)/12,0) -> 
A177: 2040-09-24 | B177: 14 | C177: 174 | D177: =Recurring!$C$29 -> 0 | E177: 0 | F177: 0 | N177: =IF(Admin="On",-1*TieredValue(K177,Recurring!$C$58:$D$62)/12,0) -> 
A178: 2040-10-24 | B178: 14 | C178: 175 | D178: =Recurring!$C$29 -> 0 | E178: 0 | F178: 0 | N178: =IF(Admin="On",-1*TieredValue(K178,Recurring!$C$58:$D$62)/12,0) -> 
A179: 2040-11-24 | B179: 14 | C179: 176 | D179: =Recurring!$C$29 -> 0 | E179: 0 | F179: 0 | N179: =IF(Admin="On",-1*TieredValue(K179,Recurring!$C$58:$D$62)/12,0) -> 
A180: 2040-12-24 | B180: 14 | C180: 177 | D180: =Recurring!$C$29 -> 0 | E180: 0 | F180: 0 | N180: =IF(Admin="On",-1*TieredValue(K180,Recurring!$C$58:$D$62)/12,0) -> 
A181: 2041-01-24 | B181: 14 | C181: 178 | D181: =Recurring!$C$29 -> 0 | E181: 0 | F181: 0 | N181: =IF(Admin="On",-1*TieredValue(K181,Recurring!$C$58:$D$62)/12,0) -> 
A182: 2041-02-24 | B182: 14 | C182: 179 | D182: =Recurring!$C$29 -> 0 | E182: 0 | F182: 0 | N182: =IF(Admin="On",-1*TieredValue(K182,Recurring!$C$58:$D$62)/12,0) -> 
A183: 2041-03-24 | B183: 14 | C183: 180 | D183: =Recurring!$C$29 -> 0 | E183: 0 | F183: 0 | N183: =IF(Admin="On",-1*TieredValue(K183,Recurring!$C$58:$D$62)/12,0) -> 
A184: 2041-04-24 | B184: 15 | C184: 181 | D184: =Recurring!$C$29 -> 0 | E184: 0 | F184: 0 | N184: =IF(Admin="On",-1*TieredValue(K184,Recurring!$C$58:$D$62)/12,0) -> 
A185: 2041-05-24 | B185: 15 | C185: 182 | D185: =Recurring!$C$29 -> 0 | E185: 0 | F185: 0 | N185: =IF(Admin="On",-1*TieredValue(K185,Recurring!$C$58:$D$62)/12,0) -> 
A186: 2041-06-24 | B186: 15 | C186: 183 | D186: =Recurring!$C$29 -> 0 | E186: 0 | F186: 0 | N186: =IF(Admin="On",-1*TieredValue(K186,Recurring!$C$58:$D$62)/12,0) -> 
A187: 2041-07-24 | B187: 15 | C187: 184 | D187: =Recurring!$C$29 -> 0 | E187: 0 | F187: 0 | N187: =IF(Admin="On",-1*TieredValue(K187,Recurring!$C$58:$D$62)/12,0) -> 
A188: 2041-08-24 | B188: 15 | C188: 185 | D188: =Recurring!$C$29 -> 0 | E188: 0 | F188: 0 | N188: =IF(Admin="On",-1*TieredValue(K188,Recurring!$C$58:$D$62)/12,0) -> 
A189: 2041-09-24 | B189: 15 | C189: 186 | D189: =Recurring!$C$29 -> 0 | E189: 0 | F189: 0 | N189: =IF(Admin="On",-1*TieredValue(K189,Recurring!$C$58:$D$62)/12,0) -> 
A190: 2041-10-24 | B190: 15 | C190: 187 | D190: =Recurring!$C$29 -> 0 | E190: 0 | F190: 0 | N190: =IF(Admin="On",-1*TieredValue(K190,Recurring!$C$58:$D$62)/12,0) -> 
A191: 2041-11-24 | B191: 15 | C191: 188 | D191: =Recurring!$C$29 -> 0 | E191: 0 | F191: 0 | N191: =IF(Admin="On",-1*TieredValue(K191,Recurring!$C$58:$D$62)/12,0) -> 
A192: 2041-12-24 | B192: 15 | C192: 189 | D192: =Recurring!$C$29 -> 0 | E192: 0 | F192: 0 | N192: =IF(Admin="On",-1*TieredValue(K192,Recurring!$C$58:$D$62)/12,0) -> 
A193: 2042-01-24 | B193: 15 | C193: 190 | D193: =Recurring!$C$29 -> 0 | E193: 0 | F193: 0 | N193: =IF(Admin="On",-1*TieredValue(K193,Recurring!$C$58:$D$62)/12,0) -> 
A194: 2042-02-24 | B194: 15 | C194: 191 | D194: =Recurring!$C$29 -> 0 | E194: 0 | F194: 0 | N194: =IF(Admin="On",-1*TieredValue(K194,Recurring!$C$58:$D$62)/12,0) -> 
A195: 2042-03-24 | B195: 15 | C195: 192 | D195: =Recurring!$C$29 -> 0 | E195: 0 | F195: 0 | N195: =IF(Admin="On",-1*TieredValue(K195,Recurring!$C$58:$D$62)/12,0) -> 
A196: 2042-04-24 | B196: 16 | C196: 193 | D196: =Recurring!$C$29 -> 0 | E196: =IF(Advisor = "On",-1*E$2*$D196,0) -> 0 | F196: =IF(Admin = "On",-1*F$2*$D196,0) -> 0 | G196: =IF(Fund = "On",-1*G$2*$D196,0) ->  | J196: =IF(Fund="On",-1*$J$2*I196/12,0) ->  | N196: =IF(Admin="On",-1*TieredValue(K196,Recurring!$C$58:$D$62)/12,0) ->  | Q196: =IF(Advisor = "On",-1*Q$2*$K196/12,0) -> 
A197: 2042-05-24 | B197: =ROUNDDOWN((C197-1)/12,0) -> 16 | C197: 194 | D197: =Recurring!$C$29 -> 0 | E197: 0 | F197: 0 | I197: =H197*(1+$I$2)^(YEARFRAC(A197,A198,3)) ->  | K197: =SUM(I197:J197) ->  | N197: =IF(Admin="On",-1*TieredValue(K197,Recurring!$C$58:$D$62)/12,0) ->  | R197: =SUM(K197,N197:Q197) -> 
A198: =DATE(YEAR(A197+1),MONTH(A197+1)+1,DAY(A197+1))-1 -> 2042-06-24 | B198: 16 | C198: 195 | D198: =Recurring!$C$29 -> 0 | E198: 0 | F198: 0 | H198: =R197+SUM(D198:G198) ->  | N198: =IF(Admin="On",-1*TieredValue(K198,Recurring!$C$58:$D$62)/12,0) -> 
A199: 2042-07-24 | B199: 16 | C199: 196 | D199: =Recurring!$C$29 -> 0 | E199: 0 | F199: 0 | N199: =IF(Admin="On",-1*TieredValue(K199,Recurring!$C$58:$D$62)/12,0) -> 
A200: 2042-08-24 | B200: 16 | C200: 197 | D200: =Recurring!$C$29 -> 0 | E200: 0 | F200: 0 | N200: =IF(Admin="On",-1*TieredValue(K200,Recurring!$C$58:$D$62)/12,0) -> 
... 164 more rows

Sheet Recurring Cash Flows (Admin) (hidden)
I1: Growth | J1: TER | T1: Admin Fees | U1: Off | V1: Advisor Fees | W1: On | X1: Fund Fees | Y1: On
A2: Date | B2: ='Recurring Cash Flows (All Fees)'!B2 -> 2026-04-24 | E2: ='Recurring Cash Flows (All Fees)'!E2 -> 0 | F2: ='Recurring Cash Flows (All Fees)'!F2 -> 0 | G2: ='Recurring Cash Flows (All Fees)'!G2 ->  | I2: =Recurring!C62-Recurring!C57 -> 0.06 | J2: ='Recurring Cash Flows (All Fees)'!J2 -> 0 | Q2: ='Recurring Cash Flows (All Fees)'!Q2 -> 0
A3: CashFlow Dates | B3: Year | C3: Month | D3: Initial Investment | E3: Advisor Initial Fee | F3: Admin Initial Fee | G3: Fund Initial Fee | H3: Net Inv Amount | I3: Growth Before AMF | J3: AMF | K3: Before Fees | L3: Admin Fee (Min) | M3: Admin Fee(Max) | N3: Admin Fee (actual) | O3: Fund Access Fee | P3: Wealth Service | Q3: Ongoing Advisor Fees | R3: Fund After | U3: Portfolio Value | V3: Goal Value | W3: g Reduced | X3: RIY
A4: =B2+1-1 -> 2026-04-24 | B4: =ROUNDDOWN((C4-1)/12,0) -> 0 | C4: 1 | D4: ='Recurring Cash Flows (All Fees)'!D4 -> 0 | E4: =IF(Advisor = "On",-1*E$2*$D4,0) -> 0 | F4: =IF(Admin = "On",-1*F$2*$D4,0) -> 0 | G4: =IF(Fund = "On",-1*G$2*$D4,0) ->  | H4: =SUM(D4:G4) ->  | I4: =H4*(1+$I$2)^(YEARFRAC(A4,A5,3)) ->  | J4: =IF(Fund="On",-1*$J$2*I4/12,0) ->  | K4: =SUM(I4:J4) ->  | N4: =IF(Admin="On",-1*TieredValue(K4,Recurring!$C$58:$D$62)/12,0) -> 0 | Q4: =IF(Advisor = "On",-1*Q$2*$K4/12,0) ->  | R4: =SUM(K4,N4:Q4) ->  | T4: 1 Year | U4: =R15 ->  | V4: ='Recurring Cash Flows (All Fees)'!U4 ->  | W4: =I2 -> 0.06 | X4: ='Recurring Cash Flows (All Fees)'!V4-'Recurring Cash Flows (Admin)'!W4 -> 0
A5: =DATE(YEAR(A4+1),MONTH(A4+1)+1,DAY(A4+1))-1 -> 2026-05-24 | B5: =ROUNDDOWN((C5-1)/12,0) -> 0 | C5: 2 | D5: ='Recurring Cash Flows (All Fees)'!D5 -> 0 | E5: 0 | F5: 0 | H5: =R4+SUM(D5:G5) ->  | I5: =H5*(1+$I$2)^(YEARFRAC(A5,A6,3)) ->  | K5: =SUM(I5:J5) ->  | N5: =IF(Admin="On",-1*TieredValue(K5,Recurring!$C$58:$D$62)/12,0) -> 0 | R5: =SUM(K5,N5:Q5) ->  | T5: 3 Year | U5: =R39 ->  | V5: ='Recurring Cash Flows (All Fees)'!U5 ->  | W5: =W4 -> 0.06 | X5: ='Recurring Cash Flows (All Fees)'!V5-'Recurring Cash Flows (Admin)'!W5 -> 0
A6: =DATE(YEAR(A5+1),MONTH(A5+1)+1,DAY(A5+1))-1 -> 2026-06-24 | B6: 0 | C6: 3 | D6: ='Recurring Cash Flows (All Fees)'!D6 -> 0 | E6: 0 | F6: 0 | H6: =R5+SUM(D6:G6) ->  | N6: =IF(Admin="On",-1*TieredValue(K6,Recurring!$C$58:$D$62)/12,0) -> 0 | T6: 5 Year | U6: =R63 ->  | V6: ='Recurring Cash Flows (All Fees)'!U6 ->  | W6: =W5 -> 0.06 | X6: ='Recurring Cash Flows (All Fees)'!V6-'Recurring Cash Flows (Admin)'!W6 -> 0
A7: 2026-07-24 | B7: 0 | C7: 4 | D7: ='Recurring Cash Flows (All Fees)'!D7 -> 0 | E7: 0 | F7: 0 | N7: =IF(Admin="On",-1*TieredValue(K7,Recurring!$C$58:$D$62)/12,0) -> 0 | T7: 10 Year | U7: =R135 ->  | V7: ='Recurring Cash Flows (All Fees)'!U7 ->  | W7: 0.06 | X7: ='Recurring Cash Flows (All Fees)'!V7-'Recurring Cash Flows (Admin)'!W7 -> 0
A8: 2026-08-24 | B8: 0 | C8: 5 | D8: ='Recurring Cash Flows (All Fees)'!D8 -> 0 | E8: 0 | F8: 0 | N8: =IF(Admin="On",-1*TieredValue(K8,Recurring!$C$58:$D$62)/12,0) -> 0
A9: 2026-09-24 | B9: 0 | C9: 6 | D9: ='Recurring Cash Flows (All Fees)'!D9 -> 0 | E9: 0 | F9: 0 | N9: =IF(Admin="On",-1*TieredValue(K9,Recurring!$C$58:$D$62)/12,0) -> 0
A10: 2026-10-24 | B10: 0 | C10: 7 | D10: ='Recurring Cash Flows (All Fees)'!D10 -> 0 | E10: 0 | F10: 0 | N10: =IF(Admin="On",-1*TieredValue(K10,Recurring!$C$58:$D$62)/12,0) -> 0
A11: 2026-11-24 | B11: 0 | C11: 8 | D11: ='Recurring Cash Flows (All Fees)'!D11 -> 0 | E11: 0 | F11: 0 | N11: =IF(Admin="On",-1*TieredValue(K11,Recurring!$C$58:$D$62)/12,0) -> 0
A12: 2026-12-24 | B12: 0 | C12: 9 | D12: ='Recurring Cash Flows (All Fees)'!D12 -> 0 | E12: 0 | F12: 0 | N12: =IF(Admin="On",-1*TieredValue(K12,Recurring!$C$58:$D$62)/12,0) -> 0
A13: 2027-01-24 | B13: 0 | C13: 10 | D13: ='Recurring Cash Flows (All Fees)'!D13 -> 0 | E13: 0 | F13: 0 | N13: =IF(Admin="On",-1*TieredValue(K13,Recurring!$C$58:$D$62)/12,0) -> 0
A14: 2027-02-24 | B14: 0 | C14: 11 | D14: ='Recurring Cash Flows (All Fees)'!D14 -> 0 | E14: 0 | F14: 0 | N14: =IF(Admin="On",-1*TieredValue(K14,Recurring!$C$58:$D$62)/12,0) -> 0
A15: 2027-03-24 | B15: 0 | C15: 12 | D15: ='Recurring Cash Flows (All Fees)'!D15 -> 0 | E15: 0 | F15: 0 | N15: =IF(Admin="On",-1*TieredValue(K15,Recurring!$C$58:$D$62)/12,0) -> 0
A16: 2027-04-24 | B16: 1 | C16: 13 | D16: ='Recurring Cash Flows (All Fees)'!D16 -> 0 | E16: 0 | F16: 0 | N16: =IF(Admin="On",-1*TieredValue(K16,Recurring!$C$58:$D$62)/12,0) -> 0
A17: 2027-05-24 | B17: 1 | C17: 14 | D17: ='Recurring Cash Flows (All Fees)'!D17 -> 0 | E17: 0 | F17: 0 | N17: =IF(Admin="On",-1*TieredValue(K17,Recurring!$C$58:$D$62)/12,0) -> 0
A18: 2027-06-24 | B18: 1 | C18: 15 | D18: ='Recurring Cash Flows (All Fees)'!D18 -> 0 | E18: 0 | F18: 0 | N18: =IF(Admin="On",-1*TieredValue(K18,Recurring!$C$58:$D$62)/12,0) -> 0
A19: 2027-07-24 | B19: 1 | C19: 16 | D19: ='Recurring Cash Flows (All Fees)'!D19 -> 0 | E19: 0 | F19: 0 | N19: =IF(Admin="On",-1*TieredValue(K19,Recurring!$C$58:$D$62)/12,0) -> 0
A20: 2027-08-24 | B20: 1 | C20: 17 | D20: ='Recurring Cash Flows (All Fees)'!D20 -> 0 | E20: 0 | F20: 0 | N20: =IF(Admin="On",-1*TieredValue(K20,Recurring!$C$58:$D$62)/12,0) -> 0
A21: 2027-09-24 | B21: 1 | C21: 18 | D21: ='Recurring Cash Flows (All Fees)'!D21 -> 0 | E21: 0 | F21: 0 | N21: =IF(Admin="On",-1*TieredValue(K21,Recurring!$C$58:$D$62)/12,0) -> 0
A22: 2027-10-24 | B22: 1 | C22: 19 | D22: ='Recurring Cash Flows (All Fees)'!D22 -> 0 | E22: 0 | F22: 0 | N22: =IF(Admin="On",-1*TieredValue(K22,Recurring!$C$58:$D$62)/12,0) -> 0
A23: 2027-11-24 | B23: 1 | C23: 20 | D23: ='Recurring Cash Flows (All Fees)'!D23 -> 0 | E23: 0 | F23: 0 | N23: =IF(Admin="On",-1*TieredValue(K23,Recurring!$C$58:$D$62)/12,0) -> 0
A24: 2027-12-24 | B24: 1 | C24: 21 | D24: ='Recurring Cash Flows (All Fees)'!D24 -> 0 | E24: 0 | F24: 0 | N24: =IF(Admin="On",-1*TieredValue(K24,Recurring!$C$58:$D$62)/12,0) -> 0
A25: 2028-01-24 | B25: 1 | C25: 22 | D25: ='Recurring Cash Flows (All Fees)'!D25 -> 0 | E25: 0 | F25: 0 | N25: =IF(Admin="On",-1*TieredValue(K25,Recurring!$C$58:$D$62)/12,0) -> 0
A26: 2028-02-24 | B26: 1 | C26: 23 | D26: ='Recurring Cash Flows (All Fees)'!D26 -> 0 | E26: 0 | F26: 0 | N26: =IF(Admin="On",-1*TieredValue(K26,Recurring!$C$58:$D$62)/12,0) -> 0
A27: 2028-03-24 | B27: 1 | C27: 24 | D27: ='Recurring Cash Flows (All Fees)'!D27 -> 0 | E27: 0 | F27: 0 | N27: =IF(Admin="On",-1*TieredValue(K27,Recurring!$C$58:$D$62)/12,0) -> 0
A28: 2028-04-24 | B28: 2 | C28: 25 | D28: ='Recurring Cash Flows (All Fees)'!D28 -> 0 | E28: 0 | F28: 0 | N28: =IF(Admin="On",-1*TieredValue(K28,Recurring!$C$58:$D$62)/12,0) -> 0
A29: 2028-05-24 | B29: 2 | C29: 26 | D29: ='Recurring Cash Flows (All Fees)'!D29 -> 0 | E29: 0 | F29: 0 | N29: =IF(Admin="On",-1*TieredValue(K29,Recurring!$C$58:$D$62)/12,0) -> 0
A30: 2028-06-24 | B30: 2 | C30: 27 | D30: ='Recurring Cash Flows (All Fees)'!D30 -> 0 | E30: 0 | F30: 0 | N30: =IF(Admin="On",-1*TieredValue(K30,Recurring!$C$58:$D$62)/12,0) -> 0
A31: 2028-07-24 | B31: 2 | C31: 28 | D31: ='Recurring Cash Flows (All Fees)'!D31 -> 0 | E31: 0 | F31: 0 | N31: =IF(Admin="On",-1*TieredValue(K31,Recurring!$C$58:$D$62)/12,0) -> 0
A32: 2028-08-24 | B32: 2 | C32: 29 | D32: ='Recurring Cash Flows (All Fees)'!D32 -> 0 | E32: 0 | F32: 0 | N32: =IF(Admin="On",-1*TieredValue(K32,Recurring!$C$58:$D$62)/12,0) -> 0
A33: 2028-09-24 | B33: 2 | C33: 30 | D33: ='Recurring Cash Flows (All Fees)'!D33 -> 0 | E33: 0 | F33: 0 | N33: =IF(Admin="On",-1*TieredValue(K33,Recurring!$C$58:$D$62)/12,0) -> 0
A34: 2028-10-24 | B34: 2 | C34: 31 | D34: ='Recurring Cash Flows (All Fees)'!D34 -> 0 | E34: 0 | F34: 0 | N34: =IF(Admin="On",-1*TieredValue(K34,Recurring!$C$58:$D$62)/12,0) -> 0
A35: 2028-11-24 | B35: 2 | C35: 32 | D35: ='Recurring Cash Flows (All Fees)'!D35 -> 0 | E35: 0 | F35: 0 | N35: =IF(Admin="On",-1*TieredValue(K35,Recurring!$C$58:$D$62)/12,0) -> 0
A36: 2028-12-24 | B36: 2 | C36: 33 | D36: ='Recurring Cash Flows (All Fees)'!D36 -> 0 | E36: 0 | F36: 0 | N36: =IF(Admin="On",-1*TieredValue(K36,Recurring!$C$58:$D$62)/12,0) -> 0
A37: 2029-01-24 | B37: 2 | C37: 34 | D37: ='Recurring Cash Flows (All Fees)'!D37 -> 0 | E37: 0 | F37: 0 | N37: =IF(Admin="On",-1*TieredValue(K37,Recurring!$C$58:$D$62)/12,0) -> 0
A38: 2029-02-24 | B38: 2 | C38: 35 | D38: ='Recurring Cash Flows (All Fees)'!D38 -> 0 | E38: 0 | F38: 0 | N38: =IF(Admin="On",-1*TieredValue(K38,Recurring!$C$58:$D$62)/12,0) -> 0
A39: 2029-03-24 | B39: 2 | C39: 36 | D39: ='Recurring Cash Flows (All Fees)'!D39 -> 0 | E39: 0 | F39: 0 | N39: =IF(Admin="On",-1*TieredValue(K39,Recurring!$C$58:$D$62)/12,0) -> 0
A40: 2029-04-24 | B40: 3 | C40: 37 | D40: ='Recurring Cash Flows (All Fees)'!D40 -> 0 | E40: 0 | F40: 0 | N40: =IF(Admin="On",-1*TieredValue(K40,Recurring!$C$58:$D$62)/12,0) -> 0
A41: 2029-05-24 | B41: 3 | C41: 38 | D41: ='Recurring Cash Flows (All Fees)'!D41 -> 0 | E41: 0 | F41: 0 | N41: =IF(Admin="On",-1*TieredValue(K41,Recurring!$C$58:$D$62)/12,0) -> 0
A42: 2029-06-24 | B42: 3 | C42: 39 | D42: ='Recurring Cash Flows (All Fees)'!D42 -> 0 | E42: 0 | F42: 0 | N42: =IF(Admin="On",-1*TieredValue(K42,Recurring!$C$58:$D$62)/12,0) -> 0
A43: 2029-07-24 | B43: 3 | C43: 40 | D43: ='Recurring Cash Flows (All Fees)'!D43 -> 0 | E43: 0 | F43: 0 | N43: =IF(Admin="On",-1*TieredValue(K43,Recurring!$C$58:$D$62)/12,0) -> 0
A44: 2029-08-24 | B44: 3 | C44: 41 | D44: ='Recurring Cash Flows (All Fees)'!D44 -> 0 | E44: 0 | F44: 0 | N44: =IF(Admin="On",-1*TieredValue(K44,Recurring!$C$58:$D$62)/12,0) -> 0
A45: 2029-09-24 | B45: 3 | C45: 42 | D45: ='Recurring Cash Flows (All Fees)'!D45 -> 0 | E45: 0 | F45: 0 | N45: =IF(Admin="On",-1*TieredValue(K45,Recurring!$C$58:$D$62)/12,0) -> 0
A46: 2029-10-24 | B46: 3 | C46: 43 | D46: ='Recurring Cash Flows (All Fees)'!D46 -> 0 | E46: 0 | F46: 0 | N46: =IF(Admin="On",-1*TieredValue(K46,Recurring!$C$58:$D$62)/12,0) -> 0
A47: 2029-11-24 | B47: 3 | C47: 44 | D47: ='Recurring Cash Flows (All Fees)'!D47 -> 0 | E47: 0 | F47: 0 | N47: =IF(Admin="On",-1*TieredValue(K47,Recurring!$C$58:$D$62)/12,0) -> 0
A48: 2029-12-24 | B48: 3 | C48: 45 | D48: ='Recurring Cash Flows (All Fees)'!D48 -> 0 | E48: 0 | F48: 0 | N48: =IF(Admin="On",-1*TieredValue(K48,Recurring!$C$58:$D$62)/12,0) -> 0
A49: 2030-01-24 | B49: 3 | C49: 46 | D49: ='Recurring Cash Flows (All Fees)'!D49 -> 0 | E49: 0 | F49: 0 | N49: =IF(Admin="On",-1*TieredValue(K49,Recurring!$C$58:$D$62)/12,0) -> 0
A50: 2030-02-24 | B50: 3 | C50: 47 | D50: ='Recurring Cash Flows (All Fees)'!D50 -> 0 | E50: 0 | F50: 0 | N50: =IF(Admin="On",-1*TieredValue(K50,Recurring!$C$58:$D$62)/12,0) -> 0
A51: 2030-03-24 | B51: 3 | C51: 48 | D51: ='Recurring Cash Flows (All Fees)'!D51 -> 0 | E51: 0 | F51: 0 | N51: =IF(Admin="On",-1*TieredValue(K51,Recurring!$C$58:$D$62)/12,0) -> 0
A52: 2030-04-24 | B52: 4 | C52: 49 | D52: ='Recurring Cash Flows (All Fees)'!D52 -> 0 | E52: 0 | F52: 0 | N52: =IF(Admin="On",-1*TieredValue(K52,Recurring!$C$58:$D$62)/12,0) -> 0
A53: 2030-05-24 | B53: 4 | C53: 50 | D53: ='Recurring Cash Flows (All Fees)'!D53 -> 0 | E53: 0 | F53: 0 | N53: =IF(Admin="On",-1*TieredValue(K53,Recurring!$C$58:$D$62)/12,0) -> 0
A54: 2030-06-24 | B54: 4 | C54: 51 | D54: ='Recurring Cash Flows (All Fees)'!D54 -> 0 | E54: 0 | F54: 0 | N54: =IF(Admin="On",-1*TieredValue(K54,Recurring!$C$58:$D$62)/12,0) -> 0
A55: 2030-07-24 | B55: 4 | C55: 52 | D55: ='Recurring Cash Flows (All Fees)'!D55 -> 0 | E55: 0 | F55: 0 | N55: =IF(Admin="On",-1*TieredValue(K55,Recurring!$C$58:$D$62)/12,0) -> 0
A56: 2030-08-24 | B56: 4 | C56: 53 | D56: ='Recurring Cash Flows (All Fees)'!D56 -> 0 | E56: 0 | F56: 0 | N56: =IF(Admin="On",-1*TieredValue(K56,Recurring!$C$58:$D$62)/12,0) -> 0
A57: 2030-09-24 | B57: 4 | C57: 54 | D57: ='Recurring Cash Flows (All Fees)'!D57 -> 0 | E57: 0 | F57: 0 | N57: =IF(Admin="On",-1*TieredValue(K57,Recurring!$C$58:$D$62)/12,0) -> 0
A58: 2030-10-24 | B58: 4 | C58: 55 | D58: ='Recurring Cash Flows (All Fees)'!D58 -> 0 | E58: 0 | F58: 0 | N58: =IF(Admin="On",-1*TieredValue(K58,Recurring!$C$58:$D$62)/12,0) -> 0
A59: 2030-11-24 | B59: 4 | C59: 56 | D59: ='Recurring Cash Flows (All Fees)'!D59 -> 0 | E59: 0 | F59: 0 | N59: =IF(Admin="On",-1*TieredValue(K59,Recurring!$C$58:$D$62)/12,0) -> 0
A60: 2030-12-24 | B60: 4 | C60: 57 | D60: ='Recurring Cash Flows (All Fees)'!D60 -> 0 | E60: 0 | F60: 0 | N60: =IF(Admin="On",-1*TieredValue(K60,Recurring!$C$58:$D$62)/12,0) -> 0
A61: 2031-01-24 | B61: 4 | C61: 58 | D61: ='Recurring Cash Flows (All Fees)'!D61 -> 0 | E61: 0 | F61: 0 | N61: =IF(Admin="On",-1*TieredValue(K61,Recurring!$C$58:$D$62)/12,0) -> 0
A62: 2031-02-24 | B62: 4 | C62: 59 | D62: ='Recurring Cash Flows (All Fees)'!D62 -> 0 | E62: 0 | F62: 0 | N62: =IF(Admin="On",-1*TieredValue(K62,Recurring!$C$58:$D$62)/12,0) -> 0
A63: 2031-03-24 | B63: 4 | C63: 60 | D63: ='Recurring Cash Flows (All Fees)'!D63 -> 0 | E63: 0 | F63: 0 | N63: =IF(Admin="On",-1*TieredValue(K63,Recurring!$C$58:$D$62)/12,0) -> 0
A64: 2031-04-24 | B64: 5 | C64: 61 | D64: ='Recurring Cash Flows (All Fees)'!D64 -> 0 | E64: 0 | F64: 0 | N64: =IF(Admin="On",-1*TieredValue(K64,Recurring!$C$58:$D$62)/12,0) -> 0
A65: 2031-05-24 | B65: 5 | C65: 62 | D65: ='Recurring Cash Flows (All Fees)'!D65 -> 0 | E65: 0 | F65: 0 | N65: =IF(Admin="On",-1*TieredValue(K65,Recurring!$C$58:$D$62)/12,0) -> 0
A66: 2031-06-24 | B66: 5 | C66: 63 | D66: ='Recurring Cash Flows (All Fees)'!D66 -> 0 | E66: 0 | F66: 0 | N66: =IF(Admin="On",-1*TieredValue(K66,Recurring!$C$58:$D$62)/12,0) -> 0
A67: 2031-07-24 | B67: 5 | C67: 64 | D67: ='Recurring Cash Flows (All Fees)'!D67 -> 0 | E67: 0 | F67: 0 | N67: =IF(Admin="On",-1*TieredValue(K67,Recurring!$C$58:$D$62)/12,0) -> 0
A68: 2031-08-24 | B68: 5 | C68: 65 | D68: ='Recurring Cash Flows (All Fees)'!D68 -> 0 | E68: =IF(Advisor = "On",-1*E$2*$D68,0) -> 0 | F68: =IF(Admin = "On",-1*F$2*$D68,0) -> 0 | G68: =IF(Fund = "On",-1*G$2*$D68,0) ->  | J68: =IF(Fund="On",-1*$J$2*I68/12,0) ->  | N68: =IF(Admin="On",-1*TieredValue(K68,Recurring!$C$58:$D$62)/12,0) -> 0 | Q68: =IF(Advisor = "On",-1*Q$2*$K68/12,0) -> 
A69: 2031-09-24 | B69: =ROUNDDOWN((C69-1)/12,0) -> 5 | C69: 66 | D69: ='Recurring Cash Flows (All Fees)'!D69 -> 0 | E69: 0 | F69: 0 | I69: =H69*(1+$I$2)^(YEARFRAC(A69,A70,3)) ->  | K69: =SUM(I69:J69) ->  | N69: =IF(Admin="On",-1*TieredValue(K69,Recurring!$C$58:$D$62)/12,0) -> 0 | R69: =SUM(K69,N69:Q69) -> 
A70: =DATE(YEAR(A69+1),MONTH(A69+1)+1,DAY(A69+1))-1 -> 2031-10-24 | B70: 5 | C70: 67 | D70: ='Recurring Cash Flows (All Fees)'!D70 -> 0 | E70: 0 | F70: 0 | H70: =R69+SUM(D70:G70) ->  | N70: =IF(Admin="On",-1*TieredValue(K70,Recurring!$C$58:$D$62)/12,0) -> 0
A71: 2031-11-24 | B71: 5 | C71: 68 | D71: ='Recurring Cash Flows (All Fees)'!D71 -> 0 | E71: 0 | F71: 0 | N71: =IF(Admin="On",-1*TieredValue(K71,Recurring!$C$58:$D$62)/12,0) -> 0
A72: 2031-12-24 | B72: 5 | C72: 69 | D72: ='Recurring Cash Flows (All Fees)'!D72 -> 0 | E72: 0 | F72: 0 | N72: =IF(Admin="On",-1*TieredValue(K72,Recurring!$C$58:$D$62)/12,0) -> 0
A73: 2032-01-24 | B73: 5 | C73: 70 | D73: ='Recurring Cash Flows (All Fees)'!D73 -> 0 | E73: 0 | F73: 0 | N73: =IF(Admin="On",-1*TieredValue(K73,Recurring!$C$58:$D$62)/12,0) -> 0
A74: 2032-02-24 | B74: 5 | C74: 71 | D74: ='Recurring Cash Flows (All Fees)'!D74 -> 0 | E74: 0 | F74: 0 | N74: =IF(Admin="On",-1*TieredValue(K74,Recurring!$C$58:$D$62)/12,0) -> 0
A75: 2032-03-24 | B75: 5 | C75: 72 | D75: ='Recurring Cash Flows (All Fees)'!D75 -> 0 | E75: 0 | F75: 0 | N75: =IF(Admin="On",-1*TieredValue(K75,Recurring!$C$58:$D$62)/12,0) -> 0
A76: 2032-04-24 | B76: 6 | C76: 73 | D76: ='Recurring Cash Flows (All Fees)'!D76 -> 0 | E76: 0 | F76: 0 | N76: =IF(Admin="On",-1*TieredValue(K76,Recurring!$C$58:$D$62)/12,0) -> 0
A77: 2032-05-24 | B77: 6 | C77: 74 | D77: ='Recurring Cash Flows (All Fees)'!D77 -> 0 | E77: 0 | F77: 0 | N77: =IF(Admin="On",-1*TieredValue(K77,Recurring!$C$58:$D$62)/12,0) -> 0
A78: 2032-06-24 | B78: 6 | C78: 75 | D78: ='Recurring Cash Flows (All Fees)'!D78 -> 0 | E78: 0 | F78: 0 | N78: =IF(Admin="On",-1*TieredValue(K78,Recurring!$C$58:$D$62)/12,0) -> 0
A79: 2032-07-24 | B79: 6 | C79: 76 | D79: ='Recurring Cash Flows (All Fees)'!D79 -> 0 | E79: 0 | F79: 0 | N79: =IF(Admin="On",-1*TieredValue(K79,Recurring!$C$58:$D$62)/12,0) -> 0
A80: 2032-08-24 | B80: 6 | C80: 77 | D80: ='Recurring Cash Flows (All Fees)'!D80 -> 0 | E80: 0 | F80: 0 | N80: =IF(Admin="On",-1*TieredValue(K80,Recurring!$C$58:$D$62)/12,0) -> 0
A81: 2032-09-24 | B81: 6 | C81: 78 | D81: ='Recurring Cash Flows (All Fees)'!D81 -> 0 | E81: 0 | F81: 0 | N81: =IF(Admin="On",-1*TieredValue(K81,Recurring!$C$58:$D$62)/12,0) -> 0
A82: 2032-10-24 | B82: 6 | C82: 79 | D82: ='Recurring Cash Flows (All Fees)'!D82 -> 0 | E82: 0 | F82: 0 | N82: =IF(Admin="On",-1*TieredValue(K82,Recurring!$C$58:$D$62)/12,0) -> 0
A83: 2032-11-24 | B83: 6 | C83: 80 | D83: ='Recurring Cash Flows (All Fees)'!D83 -> 0 | E83: 0 | F83: 0 | N83: =IF(Admin="On",-1*TieredValue(K83,Recurring!$C$58:$D$62)/12,0) -> 0
A84: 2032-12-24 | B84: 6 | C84: 81 | D84: ='Recurring Cash Flows (All Fees)'!D84 -> 0 | E84: 0 | F84: 0 | N84: =IF(Admin="On",-1*TieredValue(K84,Recurring!$C$58:$D$62)/12,0) -> 0
A85: 2033-01-24 | B85: 6 | C85: 82 | D85: ='Recurring Cash Flows (All Fees)'!D85 -> 0 | E85: 0 | F85: 0 | N85: =IF(Admin="On",-1*TieredValue(K85,Recurring!$C$58:$D$62)/12,0) -> 0
A86: 2033-02-24 | B86: 6 | C86: 83 | D86: ='Recurring Cash Flows (All Fees)'!D86 -> 0 | E86: 0 | F86: 0 | N86: =IF(Admin="On",-1*TieredValue(K86,Recurring!$C$58:$D$62)/12,0) -> 0
A87: 2033-03-24 | B87: 6 | C87: 84 | D87: ='Recurring Cash Flows (All Fees)'!D87 -> 0 | E87: 0 | F87: 0 | N87: =IF(Admin="On",-1*TieredValue(K87,Recurring!$C$58:$D$62)/12,0) -> 0
A88: 2033-04-24 | B88: 7 | C88: 85 | D88: ='Recurring Cash Flows (All Fees)'!D88 -> 0 | E88: 0 | F88: 0 | N88: =IF(Admin="On",-1*TieredValue(K88,Recurring!$C$58:$D$62)/12,0) -> 0
A89: 2033-05-24 | B89: 7 | C89: 86 | D89: ='Recurring Cash Flows (All Fees)'!D89 -> 0 | E89: 0 | F89: 0 | N89: =IF(Admin="On",-1*TieredValue(K89,Recurring!$C$58:$D$62)/12,0) -> 0
A90: 2033-06-24 | B90: 7 | C90: 87 | D90: ='Recurring Cash Flows (All Fees)'!D90 -> 0 | E90: 0 | F90: 0 | N90: =IF(Admin="On",-1*TieredValue(K90,Recurring!$C$58:$D$62)/12,0) -> 0
A91: 2033-07-24 | B91: 7 | C91: 88 | D91: ='Recurring Cash Flows (All Fees)'!D91 -> 0 | E91: 0 | F91: 0 | N91: =IF(Admin="On",-1*TieredValue(K91,Recurring!$C$58:$D$62)/12,0) -> 0
A92: 2033-08-24 | B92: 7 | C92: 89 | D92: ='Recurring Cash Flows (All Fees)'!D92 -> 0 | E92: 0 | F92: 0 | N92: =IF(Admin="On",-1*TieredValue(K92,Recurring!$C$58:$D$62)/12,0) -> 0
A93: 2033-09-24 | B93: 7 | C93: 90 | D93: ='Recurring Cash Flows (All Fees)'!D93 -> 0 | E93: 0 | F93: 0 | N93: =IF(Admin="On",-1*TieredValue(K93,Recurring!$C$58:$D$62)/12,0) -> 0
A94: 2033-10-24 | B94: 7 | C94: 91 | D94: ='Recurring Cash Flows (All Fees)'!D94 -> 0 | E94: 0 | F94: 0 | N94: =IF(Admin="On",-1*TieredValue(K94,Recurring!$C$58:$D$62)/12,0) -> 0
A95: 2033-11-24 | B95: 7 | C95: 92 | D95: ='Recurring Cash Flows (All Fees)'!D95 -> 0 | E95: 0 | F95: 0 | N95: =IF(Admin="On",-1*TieredValue(K95,Recurring!$C$58:$D$62)/12,0) -> 0
A96: 2033-12-24 | B96: 7 | C96: 93 | D96: ='Recurring Cash Flows (All Fees)'!D96 -> 0 | E96: 0 | F96: 0 | N96: =IF(Admin="On",-1*TieredValue(K96,Recurring!$C$58:$D$62)/12,0) -> 0
A97: 2034-01-24 | B97: 7 | C97: 94 | D97: ='Recurring Cash Flows (All Fees)'!D97 -> 0 | E97: 0 | F97: 0 | N97: =IF(Admin="On",-1*TieredValue(K97,Recurring!$C$58:$D$62)/12,0) -> 0
A98: 2034-02-24 | B98: 7 | C98: 95 | D98: ='Recurring Cash Flows (All Fees)'!D98 -> 0 | E98: 0 | F98: 0 | N98: =IF(Admin="On",-1*TieredValue(K98,Recurring!$C$58:$D$62)/12,0) -> 0
A99: 2034-03-24 | B99: 7 | C99: 96 | D99: ='Recurring Cash Flows (All Fees)'!D99 -> 0 | E99: 0 | F99: 0 | N99: =IF(Admin="On",-1*TieredValue(K99,Recurring!$C$58:$D$62)/12,0) -> 0
A100: 2034-04-24 | B100: 8 | C100: 97 | D100: ='Recurring Cash Flows (All Fees)'!D100 -> 0 | E100: 0 | F100: 0 | N100: =IF(Admin="On",-1*TieredValue(K100,Recurring!$C$58:$D$62)/12,0) -> 0
A101: 2034-05-24 | B101: 8 | C101: 98 | D101: ='Recurring Cash Flows (All Fees)'!D101 -> 0 | E101: 0 | F101: 0 | N101: =IF(Admin="On",-1*TieredValue(K101,Recurring!$C$58:$D$62)/12,0) -> 0
A102: 2034-06-24 | B102: 8 | C102: 99 | D102: ='Recurring Cash Flows (All Fees)'!D102 -> 0 | E102: 0 | F102: 0 | N102: =IF(Admin="On",-1*TieredValue(K102,Recurring!$C$58:$D$62)/12,0) -> 0
A103: 2034-07-24 | B103: 8 | C103: 100 | D103: ='Recurring Cash Flows (All Fees)'!D103 -> 0 | E103: 0 | F103: 0 | N103: =IF(Admin="On",-1*TieredValue(K103,Recurring!$C$58:$D$62)/12,0) -> 0
A104: 2034-08-24 | B104: 8 | C104: 101 | D104: ='Recurring Cash Flows (All Fees)'!D104 -> 0 | E104: 0 | F104: 0 | N104: =IF(Admin="On",-1*TieredValue(K104,Recurring!$C$58:$D$62)/12,0) -> 0
A105: 2034-09-24 | B105: 8 | C105: 102 | D105: ='Recurring Cash Flows (All Fees)'!D105 -> 0 | E105: 0 | F105: 0 | N105: =IF(Admin="On",-1*TieredValue(K105,Recurring!$C$58:$D$62)/12,0) -> 0
A106: 2034-10-24 | B106: 8 | C106: 103 | D106: ='Recurring Cash Flows (All Fees)'!D106 -> 0 | E106: 0 | F106: 0 | N106: =IF(Admin="On",-1*TieredValue(K106,Recurring!$C$58:$D$62)/12,0) -> 0
A107: 2034-11-24 | B107: 8 | C107: 104 | D107: ='Recurring Cash Flows (All Fees)'!D107 -> 0 | E107: 0 | F107: 0 | N107: =IF(Admin="On",-1*TieredValue(K107,Recurring!$C$58:$D$62)/12,0) -> 0
A108: 2034-12-24 | B108: 8 | C108: 105 | D108: ='Recurring Cash Flows (All Fees)'!D108 -> 0 | E108: 0 | F108: 0 | N108: =IF(Admin="On",-1*TieredValue(K108,Recurring!$C$58:$D$62)/12,0) -> 0
A109: 2035-01-24 | B109: 8 | C109: 106 | D109: ='Recurring Cash Flows (All Fees)'!D109 -> 0 | E109: 0 | F109: 0 | N109: =IF(Admin="On",-1*TieredValue(K109,Recurring!$C$58:$D$62)/12,0) -> 0
A110: 2035-02-24 | B110: 8 | C110: 107 | D110: ='Recurring Cash Flows (All Fees)'!D110 -> 0 | E110: 0 | F110: 0 | N110: =IF(Admin="On",-1*TieredValue(K110,Recurring!$C$58:$D$62)/12,0) -> 0
A111: 2035-03-24 | B111: 8 | C111: 108 | D111: ='Recurring Cash Flows (All Fees)'!D111 -> 0 | E111: 0 | F111: 0 | N111: =IF(Admin="On",-1*TieredValue(K111,Recurring!$C$58:$D$62)/12,0) -> 0
A112: 2035-04-24 | B112: 9 | C112: 109 | D112: ='Recurring Cash Flows (All Fees)'!D112 -> 0 | E112: 0 | F112: 0 | N112: =IF(Admin="On",-1*TieredValue(K112,Recurring!$C$58:$D$62)/12,0) -> 0
A113: 2035-05-24 | B113: 9 | C113: 110 | D113: ='Recurring Cash Flows (All Fees)'!D113 -> 0 | E113: 0 | F113: 0 | N113: =IF(Admin="On",-1*TieredValue(K113,Recurring!$C$58:$D$62)/12,0) -> 0
A114: 2035-06-24 | B114: 9 | C114: 111 | D114: ='Recurring Cash Flows (All Fees)'!D114 -> 0 | E114: 0 | F114: 0 | N114: =IF(Admin="On",-1*TieredValue(K114,Recurring!$C$58:$D$62)/12,0) -> 0
A115: 2035-07-24 | B115: 9 | C115: 112 | D115: ='Recurring Cash Flows (All Fees)'!D115 -> 0 | E115: 0 | F115: 0 | N115: =IF(Admin="On",-1*TieredValue(K115,Recurring!$C$58:$D$62)/12,0) -> 0
A116: 2035-08-24 | B116: 9 | C116: 113 | D116: ='Recurring Cash Flows (All Fees)'!D116 -> 0 | E116: 0 | F116: 0 | N116: =IF(Admin="On",-1*TieredValue(K116,Recurring!$C$58:$D$62)/12,0) -> 0
A117: 2035-09-24 | B117: 9 | C117: 114 | D117: ='Recurring Cash Flows (All Fees)'!D117 -> 0 | E117: 0 | F117: 0 | N117: =IF(Admin="On",-1*TieredValue(K117,Recurring!$C$58:$D$62)/12,0) -> 0
A118: 2035-10-24 | B118: 9 | C118: 115 | D118: ='Recurring Cash Flows (All Fees)'!D118 -> 0 | E118: 0 | F118: 0 | N118: =IF(Admin="On",-1*TieredValue(K118,Recurring!$C$58:$D$62)/12,0) -> 0
A119: 2035-11-24 | B119: 9 | C119: 116 | D119: ='Recurring Cash Flows (All Fees)'!D119 -> 0 | E119: 0 | F119: 0 | N119: =IF(Admin="On",-1*TieredValue(K119,Recurring!$C$58:$D$62)/12,0) -> 0
A120: 2035-12-24 | B120: 9 | C120: 117 | D120: ='Recurring Cash Flows (All Fees)'!D120 -> 0 | E120: 0 | F120: 0 | N120: =IF(Admin="On",-1*TieredValue(K120,Recurring!$C$58:$D$62)/12,0) -> 0
A121: 2036-01-24 | B121: 9 | C121: 118 | D121: ='Recurring Cash Flows (All Fees)'!D121 -> 0 | E121: 0 | F121: 0 | N121: =IF(Admin="On",-1*TieredValue(K121,Recurring!$C$58:$D$62)/12,0) -> 0
A122: 2036-02-24 | B122: 9 | C122: 119 | D122: ='Recurring Cash Flows (All Fees)'!D122 -> 0 | E122: 0 | F122: 0 | N122: =IF(Admin="On",-1*TieredValue(K122,Recurring!$C$58:$D$62)/12,0) -> 0
A123: 2036-03-24 | B123: 9 | C123: 120 | D123: ='Recurring Cash Flows (All Fees)'!D123 -> 0 | E123: 0 | F123: 0 | N123: =IF(Admin="On",-1*TieredValue(K123,Recurring!$C$58:$D$62)/12,0) -> 0
A124: 2036-04-24 | B124: 10 | C124: 121 | D124: ='Recurring Cash Flows (All Fees)'!D124 -> 0 | E124: 0 | F124: 0 | N124: =IF(Admin="On",-1*TieredValue(K124,Recurring!$C$58:$D$62)/12,0) -> 0
A125: 2036-05-24 | B125: 10 | C125: 122 | D125: ='Recurring Cash Flows (All Fees)'!D125 -> 0 | E125: 0 | F125: 0 | N125: =IF(Admin="On",-1*TieredValue(K125,Recurring!$C$58:$D$62)/12,0) -> 0
A126: 2036-06-24 | B126: 10 | C126: 123 | D126: ='Recurring Cash Flows (All Fees)'!D126 -> 0 | E126: 0 | F126: 0 | N126: =IF(Admin="On",-1*TieredValue(K126,Recurring!$C$58:$D$62)/12,0) -> 0
A127: 2036-07-24 | B127: 10 | C127: 124 | D127: ='Recurring Cash Flows (All Fees)'!D127 -> 0 | E127: 0 | F127: 0 | N127: =IF(Admin="On",-1*TieredValue(K127,Recurring!$C$58:$D$62)/12,0) -> 0
A128: 2036-08-24 | B128: 10 | C128: 125 | D128: ='Recurring Cash Flows (All Fees)'!D128 -> 0 | E128: 0 | F128: 0 | N128: =IF(Admin="On",-1*TieredValue(K128,Recurring!$C$58:$D$62)/12,0) -> 0
A129: 2036-09-24 | B129: 10 | C129: 126 | D129: ='Recurring Cash Flows (All Fees)'!D129 -> 0 | E129: 0 | F129: 0 | N129: =IF(Admin="On",-1*TieredValue(K129,Recurring!$C$58:$D$62)/12,0) -> 0
A130: 2036-10-24 | B130: 10 | C130: 127 | D130: ='Recurring Cash Flows (All Fees)'!D130 -> 0 | E130: 0 | F130: 0 | N130: =IF(Admin="On",-1*TieredValue(K130,Recurring!$C$58:$D$62)/12,0) -> 0
A131: 2036-11-24 | B131: 10 | C131: 128 | D131: ='Recurring Cash Flows (All Fees)'!D131 -> 0 | E131: 0 | F131: 0 | N131: =IF(Admin="On",-1*TieredValue(K131,Recurring!$C$58:$D$62)/12,0) -> 0
A132: 2036-12-24 | B132: 10 | C132: 129 | D132: ='Recurring Cash Flows (All Fees)'!D132 -> 0 | E132: =IF(Advisor = "On",-1*E$2*$D132,0) -> 0 | F132: =IF(Admin = "On",-1*F$2*$D132,0) -> 0 | G132: =IF(Fund = "On",-1*G$2*$D132,0) ->  | J132: =IF(Fund="On",-1*$J$2*I132/12,0) ->  | N132: =IF(Admin="On",-1*TieredValue(K132,Recurring!$C$58:$D$62)/12,0) -> 0 | Q132: =IF(Advisor = "On",-1*Q$2*$K132/12,0) -> 
A133: 2037-01-24 | B133: =ROUNDDOWN((C133-1)/12,0) -> 10 | C133: 130 | D133: ='Recurring Cash Flows (All Fees)'!D133 -> 0 | E133: 0 | F133: 0 | I133: =H133*(1+$I$2)^(YEARFRAC(A133,A134,3)) ->  | K133: =SUM(I133:J133) ->  | N133: =IF(Admin="On",-1*TieredValue(K133,Recurring!$C$58:$D$62)/12,0) -> 0 | R133: =SUM(K133,N133:Q133) -> 
A134: =DATE(YEAR(A133+1),MONTH(A133+1)+1,DAY(A133+1))-1 -> 2037-02-24 | B134: 10 | C134: 131 | D134: ='Recurring Cash Flows (All Fees)'!D134 -> 0 | E134: 0 | F134: 0 | H134: =R133+SUM(D134:G134) ->  | N134: =IF(Admin="On",-1*TieredValue(K134,Recurring!$C$58:$D$62)/12,0) -> 0
A135: 2037-03-24 | B135: 10 | C135: 132 | D135: ='Recurring Cash Flows (All Fees)'!D135 -> 0 | E135: 0 | F135: 0 | N135: =IF(Admin="On",-1*TieredValue(K135,Recurring!$C$58:$D$62)/12,0) -> 0
A136: 2037-04-24 | B136: 11 | C136: 133 | D136: ='Recurring Cash Flows (All Fees)'!D136 -> 0 | E136: 0 | F136: 0 | N136: =IF(Admin="On",-1*TieredValue(K136,Recurring!$C$58:$D$62)/12,0) -> 0
A137: 2037-05-24 | B137: 11 | C137: 134 | D137: ='Recurring Cash Flows (All Fees)'!D137 -> 0 | E137: 0 | F137: 0 | N137: =IF(Admin="On",-1*TieredValue(K137,Recurring!$C$58:$D$62)/12,0) -> 0
A138: 2037-06-24 | B138: 11 | C138: 135 | D138: ='Recurring Cash Flows (All Fees)'!D138 -> 0 | E138: 0 | F138: 0 | N138: =IF(Admin="On",-1*TieredValue(K138,Recurring!$C$58:$D$62)/12,0) -> 0
A139: 2037-07-24 | B139: 11 | C139: 136 | D139: ='Recurring Cash Flows (All Fees)'!D139 -> 0 | E139: 0 | F139: 0 | N139: =IF(Admin="On",-1*TieredValue(K139,Recurring!$C$58:$D$62)/12,0) -> 0
A140: 2037-08-24 | B140: 11 | C140: 137 | D140: ='Recurring Cash Flows (All Fees)'!D140 -> 0 | E140: 0 | F140: 0 | N140: =IF(Admin="On",-1*TieredValue(K140,Recurring!$C$58:$D$62)/12,0) -> 0
A141: 2037-09-24 | B141: 11 | C141: 138 | D141: ='Recurring Cash Flows (All Fees)'!D141 -> 0 | E141: 0 | F141: 0 | N141: =IF(Admin="On",-1*TieredValue(K141,Recurring!$C$58:$D$62)/12,0) -> 0
A142: 2037-10-24 | B142: 11 | C142: 139 | D142: ='Recurring Cash Flows (All Fees)'!D142 -> 0 | E142: 0 | F142: 0 | N142: =IF(Admin="On",-1*TieredValue(K142,Recurring!$C$58:$D$62)/12,0) -> 0
A143: 2037-11-24 | B143: 11 | C143: 140 | D143: ='Recurring Cash Flows (All Fees)'!D143 -> 0 | E143: 0 | F143: 0 | N143: =IF(Admin="On",-1*TieredValue(K143,Recurring!$C$58:$D$62)/12,0) -> 0
A144: 2037-12-24 | B144: 11 | C144: 141 | D144: ='Recurring Cash Flows (All Fees)'!D144 -> 0 | E144: 0 | F144: 0 | N144: =IF(Admin="On",-1*TieredValue(K144,Recurring!$C$58:$D$62)/12,0) -> 0
A145: 2038-01-24 | B145: 11 | C145: 142 | D145: ='Recurring Cash Flows (All Fees)'!D145 -> 0 | E145: 0 | F145: 0 | N145: =IF(Admin="On",-1*TieredValue(K145,Recurring!$C$58:$D$62)/12,0) -> 0
A146: 2038-02-24 | B146: 11 | C146: 143 | D146: ='Recurring Cash Flows (All Fees)'!D146 -> 0 | E146: 0 | F146: 0 | N146: =IF(Admin="On",-1*TieredValue(K146,Recurring!$C$58:$D$62)/12,0) -> 0
A147: 2038-03-24 | B147: 11 | C147: 144 | D147: ='Recurring Cash Flows (All Fees)'!D147 -> 0 | E147: 0 | F147: 0 | N147: =IF(Admin="On",-1*TieredValue(K147,Recurring!$C$58:$D$62)/12,0) -> 0
A148: 2038-04-24 | B148: 12 | C148: 145 | D148: ='Recurring Cash Flows (All Fees)'!D148 -> 0 | E148: 0 | F148: 0 | N148: =IF(Admin="On",-1*TieredValue(K148,Recurring!$C$58:$D$62)/12,0) -> 0
A149: 2038-05-24 | B149: 12 | C149: 146 | D149: ='Recurring Cash Flows (All Fees)'!D149 -> 0 | E149: 0 | F149: 0 | N149: =IF(Admin="On",-1*TieredValue(K149,Recurring!$C$58:$D$62)/12,0) -> 0
A150: 2038-06-24 | B150: 12 | C150: 147 | D150: ='Recurring Cash Flows (All Fees)'!D150 -> 0 | E150: 0 | F150: 0 | N150: =IF(Admin="On",-1*TieredValue(K150,Recurring!$C$58:$D$62)/12,0) -> 0
A151: 2038-07-24 | B151: 12 | C151: 148 | D151: ='Recurring Cash Flows (All Fees)'!D151 -> 0 | E151: 0 | F151: 0 | N151: =IF(Admin="On",-1*TieredValue(K151,Recurring!$C$58:$D$62)/12,0) -> 0
A152: 2038-08-24 | B152: 12 | C152: 149 | D152: ='Recurring Cash Flows (All Fees)'!D152 -> 0 | E152: 0 | F152: 0 | N152: =IF(Admin="On",-1*TieredValue(K152,Recurring!$C$58:$D$62)/12,0) -> 0
A153: 2038-09-24 | B153: 12 | C153: 150 | D153: ='Recurring Cash Flows (All Fees)'!D153 -> 0 | E153: 0 | F153: 0 | N153: =IF(Admin="On",-1*TieredValue(K153,Recurring!$C$58:$D$62)/12,0) -> 0
A154: 2038-10-24 | B154: 12 | C154: 151 | D154: ='Recurring Cash Flows (All Fees)'!D154 -> 0 | E154: 0 | F154: 0 | N154: =IF(Admin="On",-1*TieredValue(K154,Recurring!$C$58:$D$62)/12,0) -> 0
A155: 2038-11-24 | B155: 12 | C155: 152 | D155: ='Recurring Cash Flows (All Fees)'!D155 -> 0 | E155: 0 | F155: 0 | N155: =IF(Admin="On",-1*TieredValue(K155,Recurring!$C$58:$D$62)/12,0) -> 0
A156: 2038-12-24 | B156: 12 | C156: 153 | D156: ='Recurring Cash Flows (All Fees)'!D156 -> 0 | E156: 0 | F156: 0 | N156: =IF(Admin="On",-1*TieredValue(K156,Recurring!$C$58:$D$62)/12,0) -> 0
A157: 2039-01-24 | B157: 12 | C157: 154 | D157: ='Recurring Cash Flows (All Fees)'!D157 -> 0 | E157: 0 | F157: 0 | N157: =IF(Admin="On",-1*TieredValue(K157,Recurring!$C$58:$D$62)/12,0) -> 0
A158: 2039-02-24 | B158: 12 | C158: 155 | D158: ='Recurring Cash Flows (All Fees)'!D158 -> 0 | E158: 0 | F158: 0 | N158: =IF(Admin="On",-1*TieredValue(K158,Recurring!$C$58:$D$62)/12,0) -> 0
A159: 2039-03-24 | B159: 12 | C159: 156 | D159: ='Recurring Cash Flows (All Fees)'!D159 -> 0 | E159: 0 | F159: 0 | N159: =IF(Admin="On",-1*TieredValue(K159,Recurring!$C$58:$D$62)/12,0) -> 0
A160: 2039-04-24 | B160: 13 | C160: 157 | D160: ='Recurring Cash Flows (All Fees)'!D160 -> 0 | E160: 0 | F160: 0 | N160: =IF(Admin="On",-1*TieredValue(K160,Recurring!$C$58:$D$62)/12,0) -> 0
A161: 2039-05-24 | B161: 13 | C161: 158 | D161: ='Recurring Cash Flows (All Fees)'!D161 -> 0 | E161: 0 | F161: 0 | N161: =IF(Admin="On",-1*TieredValue(K161,Recurring!$C$58:$D$62)/12,0) -> 0
A162: 2039-06-24 | B162: 13 | C162: 159 | D162: ='Recurring Cash Flows (All Fees)'!D162 -> 0 | E162: 0 | F162: 0 | N162: =IF(Admin="On",-1*TieredValue(K162,Recurring!$C$58:$D$62)/12,0) -> 0
A163: 2039-07-24 | B163: 13 | C163: 160 | D163: ='Recurring Cash Flows (All Fees)'!D163 -> 0 | E163: 0 | F163: 0 | N163: =IF(Admin="On",-1*TieredValue(K163,Recurring!$C$58:$D$62)/12,0) -> 0
A164: 2039-08-24 | B164: 13 | C164: 161 | D164: ='Recurring Cash Flows (All Fees)'!D164 -> 0 | E164: 0 | F164: 0 | N164: =IF(Admin="On",-1*TieredValue(K164,Recurring!$C$58:$D$62)/12,0) -> 0
A165: 2039-09-24 | B165: 13 | C165: 162 | D165: ='Recurring Cash Flows (All Fees)'!D165 -> 0 | E165: 0 | F165: 0 | N165: =IF(Admin="On",-1*TieredValue(K165,Recurring!$C$58:$D$62)/12,0) -> 0
A166: 2039-10-24 | B166: 13 | C166: 163 | D166: ='Recurring Cash Flows (All Fees)'!D166 -> 0 | E166: 0 | F166: 0 | N166: =IF(Admin="On",-1*TieredValue(K166,Recurring!$C$58:$D$62)/12,0) -> 0
A167: 2039-11-24 | B167: 13 | C167: 164 | D167: ='Recurring Cash Flows (All Fees)'!D167 -> 0 | E167: 0 | F167: 0 | N167: =IF(Admin="On",-1*TieredValue(K167,Recurring!$C$58:$D$62)/12,0) -> 0
A168: 2039-12-24 | B168: 13 | C168: 165 | D168: ='Recurring Cash Flows (All Fees)'!D168 -> 0 | E168: 0 | F168: 0 | N168: =IF(Admin="On",-1*TieredValue(K168,Recurring!$C$58:$D$62)/12,0) -> 0
A169: 2040-01-24 | B169: 13 | C169: 166 | D169: ='Recurring Cash Flows (All Fees)'!D169 -> 0 | E169: 0 | F169: 0 | N169: =IF(Admin="On",-1*TieredValue(K169,Recurring!$C$58:$D$62)/12,0) -> 0
A170: 2040-02-24 | B170: 13 | C170: 167 | D170: ='Recurring Cash Flows (All Fees)'!D170 -> 0 | E170: 0 | F170: 0 | N170: =IF(Admin="On",-1*TieredValue(K170,Recurring!$C$58:$D$62)/12,0) -> 0
A171: 2040-03-24 | B171: 13 | C171: 168 | D171: ='Recurring Cash Flows (All Fees)'!D171 -> 0 | E171: 0 | F171: 0 | N171: =IF(Admin="On",-1*TieredValue(K171,Recurring!$C$58:$D$62)/12,0) -> 0
A172: 2040-04-24 | B172: 14 | C172: 169 | D172: ='Recurring Cash Flows (All Fees)'!D172 -> 0 | E172: 0 | F172: 0 | N172: =IF(Admin="On",-1*TieredValue(K172,Recurring!$C$58:$D$62)/12,0) -> 0
A173: 2040-05-24 | B173: 14 | C173: 170 | D173: ='Recurring Cash Flows (All Fees)'!D173 -> 0 | E173: 0 | F173: 0 | N173: =IF(Admin="On",-1*TieredValue(K173,Recurring!$C$58:$D$62)/12,0) -> 0
A174: 2040-06-24 | B174: 14 | C174: 171 | D174: ='Recurring Cash Flows (All Fees)'!D174 -> 0 | E174: 0 | F174: 0 | N174: =IF(Admin="On",-1*TieredValue(K174,Recurring!$C$58:$D$62)/12,0) -> 0
A175: 2040-07-24 | B175: 14 | C175: 172 | D175: ='Recurring Cash Flows (All Fees)'!D175 -> 0 | E175: 0 | F175: 0 | N175: =IF(Admin="On",-1*TieredValue(K175,Recurring!$C$58:$D$62)/12,0) -> 0
A176: 2040-08-24 | B176: 14 | C176: 173 | D176: ='Recurring Cash Flows (All Fees)'!D176 -> 0 | E176: 0 | F176: 0 | N176: =IF(Admin="On",-1*TieredValue(K176,Recurring!$C$58:$D$62)/12,0) -> 0
A177: 2040-09-24 | B177: 14 | C177: 174 | D177: ='Recurring Cash Flows (All Fees)'!D177 -> 0 | E177: 0 | F177: 0 | N177: =IF(Admin="On",-1*TieredValue(K177,Recurring!$C$58:$D$62)/12,0) -> 0
A178: 2040-10-24 | B178: 14 | C178: 175 | D178: ='Recurring Cash Flows (All Fees)'!D178 -> 0 | E178: 0 | F178: 0 | N178: =IF(Admin="On",-1*TieredValue(K178,Recurring!$C$58:$D$62)/12,0) -> 0
A179: 2040-11-24 | B179: 14 | C179: 176 | D179: ='Recurring Cash Flows (All Fees)'!D179 -> 0 | E179: 0 | F179: 0 | N179: =IF(Admin="On",-1*TieredValue(K179,Recurring!$C$58:$D$62)/12,0) -> 0
A180: 2040-12-24 | B180: 14 | C180: 177 | D180: ='Recurring Cash Flows (All Fees)'!D180 -> 0 | E180: 0 | F180: 0 | N180: =IF(Admin="On",-1*TieredValue(K180,Recurring!$C$58:$D$62)/12,0) -> 0
A181: 2041-01-24 | B181: 14 | C181: 178 | D181: ='Recurring Cash Flows (All Fees)'!D181 -> 0 | E181: 0 | F181: 0 | N181: =IF(Admin="On",-1*TieredValue(K181,Recurring!$C$58:$D$62)/12,0) -> 0
A182: 2041-02-24 | B182: 14 | C182: 179 | D182: ='Recurring Cash Flows (All Fees)'!D182 -> 0 | E182: 0 | F182: 0 | N182: =IF(Admin="On",-1*TieredValue(K182,Recurring!$C$58:$D$62)/12,0) -> 0
A183: 2041-03-24 | B183: 14 | C183: 180 | D183: ='Recurring Cash Flows (All Fees)'!D183 -> 0 | E183: 0 | F183: 0 | N183: =IF(Admin="On",-1*TieredValue(K183,Recurring!$C$58:$D$62)/12,0) -> 0
A184: 2041-04-24 | B184: 15 | C184: 181 | D184: ='Recurring Cash Flows (All Fees)'!D184 -> 0 | E184: 0 | F184: 0 | N184: =IF(Admin="On",-1*TieredValue(K184,Recurring!$C$58:$D$62)/12,0) -> 0
A185: 2041-05-24 | B185: 15 | C185: 182 | D185: ='Recurring Cash Flows (All Fees)'!D185 -> 0 | E185: 0 | F185: 0 | N185: =IF(Admin="On",-1*TieredValue(K185,Recurring!$C$58:$D$62)/12,0) -> 0
A186: 2041-06-24 | B186: 15 | C186: 183 | D186: ='Recurring Cash Flows (All Fees)'!D186 -> 0 | E186: 0 | F186: 0 | N186: =IF(Admin="On",-1*TieredValue(K186,Recurring!$C$58:$D$62)/12,0) -> 0
A187: 2041-07-24 | B187: 15 | C187: 184 | D187: ='Recurring Cash Flows (All Fees)'!D187 -> 0 | E187: 0 | F187: 0 | N187: =IF(Admin="On",-1*TieredValue(K187,Recurring!$C$58:$D$62)/12,0) -> 0
A188: 2041-08-24 | B188: 15 | C188: 185 | D188: ='Recurring Cash Flows (All Fees)'!D188 -> 0 | E188: 0 | F188: 0 | N188: =IF(Admin="On",-1*TieredValue(K188,Recurring!$C$58:$D$62)/12,0) -> 0
A189: 2041-09-24 | B189: 15 | C189: 186 | D189: ='Recurring Cash Flows (All Fees)'!D189 -> 0 | E189: 0 | F189: 0 | N189: =IF(Admin="On",-1*TieredValue(K189,Recurring!$C$58:$D$62)/12,0) -> 0
A190: 2041-10-24 | B190: 15 | C190: 187 | D190: ='Recurring Cash Flows (All Fees)'!D190 -> 0 | E190: 0 | F190: 0 | N190: =IF(Admin="On",-1*TieredValue(K190,Recurring!$C$58:$D$62)/12,0) -> 0
A191: 2041-11-24 | B191: 15 | C191: 188 | D191: ='Recurring Cash Flows (All Fees)'!D191 -> 0 | E191: 0 | F191: 0 | N191: =IF(Admin="On",-1*TieredValue(K191,Recurring!$C$58:$D$62)/12,0) -> 0
A192: 2041-12-24 | B192: 15 | C192: 189 | D192: ='Recurring Cash Flows (All Fees)'!D192 -> 0 | E192: 0 | F192: 0 | N192: =IF(Admin="On",-1*TieredValue(K192,Recurring!$C$58:$D$62)/12,0) -> 0
A193: 2042-01-24 | B193: 15 | C193: 190 | D193: ='Recurring Cash Flows (All Fees)'!D193 -> 0 | E193: 0 | F193: 0 | N193: =IF(Admin="On",-1*TieredValue(K193,Recurring!$C$58:$D$62)/12,0) -> 0
A194: 2042-02-24 | B194: 15 | C194: 191 | D194: ='Recurring Cash Flows (All Fees)'!D194 -> 0 | E194: 0 | F194: 0 | N194: =IF(Admin="On",-1*TieredValue(K194,Recurring!$C$58:$D$62)/12,0) -> 0
A195: 2042-03-24 | B195: 15 | C195: 192 | D195: ='Recurring Cash Flows (All Fees)'!D195 -> 0 | E195: 0 | F195: 0 | N195: =IF(Admin="On",-1*TieredValue(K195,Recurring!$C$58:$D$62)/12,0) -> 0
A196: 2042-04-24 | B196: 16 | C196: 193 | D196: ='Recurring Cash Flows (All Fees)'!D196 -> 0 | E196: =IF(Advisor = "On",-1*E$2*$D196,0) -> 0 | F196: =IF(Admin = "On",-1*F$2*$D196,0) -> 0 | G196: =IF(Fund = "On",-1*G$2*$D196,0) ->  | J196: =IF(Fund="On",-1*$J$2*I196/12,0) ->  | N196: =IF(Admin="On",-1*TieredValue(K196,Recurring!$C$58:$D$62)/12,0) -> 0 | Q196: =IF(Advisor = "On",-1*Q$2*$K196/12,0) -> 
A197: 2042-05-24 | B197: =ROUNDDOWN((C197-1)/12,0) -> 16 | C197: 194 | D197: ='Recurring Cash Flows (All Fees)'!D197 -> 0 | E197: 0 | F197: 0 | I197: =H197*(1+$I$2)^(YEARFRAC(A197,A198,3)) ->  | K197: =SUM(I197:J197) ->  | N197: =IF(Admin="On",-1*TieredValue(K197,Recurring!$C$58:$D$62)/12,0) -> 0 | R197: =SUM(K197,N197:Q197) -> 
A198: =DATE(YEAR(A197+1),MONTH(A197+1)+1,DAY(A197+1))-1 -> 2042-06-24 | B198: 16 | C198: 195 | D198: ='Recurring Cash Flows (All Fees)'!D198 -> 0 | E198: 0 | F198: 0 | H198: =R197+SUM(D198:G198) ->  | N198: =IF(Admin="On",-1*TieredValue(K198,Recurring!$C$58:$D$62)/12,0) -> 0
A199: 2042-07-24 | B199: 16 | C199: 196 | D199: ='Recurring Cash Flows (All Fees)'!D199 -> 0 | E199: 0 | F199: 0 | N199: =IF(Admin="On",-1*TieredValue(K199,Recurring!$C$58:$D$62)/12,0) -> 0
A200: 2042-08-24 | B200: 16 | C200: 197 | D200: ='Recurring Cash Flows (All Fees)'!D200 -> 0 | E200: 0 | F200: 0 | N200: =IF(Admin="On",-1*TieredValue(K200,Recurring!$C$58:$D$62)/12,0) -> 0
... 164 more rows

Sheet Recurring Cash Flows (Advice) (hidden)
I1: Growth | J1: TER | T1: Admin Fees | U1: On | V1: Advisor Fees | W1: Off | X1: Fund Fees | Y1: On
A2: Date | B2: ='Recurring Cash Flows (All Fees)'!B2 -> 2026-04-24 | E2: ='Recurring Cash Flows (All Fees)'!E2 -> 0 | F2: ='Recurring Cash Flows (All Fees)'!F2 -> 0 | G2: ='Recurring Cash Flows (All Fees)'!G2 ->  | I2: =Recurring!C62-Recurring!C59 -> 0.06 | J2: ='Recurring Cash Flows (All Fees)'!J2 -> 0 | Q2: ='Recurring Cash Flows (All Fees)'!Q2 -> 0
A3: CashFlow Dates | B3: Year | C3: Month | D3: Initial Investment | E3: Advisor Initial Fee | F3: Admin Initial Fee | G3: Fund Initial Fee | H3: Net Inv Amount | I3: Growth Before AMF | J3: AMF | K3: Before Fees | L3: Admin Fee (Min) | M3: Admin Fee(Max) | N3: Admin Fee (actual) | O3: Fund Access Fee | P3: Wealth Service | Q3: Ongoing Advisor Fees | R3: Fund After | U3: Portfolio Value | V3: Goal Value | W3: g Reduced | X3: RIY
A4: =B2+1-1 -> 2026-04-24 | B4: =ROUNDDOWN((C4-1)/12,0) -> 0 | C4: 1 | D4: ='Recurring Cash Flows (All Fees)'!D4 -> 0 | E4: =IF(Advisor = "On",-1*E$2*$D4,0) -> 0 | F4: =IF(Admin = "On",-1*F$2*$D4,0) -> 0 | G4: =IF(Fund = "On",-1*G$2*$D4,0) ->  | H4: =SUM(D4:G4) ->  | I4: =H4*(1+$I$2)^(YEARFRAC(A4,A5,3)) ->  | J4: =IF(Fund="On",-1*$J$2*I4/12,0) ->  | K4: =SUM(I4:J4) ->  | N4: =IF(Admin="On",-1*TieredValue(K4,Recurring!$C$58:$D$62)/12,0) ->  | Q4: =IF(Advisor = "On",-1*Q$2*$K4/12,0) -> 0 | R4: =SUM(K4,N4:Q4) ->  | T4: 1 Year | U4: =R15 ->  | V4: ='Recurring Cash Flows (All Fees)'!U4 ->  | W4: =Recurring!$C$62-Recurring!$C$59-Recurring!$C$50 -> 0.06 | X4: ='Recurring Cash Flows (All Fees)'!V4-'Recurring Cash Flows (Advice)'!W4 -> 0
A5: =DATE(YEAR(A4+1),MONTH(A4+1)+1,DAY(A4+1))-1 -> 2026-05-24 | B5: =ROUNDDOWN((C5-1)/12,0) -> 0 | C5: 2 | D5: ='Recurring Cash Flows (All Fees)'!D5 -> 0 | E5: 0 | F5: 0 | H5: =R4+SUM(D5:G5) ->  | I5: =H5*(1+$I$2)^(YEARFRAC(A5,A6,3)) ->  | K5: =SUM(I5:J5) ->  | N5: =IF(Admin="On",-1*TieredValue(K5,Recurring!$C$58:$D$62)/12,0) ->  | Q5: 0 | R5: =SUM(K5,N5:Q5) ->  | T5: 3 Year | U5: =R39 ->  | V5: ='Recurring Cash Flows (All Fees)'!U5 ->  | W5: =Recurring!$C$62-Recurring!$C$59-Recurring!$C$50/3 -> 0.06 | X5: ='Recurring Cash Flows (All Fees)'!V5-'Recurring Cash Flows (Advice)'!W5 -> 0
A6: =DATE(YEAR(A5+1),MONTH(A5+1)+1,DAY(A5+1))-1 -> 2026-06-24 | B6: 0 | C6: 3 | D6: ='Recurring Cash Flows (All Fees)'!D6 -> 0 | E6: 0 | F6: 0 | H6: =R5+SUM(D6:G6) ->  | N6: =IF(Admin="On",-1*TieredValue(K6,Recurring!$C$58:$D$62)/12,0) ->  | Q6: 0 | T6: 5 Year | U6: =R63 ->  | V6: ='Recurring Cash Flows (All Fees)'!U6 ->  | W6: =Recurring!$C$62-Recurring!$C$59-Recurring!$C$50/5 -> 0.06 | X6: ='Recurring Cash Flows (All Fees)'!V6-'Recurring Cash Flows (Advice)'!W6 -> 0
A7: 2026-07-24 | B7: 0 | C7: 4 | D7: ='Recurring Cash Flows (All Fees)'!D7 -> 0 | E7: 0 | F7: 0 | N7: =IF(Admin="On",-1*TieredValue(K7,Recurring!$C$58:$D$62)/12,0) ->  | Q7: 0 | T7: 10 Year | U7: =R135 ->  | V7: ='Recurring Cash Flows (All Fees)'!U7 ->  | W7: =Recurring!$C$62-Recurring!$C$59-Recurring!$C$50/10 -> 0.06 | X7: ='Recurring Cash Flows (All Fees)'!V7-'Recurring Cash Flows (Advice)'!W7 -> 0
A8: 2026-08-24 | B8: 0 | C8: 5 | D8: ='Recurring Cash Flows (All Fees)'!D8 -> 0 | E8: 0 | F8: 0 | N8: =IF(Admin="On",-1*TieredValue(K8,Recurring!$C$58:$D$62)/12,0) ->  | Q8: 0
A9: 2026-09-24 | B9: 0 | C9: 6 | D9: ='Recurring Cash Flows (All Fees)'!D9 -> 0 | E9: 0 | F9: 0 | N9: =IF(Admin="On",-1*TieredValue(K9,Recurring!$C$58:$D$62)/12,0) ->  | Q9: 0
A10: 2026-10-24 | B10: 0 | C10: 7 | D10: ='Recurring Cash Flows (All Fees)'!D10 -> 0 | E10: 0 | F10: 0 | N10: =IF(Admin="On",-1*TieredValue(K10,Recurring!$C$58:$D$62)/12,0) ->  | Q10: 0
A11: 2026-11-24 | B11: 0 | C11: 8 | D11: ='Recurring Cash Flows (All Fees)'!D11 -> 0 | E11: 0 | F11: 0 | N11: =IF(Admin="On",-1*TieredValue(K11,Recurring!$C$58:$D$62)/12,0) ->  | Q11: 0
A12: 2026-12-24 | B12: 0 | C12: 9 | D12: ='Recurring Cash Flows (All Fees)'!D12 -> 0 | E12: 0 | F12: 0 | N12: =IF(Admin="On",-1*TieredValue(K12,Recurring!$C$58:$D$62)/12,0) ->  | Q12: 0
A13: 2027-01-24 | B13: 0 | C13: 10 | D13: ='Recurring Cash Flows (All Fees)'!D13 -> 0 | E13: 0 | F13: 0 | N13: =IF(Admin="On",-1*TieredValue(K13,Recurring!$C$58:$D$62)/12,0) ->  | Q13: 0
A14: 2027-02-24 | B14: 0 | C14: 11 | D14: ='Recurring Cash Flows (All Fees)'!D14 -> 0 | E14: 0 | F14: 0 | N14: =IF(Admin="On",-1*TieredValue(K14,Recurring!$C$58:$D$62)/12,0) ->  | Q14: 0
A15: 2027-03-24 | B15: 0 | C15: 12 | D15: ='Recurring Cash Flows (All Fees)'!D15 -> 0 | E15: 0 | F15: 0 | N15: =IF(Admin="On",-1*TieredValue(K15,Recurring!$C$58:$D$62)/12,0) ->  | Q15: 0
A16: 2027-04-24 | B16: 1 | C16: 13 | D16: ='Recurring Cash Flows (All Fees)'!D16 -> 0 | E16: 0 | F16: 0 | N16: =IF(Admin="On",-1*TieredValue(K16,Recurring!$C$58:$D$62)/12,0) ->  | Q16: 0
A17: 2027-05-24 | B17: 1 | C17: 14 | D17: ='Recurring Cash Flows (All Fees)'!D17 -> 0 | E17: 0 | F17: 0 | N17: =IF(Admin="On",-1*TieredValue(K17,Recurring!$C$58:$D$62)/12,0) ->  | Q17: 0
A18: 2027-06-24 | B18: 1 | C18: 15 | D18: ='Recurring Cash Flows (All Fees)'!D18 -> 0 | E18: 0 | F18: 0 | N18: =IF(Admin="On",-1*TieredValue(K18,Recurring!$C$58:$D$62)/12,0) ->  | Q18: 0
A19: 2027-07-24 | B19: 1 | C19: 16 | D19: ='Recurring Cash Flows (All Fees)'!D19 -> 0 | E19: 0 | F19: 0 | N19: =IF(Admin="On",-1*TieredValue(K19,Recurring!$C$58:$D$62)/12,0) ->  | Q19: 0
A20: 2027-08-24 | B20: 1 | C20: 17 | D20: ='Recurring Cash Flows (All Fees)'!D20 -> 0 | E20: 0 | F20: 0 | N20: =IF(Admin="On",-1*TieredValue(K20,Recurring!$C$58:$D$62)/12,0) ->  | Q20: 0
A21: 2027-09-24 | B21: 1 | C21: 18 | D21: ='Recurring Cash Flows (All Fees)'!D21 -> 0 | E21: 0 | F21: 0 | N21: =IF(Admin="On",-1*TieredValue(K21,Recurring!$C$58:$D$62)/12,0) ->  | Q21: 0
A22: 2027-10-24 | B22: 1 | C22: 19 | D22: ='Recurring Cash Flows (All Fees)'!D22 -> 0 | E22: 0 | F22: 0 | N22: =IF(Admin="On",-1*TieredValue(K22,Recurring!$C$58:$D$62)/12,0) ->  | Q22: 0
A23: 2027-11-24 | B23: 1 | C23: 20 | D23: ='Recurring Cash Flows (All Fees)'!D23 -> 0 | E23: 0 | F23: 0 | N23: =IF(Admin="On",-1*TieredValue(K23,Recurring!$C$58:$D$62)/12,0) ->  | Q23: 0
A24: 2027-12-24 | B24: 1 | C24: 21 | D24: ='Recurring Cash Flows (All Fees)'!D24 -> 0 | E24: 0 | F24: 0 | N24: =IF(Admin="On",-1*TieredValue(K24,Recurring!$C$58:$D$62)/12,0) ->  | Q24: 0
A25: 2028-01-24 | B25: 1 | C25: 22 | D25: ='Recurring Cash Flows (All Fees)'!D25 -> 0 | E25: 0 | F25: 0 | N25: =IF(Admin="On",-1*TieredValue(K25,Recurring!$C$58:$D$62)/12,0) ->  | Q25: 0
A26: 2028-02-24 | B26: 1 | C26: 23 | D26: ='Recurring Cash Flows (All Fees)'!D26 -> 0 | E26: 0 | F26: 0 | N26: =IF(Admin="On",-1*TieredValue(K26,Recurring!$C$58:$D$62)/12,0) ->  | Q26: 0
A27: 2028-03-24 | B27: 1 | C27: 24 | D27: ='Recurring Cash Flows (All Fees)'!D27 -> 0 | E27: 0 | F27: 0 | N27: =IF(Admin="On",-1*TieredValue(K27,Recurring!$C$58:$D$62)/12,0) ->  | Q27: 0
A28: 2028-04-24 | B28: 2 | C28: 25 | D28: ='Recurring Cash Flows (All Fees)'!D28 -> 0 | E28: 0 | F28: 0 | N28: =IF(Admin="On",-1*TieredValue(K28,Recurring!$C$58:$D$62)/12,0) ->  | Q28: 0
A29: 2028-05-24 | B29: 2 | C29: 26 | D29: ='Recurring Cash Flows (All Fees)'!D29 -> 0 | E29: 0 | F29: 0 | N29: =IF(Admin="On",-1*TieredValue(K29,Recurring!$C$58:$D$62)/12,0) ->  | Q29: 0
A30: 2028-06-24 | B30: 2 | C30: 27 | D30: ='Recurring Cash Flows (All Fees)'!D30 -> 0 | E30: 0 | F30: 0 | N30: =IF(Admin="On",-1*TieredValue(K30,Recurring!$C$58:$D$62)/12,0) ->  | Q30: 0
A31: 2028-07-24 | B31: 2 | C31: 28 | D31: ='Recurring Cash Flows (All Fees)'!D31 -> 0 | E31: 0 | F31: 0 | N31: =IF(Admin="On",-1*TieredValue(K31,Recurring!$C$58:$D$62)/12,0) ->  | Q31: 0
A32: 2028-08-24 | B32: 2 | C32: 29 | D32: ='Recurring Cash Flows (All Fees)'!D32 -> 0 | E32: 0 | F32: 0 | N32: =IF(Admin="On",-1*TieredValue(K32,Recurring!$C$58:$D$62)/12,0) ->  | Q32: 0
A33: 2028-09-24 | B33: 2 | C33: 30 | D33: ='Recurring Cash Flows (All Fees)'!D33 -> 0 | E33: 0 | F33: 0 | N33: =IF(Admin="On",-1*TieredValue(K33,Recurring!$C$58:$D$62)/12,0) ->  | Q33: 0
A34: 2028-10-24 | B34: 2 | C34: 31 | D34: ='Recurring Cash Flows (All Fees)'!D34 -> 0 | E34: 0 | F34: 0 | N34: =IF(Admin="On",-1*TieredValue(K34,Recurring!$C$58:$D$62)/12,0) ->  | Q34: 0
A35: 2028-11-24 | B35: 2 | C35: 32 | D35: ='Recurring Cash Flows (All Fees)'!D35 -> 0 | E35: 0 | F35: 0 | N35: =IF(Admin="On",-1*TieredValue(K35,Recurring!$C$58:$D$62)/12,0) ->  | Q35: 0
A36: 2028-12-24 | B36: 2 | C36: 33 | D36: ='Recurring Cash Flows (All Fees)'!D36 -> 0 | E36: 0 | F36: 0 | N36: =IF(Admin="On",-1*TieredValue(K36,Recurring!$C$58:$D$62)/12,0) ->  | Q36: 0
A37: 2029-01-24 | B37: 2 | C37: 34 | D37: ='Recurring Cash Flows (All Fees)'!D37 -> 0 | E37: 0 | F37: 0 | N37: =IF(Admin="On",-1*TieredValue(K37,Recurring!$C$58:$D$62)/12,0) ->  | Q37: 0
A38: 2029-02-24 | B38: 2 | C38: 35 | D38: ='Recurring Cash Flows (All Fees)'!D38 -> 0 | E38: 0 | F38: 0 | N38: =IF(Admin="On",-1*TieredValue(K38,Recurring!$C$58:$D$62)/12,0) ->  | Q38: 0
A39: 2029-03-24 | B39: 2 | C39: 36 | D39: ='Recurring Cash Flows (All Fees)'!D39 -> 0 | E39: 0 | F39: 0 | N39: =IF(Admin="On",-1*TieredValue(K39,Recurring!$C$58:$D$62)/12,0) ->  | Q39: 0
A40: 2029-04-24 | B40: 3 | C40: 37 | D40: ='Recurring Cash Flows (All Fees)'!D40 -> 0 | E40: 0 | F40: 0 | N40: =IF(Admin="On",-1*TieredValue(K40,Recurring!$C$58:$D$62)/12,0) ->  | Q40: 0
A41: 2029-05-24 | B41: 3 | C41: 38 | D41: ='Recurring Cash Flows (All Fees)'!D41 -> 0 | E41: 0 | F41: 0 | N41: =IF(Admin="On",-1*TieredValue(K41,Recurring!$C$58:$D$62)/12,0) ->  | Q41: 0
A42: 2029-06-24 | B42: 3 | C42: 39 | D42: ='Recurring Cash Flows (All Fees)'!D42 -> 0 | E42: 0 | F42: 0 | N42: =IF(Admin="On",-1*TieredValue(K42,Recurring!$C$58:$D$62)/12,0) ->  | Q42: 0
A43: 2029-07-24 | B43: 3 | C43: 40 | D43: ='Recurring Cash Flows (All Fees)'!D43 -> 0 | E43: 0 | F43: 0 | N43: =IF(Admin="On",-1*TieredValue(K43,Recurring!$C$58:$D$62)/12,0) ->  | Q43: 0
A44: 2029-08-24 | B44: 3 | C44: 41 | D44: ='Recurring Cash Flows (All Fees)'!D44 -> 0 | E44: 0 | F44: 0 | N44: =IF(Admin="On",-1*TieredValue(K44,Recurring!$C$58:$D$62)/12,0) ->  | Q44: 0
A45: 2029-09-24 | B45: 3 | C45: 42 | D45: ='Recurring Cash Flows (All Fees)'!D45 -> 0 | E45: 0 | F45: 0 | N45: =IF(Admin="On",-1*TieredValue(K45,Recurring!$C$58:$D$62)/12,0) ->  | Q45: 0
A46: 2029-10-24 | B46: 3 | C46: 43 | D46: ='Recurring Cash Flows (All Fees)'!D46 -> 0 | E46: 0 | F46: 0 | N46: =IF(Admin="On",-1*TieredValue(K46,Recurring!$C$58:$D$62)/12,0) ->  | Q46: 0
A47: 2029-11-24 | B47: 3 | C47: 44 | D47: ='Recurring Cash Flows (All Fees)'!D47 -> 0 | E47: 0 | F47: 0 | N47: =IF(Admin="On",-1*TieredValue(K47,Recurring!$C$58:$D$62)/12,0) ->  | Q47: 0
A48: 2029-12-24 | B48: 3 | C48: 45 | D48: ='Recurring Cash Flows (All Fees)'!D48 -> 0 | E48: 0 | F48: 0 | N48: =IF(Admin="On",-1*TieredValue(K48,Recurring!$C$58:$D$62)/12,0) ->  | Q48: 0
A49: 2030-01-24 | B49: 3 | C49: 46 | D49: ='Recurring Cash Flows (All Fees)'!D49 -> 0 | E49: 0 | F49: 0 | N49: =IF(Admin="On",-1*TieredValue(K49,Recurring!$C$58:$D$62)/12,0) ->  | Q49: 0
A50: 2030-02-24 | B50: 3 | C50: 47 | D50: ='Recurring Cash Flows (All Fees)'!D50 -> 0 | E50: 0 | F50: 0 | N50: =IF(Admin="On",-1*TieredValue(K50,Recurring!$C$58:$D$62)/12,0) ->  | Q50: 0
A51: 2030-03-24 | B51: 3 | C51: 48 | D51: ='Recurring Cash Flows (All Fees)'!D51 -> 0 | E51: 0 | F51: 0 | N51: =IF(Admin="On",-1*TieredValue(K51,Recurring!$C$58:$D$62)/12,0) ->  | Q51: 0
A52: 2030-04-24 | B52: 4 | C52: 49 | D52: ='Recurring Cash Flows (All Fees)'!D52 -> 0 | E52: 0 | F52: 0 | N52: =IF(Admin="On",-1*TieredValue(K52,Recurring!$C$58:$D$62)/12,0) ->  | Q52: 0
A53: 2030-05-24 | B53: 4 | C53: 50 | D53: ='Recurring Cash Flows (All Fees)'!D53 -> 0 | E53: 0 | F53: 0 | N53: =IF(Admin="On",-1*TieredValue(K53,Recurring!$C$58:$D$62)/12,0) ->  | Q53: 0
A54: 2030-06-24 | B54: 4 | C54: 51 | D54: ='Recurring Cash Flows (All Fees)'!D54 -> 0 | E54: 0 | F54: 0 | N54: =IF(Admin="On",-1*TieredValue(K54,Recurring!$C$58:$D$62)/12,0) ->  | Q54: 0
A55: 2030-07-24 | B55: 4 | C55: 52 | D55: ='Recurring Cash Flows (All Fees)'!D55 -> 0 | E55: 0 | F55: 0 | N55: =IF(Admin="On",-1*TieredValue(K55,Recurring!$C$58:$D$62)/12,0) ->  | Q55: 0
A56: 2030-08-24 | B56: 4 | C56: 53 | D56: ='Recurring Cash Flows (All Fees)'!D56 -> 0 | E56: 0 | F56: 0 | N56: =IF(Admin="On",-1*TieredValue(K56,Recurring!$C$58:$D$62)/12,0) ->  | Q56: 0
A57: 2030-09-24 | B57: 4 | C57: 54 | D57: ='Recurring Cash Flows (All Fees)'!D57 -> 0 | E57: 0 | F57: 0 | N57: =IF(Admin="On",-1*TieredValue(K57,Recurring!$C$58:$D$62)/12,0) ->  | Q57: 0
A58: 2030-10-24 | B58: 4 | C58: 55 | D58: ='Recurring Cash Flows (All Fees)'!D58 -> 0 | E58: 0 | F58: 0 | N58: =IF(Admin="On",-1*TieredValue(K58,Recurring!$C$58:$D$62)/12,0) ->  | Q58: 0
A59: 2030-11-24 | B59: 4 | C59: 56 | D59: ='Recurring Cash Flows (All Fees)'!D59 -> 0 | E59: 0 | F59: 0 | N59: =IF(Admin="On",-1*TieredValue(K59,Recurring!$C$58:$D$62)/12,0) ->  | Q59: 0
A60: 2030-12-24 | B60: 4 | C60: 57 | D60: ='Recurring Cash Flows (All Fees)'!D60 -> 0 | E60: 0 | F60: 0 | N60: =IF(Admin="On",-1*TieredValue(K60,Recurring!$C$58:$D$62)/12,0) ->  | Q60: 0
A61: 2031-01-24 | B61: 4 | C61: 58 | D61: ='Recurring Cash Flows (All Fees)'!D61 -> 0 | E61: 0 | F61: 0 | N61: =IF(Admin="On",-1*TieredValue(K61,Recurring!$C$58:$D$62)/12,0) ->  | Q61: 0
A62: 2031-02-24 | B62: 4 | C62: 59 | D62: ='Recurring Cash Flows (All Fees)'!D62 -> 0 | E62: 0 | F62: 0 | N62: =IF(Admin="On",-1*TieredValue(K62,Recurring!$C$58:$D$62)/12,0) ->  | Q62: 0
A63: 2031-03-24 | B63: 4 | C63: 60 | D63: ='Recurring Cash Flows (All Fees)'!D63 -> 0 | E63: 0 | F63: 0 | N63: =IF(Admin="On",-1*TieredValue(K63,Recurring!$C$58:$D$62)/12,0) ->  | Q63: 0
A64: 2031-04-24 | B64: 5 | C64: 61 | D64: ='Recurring Cash Flows (All Fees)'!D64 -> 0 | E64: 0 | F64: 0 | N64: =IF(Admin="On",-1*TieredValue(K64,Recurring!$C$58:$D$62)/12,0) ->  | Q64: 0
A65: 2031-05-24 | B65: 5 | C65: 62 | D65: ='Recurring Cash Flows (All Fees)'!D65 -> 0 | E65: 0 | F65: 0 | N65: =IF(Admin="On",-1*TieredValue(K65,Recurring!$C$58:$D$62)/12,0) ->  | Q65: 0
A66: 2031-06-24 | B66: 5 | C66: 63 | D66: ='Recurring Cash Flows (All Fees)'!D66 -> 0 | E66: 0 | F66: 0 | N66: =IF(Admin="On",-1*TieredValue(K66,Recurring!$C$58:$D$62)/12,0) ->  | Q66: 0
A67: 2031-07-24 | B67: 5 | C67: 64 | D67: ='Recurring Cash Flows (All Fees)'!D67 -> 0 | E67: 0 | F67: 0 | N67: =IF(Admin="On",-1*TieredValue(K67,Recurring!$C$58:$D$62)/12,0) ->  | Q67: 0
A68: 2031-08-24 | B68: 5 | C68: 65 | D68: ='Recurring Cash Flows (All Fees)'!D68 -> 0 | E68: =IF(Advisor = "On",-1*E$2*$D68,0) -> 0 | F68: =IF(Admin = "On",-1*F$2*$D68,0) -> 0 | G68: =IF(Fund = "On",-1*G$2*$D68,0) ->  | J68: =IF(Fund="On",-1*$J$2*I68/12,0) ->  | N68: =IF(Admin="On",-1*TieredValue(K68,Recurring!$C$58:$D$62)/12,0) ->  | Q68: =IF(Advisor = "On",-1*Q$2*$K68/12,0) -> 0
A69: 2031-09-24 | B69: =ROUNDDOWN((C69-1)/12,0) -> 5 | C69: 66 | D69: ='Recurring Cash Flows (All Fees)'!D69 -> 0 | E69: 0 | F69: 0 | I69: =H69*(1+$I$2)^(YEARFRAC(A69,A70,3)) ->  | K69: =SUM(I69:J69) ->  | N69: =IF(Admin="On",-1*TieredValue(K69,Recurring!$C$58:$D$62)/12,0) ->  | Q69: 0 | R69: =SUM(K69,N69:Q69) -> 
A70: =DATE(YEAR(A69+1),MONTH(A69+1)+1,DAY(A69+1))-1 -> 2031-10-24 | B70: 5 | C70: 67 | D70: ='Recurring Cash Flows (All Fees)'!D70 -> 0 | E70: 0 | F70: 0 | H70: =R69+SUM(D70:G70) ->  | N70: =IF(Admin="On",-1*TieredValue(K70,Recurring!$C$58:$D$62)/12,0) ->  | Q70: 0
A71: 2031-11-24 | B71: 5 | C71: 68 | D71: ='Recurring Cash Flows (All Fees)'!D71 -> 0 | E71: 0 | F71: 0 | N71: =IF(Admin="On",-1*TieredValue(K71,Recurring!$C$58:$D$62)/12,0) ->  | Q71: 0
A72: 2031-12-24 | B72: 5 | C72: 69 | D72: ='Recurring Cash Flows (All Fees)'!D72 -> 0 | E72: 0 | F72: 0 | N72: =IF(Admin="On",-1*TieredValue(K72,Recurring!$C$58:$D$62)/12,0) ->  | Q72: 0
A73: 2032-01-24 | B73: 5 | C73: 70 | D73: ='Recurring Cash Flows (All Fees)'!D73 -> 0 | E73: 0 | F73: 0 | N73: =IF(Admin="On",-1*TieredValue(K73,Recurring!$C$58:$D$62)/12,0) ->  | Q73: 0
A74: 2032-02-24 | B74: 5 | C74: 71 | D74: ='Recurring Cash Flows (All Fees)'!D74 -> 0 | E74: 0 | F74: 0 | N74: =IF(Admin="On",-1*TieredValue(K74,Recurring!$C$58:$D$62)/12,0) ->  | Q74: 0
A75: 2032-03-24 | B75: 5 | C75: 72 | D75: ='Recurring Cash Flows (All Fees)'!D75 -> 0 | E75: 0 | F75: 0 | N75: =IF(Admin="On",-1*TieredValue(K75,Recurring!$C$58:$D$62)/12,0) ->  | Q75: 0
A76: 2032-04-24 | B76: 6 | C76: 73 | D76: ='Recurring Cash Flows (All Fees)'!D76 -> 0 | E76: 0 | F76: 0 | N76: =IF(Admin="On",-1*TieredValue(K76,Recurring!$C$58:$D$62)/12,0) ->  | Q76: 0
A77: 2032-05-24 | B77: 6 | C77: 74 | D77: ='Recurring Cash Flows (All Fees)'!D77 -> 0 | E77: 0 | F77: 0 | N77: =IF(Admin="On",-1*TieredValue(K77,Recurring!$C$58:$D$62)/12,0) ->  | Q77: 0
A78: 2032-06-24 | B78: 6 | C78: 75 | D78: ='Recurring Cash Flows (All Fees)'!D78 -> 0 | E78: 0 | F78: 0 | N78: =IF(Admin="On",-1*TieredValue(K78,Recurring!$C$58:$D$62)/12,0) ->  | Q78: 0
A79: 2032-07-24 | B79: 6 | C79: 76 | D79: ='Recurring Cash Flows (All Fees)'!D79 -> 0 | E79: 0 | F79: 0 | N79: =IF(Admin="On",-1*TieredValue(K79,Recurring!$C$58:$D$62)/12,0) ->  | Q79: 0
A80: 2032-08-24 | B80: 6 | C80: 77 | D80: ='Recurring Cash Flows (All Fees)'!D80 -> 0 | E80: 0 | F80: 0 | N80: =IF(Admin="On",-1*TieredValue(K80,Recurring!$C$58:$D$62)/12,0) ->  | Q80: 0
A81: 2032-09-24 | B81: 6 | C81: 78 | D81: ='Recurring Cash Flows (All Fees)'!D81 -> 0 | E81: 0 | F81: 0 | N81: =IF(Admin="On",-1*TieredValue(K81,Recurring!$C$58:$D$62)/12,0) ->  | Q81: 0
A82: 2032-10-24 | B82: 6 | C82: 79 | D82: ='Recurring Cash Flows (All Fees)'!D82 -> 0 | E82: 0 | F82: 0 | N82: =IF(Admin="On",-1*TieredValue(K82,Recurring!$C$58:$D$62)/12,0) ->  | Q82: 0
A83: 2032-11-24 | B83: 6 | C83: 80 | D83: ='Recurring Cash Flows (All Fees)'!D83 -> 0 | E83: 0 | F83: 0 | N83: =IF(Admin="On",-1*TieredValue(K83,Recurring!$C$58:$D$62)/12,0) ->  | Q83: 0
A84: 2032-12-24 | B84: 6 | C84: 81 | D84: ='Recurring Cash Flows (All Fees)'!D84 -> 0 | E84: 0 | F84: 0 | N84: =IF(Admin="On",-1*TieredValue(K84,Recurring!$C$58:$D$62)/12,0) ->  | Q84: 0
A85: 2033-01-24 | B85: 6 | C85: 82 | D85: ='Recurring Cash Flows (All Fees)'!D85 -> 0 | E85: 0 | F85: 0 | N85: =IF(Admin="On",-1*TieredValue(K85,Recurring!$C$58:$D$62)/12,0) ->  | Q85: 0
A86: 2033-02-24 | B86: 6 | C86: 83 | D86: ='Recurring Cash Flows (All Fees)'!D86 -> 0 | E86: 0 | F86: 0 | N86: =IF(Admin="On",-1*TieredValue(K86,Recurring!$C$58:$D$62)/12,0) ->  | Q86: 0
A87: 2033-03-24 | B87: 6 | C87: 84 | D87: ='Recurring Cash Flows (All Fees)'!D87 -> 0 | E87: 0 | F87: 0 | N87: =IF(Admin="On",-1*TieredValue(K87,Recurring!$C$58:$D$62)/12,0) ->  | Q87: 0
A88: 2033-04-24 | B88: 7 | C88: 85 | D88: ='Recurring Cash Flows (All Fees)'!D88 -> 0 | E88: 0 | F88: 0 | N88: =IF(Admin="On",-1*TieredValue(K88,Recurring!$C$58:$D$62)/12,0) ->  | Q88: 0
A89: 2033-05-24 | B89: 7 | C89: 86 | D89: ='Recurring Cash Flows (All Fees)'!D89 -> 0 | E89: 0 | F89: 0 | N89: =IF(Admin="On",-1*TieredValue(K89,Recurring!$C$58:$D$62)/12,0) ->  | Q89: 0
A90: 2033-06-24 | B90: 7 | C90: 87 | D90: ='Recurring Cash Flows (All Fees)'!D90 -> 0 | E90: 0 | F90: 0 | N90: =IF(Admin="On",-1*TieredValue(K90,Recurring!$C$58:$D$62)/12,0) ->  | Q90: 0
A91: 2033-07-24 | B91: 7 | C91: 88 | D91: ='Recurring Cash Flows (All Fees)'!D91 -> 0 | E91: 0 | F91: 0 | N91: =IF(Admin="On",-1*TieredValue(K91,Recurring!$C$58:$D$62)/12,0) ->  | Q91: 0
A92: 2033-08-24 | B92: 7 | C92: 89 | D92: ='Recurring Cash Flows (All Fees)'!D92 -> 0 | E92: 0 | F92: 0 | N92: =IF(Admin="On",-1*TieredValue(K92,Recurring!$C$58:$D$62)/12,0) ->  | Q92: 0
A93: 2033-09-24 | B93: 7 | C93: 90 | D93: ='Recurring Cash Flows (All Fees)'!D93 -> 0 | E93: 0 | F93: 0 | N93: =IF(Admin="On",-1*TieredValue(K93,Recurring!$C$58:$D$62)/12,0) ->  | Q93: 0
A94: 2033-10-24 | B94: 7 | C94: 91 | D94: ='Recurring Cash Flows (All Fees)'!D94 -> 0 | E94: 0 | F94: 0 | N94: =IF(Admin="On",-1*TieredValue(K94,Recurring!$C$58:$D$62)/12,0) ->  | Q94: 0
A95: 2033-11-24 | B95: 7 | C95: 92 | D95: ='Recurring Cash Flows (All Fees)'!D95 -> 0 | E95: 0 | F95: 0 | N95: =IF(Admin="On",-1*TieredValue(K95,Recurring!$C$58:$D$62)/12,0) ->  | Q95: 0
A96: 2033-12-24 | B96: 7 | C96: 93 | D96: ='Recurring Cash Flows (All Fees)'!D96 -> 0 | E96: 0 | F96: 0 | N96: =IF(Admin="On",-1*TieredValue(K96,Recurring!$C$58:$D$62)/12,0) ->  | Q96: 0
A97: 2034-01-24 | B97: 7 | C97: 94 | D97: ='Recurring Cash Flows (All Fees)'!D97 -> 0 | E97: 0 | F97: 0 | N97: =IF(Admin="On",-1*TieredValue(K97,Recurring!$C$58:$D$62)/12,0) ->  | Q97: 0
A98: 2034-02-24 | B98: 7 | C98: 95 | D98: ='Recurring Cash Flows (All Fees)'!D98 -> 0 | E98: 0 | F98: 0 | N98: =IF(Admin="On",-1*TieredValue(K98,Recurring!$C$58:$D$62)/12,0) ->  | Q98: 0
A99: 2034-03-24 | B99: 7 | C99: 96 | D99: ='Recurring Cash Flows (All Fees)'!D99 -> 0 | E99: 0 | F99: 0 | N99: =IF(Admin="On",-1*TieredValue(K99,Recurring!$C$58:$D$62)/12,0) ->  | Q99: 0
A100: 2034-04-24 | B100: 8 | C100: 97 | D100: ='Recurring Cash Flows (All Fees)'!D100 -> 0 | E100: 0 | F100: 0 | N100: =IF(Admin="On",-1*TieredValue(K100,Recurring!$C$58:$D$62)/12,0) ->  | Q100: 0
A101: 2034-05-24 | B101: 8 | C101: 98 | D101: ='Recurring Cash Flows (All Fees)'!D101 -> 0 | E101: 0 | F101: 0 | N101: =IF(Admin="On",-1*TieredValue(K101,Recurring!$C$58:$D$62)/12,0) ->  | Q101: 0
A102: 2034-06-24 | B102: 8 | C102: 99 | D102: ='Recurring Cash Flows (All Fees)'!D102 -> 0 | E102: 0 | F102: 0 | N102: =IF(Admin="On",-1*TieredValue(K102,Recurring!$C$58:$D$62)/12,0) ->  | Q102: 0
A103: 2034-07-24 | B103: 8 | C103: 100 | D103: ='Recurring Cash Flows (All Fees)'!D103 -> 0 | E103: 0 | F103: 0 | N103: =IF(Admin="On",-1*TieredValue(K103,Recurring!$C$58:$D$62)/12,0) ->  | Q103: 0
A104: 2034-08-24 | B104: 8 | C104: 101 | D104: ='Recurring Cash Flows (All Fees)'!D104 -> 0 | E104: 0 | F104: 0 | N104: =IF(Admin="On",-1*TieredValue(K104,Recurring!$C$58:$D$62)/12,0) ->  | Q104: 0
A105: 2034-09-24 | B105: 8 | C105: 102 | D105: ='Recurring Cash Flows (All Fees)'!D105 -> 0 | E105: 0 | F105: 0 | N105: =IF(Admin="On",-1*TieredValue(K105,Recurring!$C$58:$D$62)/12,0) ->  | Q105: 0
A106: 2034-10-24 | B106: 8 | C106: 103 | D106: ='Recurring Cash Flows (All Fees)'!D106 -> 0 | E106: 0 | F106: 0 | N106: =IF(Admin="On",-1*TieredValue(K106,Recurring!$C$58:$D$62)/12,0) ->  | Q106: 0
A107: 2034-11-24 | B107: 8 | C107: 104 | D107: ='Recurring Cash Flows (All Fees)'!D107 -> 0 | E107: 0 | F107: 0 | N107: =IF(Admin="On",-1*TieredValue(K107,Recurring!$C$58:$D$62)/12,0) ->  | Q107: 0
A108: 2034-12-24 | B108: 8 | C108: 105 | D108: ='Recurring Cash Flows (All Fees)'!D108 -> 0 | E108: 0 | F108: 0 | N108: =IF(Admin="On",-1*TieredValue(K108,Recurring!$C$58:$D$62)/12,0) ->  | Q108: 0
A109: 2035-01-24 | B109: 8 | C109: 106 | D109: ='Recurring Cash Flows (All Fees)'!D109 -> 0 | E109: 0 | F109: 0 | N109: =IF(Admin="On",-1*TieredValue(K109,Recurring!$C$58:$D$62)/12,0) ->  | Q109: 0
A110: 2035-02-24 | B110: 8 | C110: 107 | D110: ='Recurring Cash Flows (All Fees)'!D110 -> 0 | E110: 0 | F110: 0 | N110: =IF(Admin="On",-1*TieredValue(K110,Recurring!$C$58:$D$62)/12,0) ->  | Q110: 0
A111: 2035-03-24 | B111: 8 | C111: 108 | D111: ='Recurring Cash Flows (All Fees)'!D111 -> 0 | E111: 0 | F111: 0 | N111: =IF(Admin="On",-1*TieredValue(K111,Recurring!$C$58:$D$62)/12,0) ->  | Q111: 0
A112: 2035-04-24 | B112: 9 | C112: 109 | D112: ='Recurring Cash Flows (All Fees)'!D112 -> 0 | E112: 0 | F112: 0 | N112: =IF(Admin="On",-1*TieredValue(K112,Recurring!$C$58:$D$62)/12,0) ->  | Q112: 0
A113: 2035-05-24 | B113: 9 | C113: 110 | D113: ='Recurring Cash Flows (All Fees)'!D113 -> 0 | E113: 0 | F113: 0 | N113: =IF(Admin="On",-1*TieredValue(K113,Recurring!$C$58:$D$62)/12,0) ->  | Q113: 0
A114: 2035-06-24 | B114: 9 | C114: 111 | D114: ='Recurring Cash Flows (All Fees)'!D114 -> 0 | E114: 0 | F114: 0 | N114: =IF(Admin="On",-1*TieredValue(K114,Recurring!$C$58:$D$62)/12,0) ->  | Q114: 0
A115: 2035-07-24 | B115: 9 | C115: 112 | D115: ='Recurring Cash Flows (All Fees)'!D115 -> 0 | E115: 0 | F115: 0 | N115: =IF(Admin="On",-1*TieredValue(K115,Recurring!$C$58:$D$62)/12,0) ->  | Q115: 0
A116: 2035-08-24 | B116: 9 | C116: 113 | D116: ='Recurring Cash Flows (All Fees)'!D116 -> 0 | E116: 0 | F116: 0 | N116: =IF(Admin="On",-1*TieredValue(K116,Recurring!$C$58:$D$62)/12,0) ->  | Q116: 0
A117: 2035-09-24 | B117: 9 | C117: 114 | D117: ='Recurring Cash Flows (All Fees)'!D117 -> 0 | E117: 0 | F117: 0 | N117: =IF(Admin="On",-1*TieredValue(K117,Recurring!$C$58:$D$62)/12,0) ->  | Q117: 0
A118: 2035-10-24 | B118: 9 | C118: 115 | D118: ='Recurring Cash Flows (All Fees)'!D118 -> 0 | E118: 0 | F118: 0 | N118: =IF(Admin="On",-1*TieredValue(K118,Recurring!$C$58:$D$62)/12,0) ->  | Q118: 0
A119: 2035-11-24 | B119: 9 | C119: 116 | D119: ='Recurring Cash Flows (All Fees)'!D119 -> 0 | E119: 0 | F119: 0 | N119: =IF(Admin="On",-1*TieredValue(K119,Recurring!$C$58:$D$62)/12,0) ->  | Q119: 0
A120: 2035-12-24 | B120: 9 | C120: 117 | D120: ='Recurring Cash Flows (All Fees)'!D120 -> 0 | E120: 0 | F120: 0 | N120: =IF(Admin="On",-1*TieredValue(K120,Recurring!$C$58:$D$62)/12,0) ->  | Q120: 0
A121: 2036-01-24 | B121: 9 | C121: 118 | D121: ='Recurring Cash Flows (All Fees)'!D121 -> 0 | E121: 0 | F121: 0 | N121: =IF(Admin="On",-1*TieredValue(K121,Recurring!$C$58:$D$62)/12,0) ->  | Q121: 0
A122: 2036-02-24 | B122: 9 | C122: 119 | D122: ='Recurring Cash Flows (All Fees)'!D122 -> 0 | E122: 0 | F122: 0 | N122: =IF(Admin="On",-1*TieredValue(K122,Recurring!$C$58:$D$62)/12,0) ->  | Q122: 0
A123: 2036-03-24 | B123: 9 | C123: 120 | D123: ='Recurring Cash Flows (All Fees)'!D123 -> 0 | E123: 0 | F123: 0 | N123: =IF(Admin="On",-1*TieredValue(K123,Recurring!$C$58:$D$62)/12,0) ->  | Q123: 0
A124: 2036-04-24 | B124: 10 | C124: 121 | D124: ='Recurring Cash Flows (All Fees)'!D124 -> 0 | E124: 0 | F124: 0 | N124: =IF(Admin="On",-1*TieredValue(K124,Recurring!$C$58:$D$62)/12,0) ->  | Q124: 0
A125: 2036-05-24 | B125: 10 | C125: 122 | D125: ='Recurring Cash Flows (All Fees)'!D125 -> 0 | E125: 0 | F125: 0 | N125: =IF(Admin="On",-1*TieredValue(K125,Recurring!$C$58:$D$62)/12,0) ->  | Q125: 0
A126: 2036-06-24 | B126: 10 | C126: 123 | D126: ='Recurring Cash Flows (All Fees)'!D126 -> 0 | E126: 0 | F126: 0 | N126: =IF(Admin="On",-1*TieredValue(K126,Recurring!$C$58:$D$62)/12,0) ->  | Q126: 0
A127: 2036-07-24 | B127: 10 | C127: 124 | D127: ='Recurring Cash Flows (All Fees)'!D127 -> 0 | E127: 0 | F127: 0 | N127: =IF(Admin="On",-1*TieredValue(K127,Recurring!$C$58:$D$62)/12,0) ->  | Q127: 0
A128: 2036-08-24 | B128: 10 | C128: 125 | D128: ='Recurring Cash Flows (All Fees)'!D128 -> 0 | E128: 0 | F128: 0 | N128: =IF(Admin="On",-1*TieredValue(K128,Recurring!$C$58:$D$62)/12,0) ->  | Q128: 0
A129: 2036-09-24 | B129: 10 | C129: 126 | D129: ='Recurring Cash Flows (All Fees)'!D129 -> 0 | E129: 0 | F129: 0 | N129: =IF(Admin="On",-1*TieredValue(K129,Recurring!$C$58:$D$62)/12,0) ->  | Q129: 0
A130: 2036-10-24 | B130: 10 | C130: 127 | D130: ='Recurring Cash Flows (All Fees)'!D130 -> 0 | E130: 0 | F130: 0 | N130: =IF(Admin="On",-1*TieredValue(K130,Recurring!$C$58:$D$62)/12,0) ->  | Q130: 0
A131: 2036-11-24 | B131: 10 | C131: 128 | D131: ='Recurring Cash Flows (All Fees)'!D131 -> 0 | E131: 0 | F131: 0 | N131: =IF(Admin="On",-1*TieredValue(K131,Recurring!$C$58:$D$62)/12,0) ->  | Q131: 0
A132: 2036-12-24 | B132: 10 | C132: 129 | D132: ='Recurring Cash Flows (All Fees)'!D132 -> 0 | E132: =IF(Advisor = "On",-1*E$2*$D132,0) -> 0 | F132: =IF(Admin = "On",-1*F$2*$D132,0) -> 0 | G132: =IF(Fund = "On",-1*G$2*$D132,0) ->  | J132: =IF(Fund="On",-1*$J$2*I132/12,0) ->  | N132: =IF(Admin="On",-1*TieredValue(K132,Recurring!$C$58:$D$62)/12,0) ->  | Q132: =IF(Advisor = "On",-1*Q$2*$K132/12,0) -> 0
A133: 2037-01-24 | B133: =ROUNDDOWN((C133-1)/12,0) -> 10 | C133: 130 | D133: ='Recurring Cash Flows (All Fees)'!D133 -> 0 | E133: 0 | F133: 0 | I133: =H133*(1+$I$2)^(YEARFRAC(A133,A134,3)) ->  | K133: =SUM(I133:J133) ->  | N133: =IF(Admin="On",-1*TieredValue(K133,Recurring!$C$58:$D$62)/12,0) ->  | Q133: 0 | R133: =SUM(K133,N133:Q133) -> 
A134: =DATE(YEAR(A133+1),MONTH(A133+1)+1,DAY(A133+1))-1 -> 2037-02-24 | B134: 10 | C134: 131 | D134: ='Recurring Cash Flows (All Fees)'!D134 -> 0 | E134: 0 | F134: 0 | H134: =R133+SUM(D134:G134) ->  | N134: =IF(Admin="On",-1*TieredValue(K134,Recurring!$C$58:$D$62)/12,0) ->  | Q134: 0
A135: 2037-03-24 | B135: 10 | C135: 132 | D135: ='Recurring Cash Flows (All Fees)'!D135 -> 0 | E135: 0 | F135: 0 | N135: =IF(Admin="On",-1*TieredValue(K135,Recurring!$C$58:$D$62)/12,0) ->  | Q135: 0
A136: 2037-04-24 | B136: 11 | C136: 133 | D136: ='Recurring Cash Flows (All Fees)'!D136 -> 0 | E136: 0 | F136: 0 | N136: =IF(Admin="On",-1*TieredValue(K136,Recurring!$C$58:$D$62)/12,0) ->  | Q136: 0
A137: 2037-05-24 | B137: 11 | C137: 134 | D137: ='Recurring Cash Flows (All Fees)'!D137 -> 0 | E137: 0 | F137: 0 | N137: =IF(Admin="On",-1*TieredValue(K137,Recurring!$C$58:$D$62)/12,0) ->  | Q137: 0
A138: 2037-06-24 | B138: 11 | C138: 135 | D138: ='Recurring Cash Flows (All Fees)'!D138 -> 0 | E138: 0 | F138: 0 | N138: =IF(Admin="On",-1*TieredValue(K138,Recurring!$C$58:$D$62)/12,0) ->  | Q138: 0
A139: 2037-07-24 | B139: 11 | C139: 136 | D139: ='Recurring Cash Flows (All Fees)'!D139 -> 0 | E139: 0 | F139: 0 | N139: =IF(Admin="On",-1*TieredValue(K139,Recurring!$C$58:$D$62)/12,0) ->  | Q139: 0
A140: 2037-08-24 | B140: 11 | C140: 137 | D140: ='Recurring Cash Flows (All Fees)'!D140 -> 0 | E140: 0 | F140: 0 | N140: =IF(Admin="On",-1*TieredValue(K140,Recurring!$C$58:$D$62)/12,0) ->  | Q140: 0
A141: 2037-09-24 | B141: 11 | C141: 138 | D141: ='Recurring Cash Flows (All Fees)'!D141 -> 0 | E141: 0 | F141: 0 | N141: =IF(Admin="On",-1*TieredValue(K141,Recurring!$C$58:$D$62)/12,0) ->  | Q141: 0
A142: 2037-10-24 | B142: 11 | C142: 139 | D142: ='Recurring Cash Flows (All Fees)'!D142 -> 0 | E142: 0 | F142: 0 | N142: =IF(Admin="On",-1*TieredValue(K142,Recurring!$C$58:$D$62)/12,0) ->  | Q142: 0
A143: 2037-11-24 | B143: 11 | C143: 140 | D143: ='Recurring Cash Flows (All Fees)'!D143 -> 0 | E143: 0 | F143: 0 | N143: =IF(Admin="On",-1*TieredValue(K143,Recurring!$C$58:$D$62)/12,0) ->  | Q143: 0
A144: 2037-12-24 | B144: 11 | C144: 141 | D144: ='Recurring Cash Flows (All Fees)'!D144 -> 0 | E144: 0 | F144: 0 | N144: =IF(Admin="On",-1*TieredValue(K144,Recurring!$C$58:$D$62)/12,0) ->  | Q144: 0
A145: 2038-01-24 | B145: 11 | C145: 142 | D145: ='Recurring Cash Flows (All Fees)'!D145 -> 0 | E145: 0 | F145: 0 | N145: =IF(Admin="On",-1*TieredValue(K145,Recurring!$C$58:$D$62)/12,0) ->  | Q145: 0
A146: 2038-02-24 | B146: 11 | C146: 143 | D146: ='Recurring Cash Flows (All Fees)'!D146 -> 0 | E146: 0 | F146: 0 | N146: =IF(Admin="On",-1*TieredValue(K146,Recurring!$C$58:$D$62)/12,0) ->  | Q146: 0
A147: 2038-03-24 | B147: 11 | C147: 144 | D147: ='Recurring Cash Flows (All Fees)'!D147 -> 0 | E147: 0 | F147: 0 | N147: =IF(Admin="On",-1*TieredValue(K147,Recurring!$C$58:$D$62)/12,0) ->  | Q147: 0
A148: 2038-04-24 | B148: 12 | C148: 145 | D148: ='Recurring Cash Flows (All Fees)'!D148 -> 0 | E148: 0 | F148: 0 | N148: =IF(Admin="On",-1*TieredValue(K148,Recurring!$C$58:$D$62)/12,0) ->  | Q148: 0
A149: 2038-05-24 | B149: 12 | C149: 146 | D149: ='Recurring Cash Flows (All Fees)'!D149 -> 0 | E149: 0 | F149: 0 | N149: =IF(Admin="On",-1*TieredValue(K149,Recurring!$C$58:$D$62)/12,0) ->  | Q149: 0
A150: 2038-06-24 | B150: 12 | C150: 147 | D150: ='Recurring Cash Flows (All Fees)'!D150 -> 0 | E150: 0 | F150: 0 | N150: =IF(Admin="On",-1*TieredValue(K150,Recurring!$C$58:$D$62)/12,0) ->  | Q150: 0
A151: 2038-07-24 | B151: 12 | C151: 148 | D151: ='Recurring Cash Flows (All Fees)'!D151 -> 0 | E151: 0 | F151: 0 | N151: =IF(Admin="On",-1*TieredValue(K151,Recurring!$C$58:$D$62)/12,0) ->  | Q151: 0
A152: 2038-08-24 | B152: 12 | C152: 149 | D152: ='Recurring Cash Flows (All Fees)'!D152 -> 0 | E152: 0 | F152: 0 | N152: =IF(Admin="On",-1*TieredValue(K152,Recurring!$C$58:$D$62)/12,0) ->  | Q152: 0
A153: 2038-09-24 | B153: 12 | C153: 150 | D153: ='Recurring Cash Flows (All Fees)'!D153 -> 0 | E153: 0 | F153: 0 | N153: =IF(Admin="On",-1*TieredValue(K153,Recurring!$C$58:$D$62)/12,0) ->  | Q153: 0
A154: 2038-10-24 | B154: 12 | C154: 151 | D154: ='Recurring Cash Flows (All Fees)'!D154 -> 0 | E154: 0 | F154: 0 | N154: =IF(Admin="On",-1*TieredValue(K154,Recurring!$C$58:$D$62)/12,0) ->  | Q154: 0
A155: 2038-11-24 | B155: 12 | C155: 152 | D155: ='Recurring Cash Flows (All Fees)'!D155 -> 0 | E155: 0 | F155: 0 | N155: =IF(Admin="On",-1*TieredValue(K155,Recurring!$C$58:$D$62)/12,0) ->  | Q155: 0
A156: 2038-12-24 | B156: 12 | C156: 153 | D156: ='Recurring Cash Flows (All Fees)'!D156 -> 0 | E156: 0 | F156: 0 | N156: =IF(Admin="On",-1*TieredValue(K156,Recurring!$C$58:$D$62)/12,0) ->  | Q156: 0
A157: 2039-01-24 | B157: 12 | C157: 154 | D157: ='Recurring Cash Flows (All Fees)'!D157 -> 0 | E157: 0 | F157: 0 | N157: =IF(Admin="On",-1*TieredValue(K157,Recurring!$C$58:$D$62)/12,0) ->  | Q157: 0
A158: 2039-02-24 | B158: 12 | C158: 155 | D158: ='Recurring Cash Flows (All Fees)'!D158 -> 0 | E158: 0 | F158: 0 | N158: =IF(Admin="On",-1*TieredValue(K158,Recurring!$C$58:$D$62)/12,0) ->  | Q158: 0
A159: 2039-03-24 | B159: 12 | C159: 156 | D159: ='Recurring Cash Flows (All Fees)'!D159 -> 0 | E159: 0 | F159: 0 | N159: =IF(Admin="On",-1*TieredValue(K159,Recurring!$C$58:$D$62)/12,0) ->  | Q159: 0
A160: 2039-04-24 | B160: 13 | C160: 157 | D160: ='Recurring Cash Flows (All Fees)'!D160 -> 0 | E160: 0 | F160: 0 | N160: =IF(Admin="On",-1*TieredValue(K160,Recurring!$C$58:$D$62)/12,0) ->  | Q160: 0
A161: 2039-05-24 | B161: 13 | C161: 158 | D161: ='Recurring Cash Flows (All Fees)'!D161 -> 0 | E161: 0 | F161: 0 | N161: =IF(Admin="On",-1*TieredValue(K161,Recurring!$C$58:$D$62)/12,0) ->  | Q161: 0
A162: 2039-06-24 | B162: 13 | C162: 159 | D162: ='Recurring Cash Flows (All Fees)'!D162 -> 0 | E162: 0 | F162: 0 | N162: =IF(Admin="On",-1*TieredValue(K162,Recurring!$C$58:$D$62)/12,0) ->  | Q162: 0
A163: 2039-07-24 | B163: 13 | C163: 160 | D163: ='Recurring Cash Flows (All Fees)'!D163 -> 0 | E163: 0 | F163: 0 | N163: =IF(Admin="On",-1*TieredValue(K163,Recurring!$C$58:$D$62)/12,0) ->  | Q163: 0
A164: 2039-08-24 | B164: 13 | C164: 161 | D164: ='Recurring Cash Flows (All Fees)'!D164 -> 0 | E164: 0 | F164: 0 | N164: =IF(Admin="On",-1*TieredValue(K164,Recurring!$C$58:$D$62)/12,0) ->  | Q164: 0
A165: 2039-09-24 | B165: 13 | C165: 162 | D165: ='Recurring Cash Flows (All Fees)'!D165 -> 0 | E165: 0 | F165: 0 | N165: =IF(Admin="On",-1*TieredValue(K165,Recurring!$C$58:$D$62)/12,0) ->  | Q165: 0
A166: 2039-10-24 | B166: 13 | C166: 163 | D166: ='Recurring Cash Flows (All Fees)'!D166 -> 0 | E166: 0 | F166: 0 | N166: =IF(Admin="On",-1*TieredValue(K166,Recurring!$C$58:$D$62)/12,0) ->  | Q166: 0
A167: 2039-11-24 | B167: 13 | C167: 164 | D167: ='Recurring Cash Flows (All Fees)'!D167 -> 0 | E167: 0 | F167: 0 | N167: =IF(Admin="On",-1*TieredValue(K167,Recurring!$C$58:$D$62)/12,0) ->  | Q167: 0
A168: 2039-12-24 | B168: 13 | C168: 165 | D168: ='Recurring Cash Flows (All Fees)'!D168 -> 0 | E168: 0 | F168: 0 | N168: =IF(Admin="On",-1*TieredValue(K168,Recurring!$C$58:$D$62)/12,0) ->  | Q168: 0
A169: 2040-01-24 | B169: 13 | C169: 166 | D169: ='Recurring Cash Flows (All Fees)'!D169 -> 0 | E169: 0 | F169: 0 | N169: =IF(Admin="On",-1*TieredValue(K169,Recurring!$C$58:$D$62)/12,0) ->  | Q169: 0
A170: 2040-02-24 | B170: 13 | C170: 167 | D170: ='Recurring Cash Flows (All Fees)'!D170 -> 0 | E170: 0 | F170: 0 | N170: =IF(Admin="On",-1*TieredValue(K170,Recurring!$C$58:$D$62)/12,0) ->  | Q170: 0
A171: 2040-03-24 | B171: 13 | C171: 168 | D171: ='Recurring Cash Flows (All Fees)'!D171 -> 0 | E171: 0 | F171: 0 | N171: =IF(Admin="On",-1*TieredValue(K171,Recurring!$C$58:$D$62)/12,0) ->  | Q171: 0
A172: 2040-04-24 | B172: 14 | C172: 169 | D172: ='Recurring Cash Flows (All Fees)'!D172 -> 0 | E172: 0 | F172: 0 | N172: =IF(Admin="On",-1*TieredValue(K172,Recurring!$C$58:$D$62)/12,0) ->  | Q172: 0
A173: 2040-05-24 | B173: 14 | C173: 170 | D173: ='Recurring Cash Flows (All Fees)'!D173 -> 0 | E173: 0 | F173: 0 | N173: =IF(Admin="On",-1*TieredValue(K173,Recurring!$C$58:$D$62)/12,0) ->  | Q173: 0
A174: 2040-06-24 | B174: 14 | C174: 171 | D174: ='Recurring Cash Flows (All Fees)'!D174 -> 0 | E174: 0 | F174: 0 | N174: =IF(Admin="On",-1*TieredValue(K174,Recurring!$C$58:$D$62)/12,0) ->  | Q174: 0
A175: 2040-07-24 | B175: 14 | C175: 172 | D175: ='Recurring Cash Flows (All Fees)'!D175 -> 0 | E175: 0 | F175: 0 | N175: =IF(Admin="On",-1*TieredValue(K175,Recurring!$C$58:$D$62)/12,0) ->  | Q175: 0
A176: 2040-08-24 | B176: 14 | C176: 173 | D176: ='Recurring Cash Flows (All Fees)'!D176 -> 0 | E176: 0 | F176: 0 | N176: =IF(Admin="On",-1*TieredValue(K176,Recurring!$C$58:$D$62)/12,0) ->  | Q176: 0
A177: 2040-09-24 | B177: 14 | C177: 174 | D177: ='Recurring Cash Flows (All Fees)'!D177 -> 0 | E177: 0 | F177: 0 | N177: =IF(Admin="On",-1*TieredValue(K177,Recurring!$C$58:$D$62)/12,0) ->  | Q177: 0
A178: 2040-10-24 | B178: 14 | C178: 175 | D178: ='Recurring Cash Flows (All Fees)'!D178 -> 0 | E178: 0 | F178: 0 | N178: =IF(Admin="On",-1*TieredValue(K178,Recurring!$C$58:$D$62)/12,0) ->  | Q178: 0
A179: 2040-11-24 | B179: 14 | C179: 176 | D179: ='Recurring Cash Flows (All Fees)'!D179 -> 0 | E179: 0 | F179: 0 | N179: =IF(Admin="On",-1*TieredValue(K179,Recurring!$C$58:$D$62)/12,0) ->  | Q179: 0
A180: 2040-12-24 | B180: 14 | C180: 177 | D180: ='Recurring Cash Flows (All Fees)'!D180 -> 0 | E180: 0 | F180: 0 | N180: =IF(Admin="On",-1*TieredValue(K180,Recurring!$C$58:$D$62)/12,0) ->  | Q180: 0
A181: 2041-01-24 | B181: 14 | C181: 178 | D181: ='Recurring Cash Flows (All Fees)'!D181 -> 0 | E181: 0 | F181: 0 | N181: =IF(Admin="On",-1*TieredValue(K181,Recurring!$C$58:$D$62)/12,0) ->  | Q181: 0
A182: 2041-02-24 | B182: 14 | C182: 179 | D182: ='Recurring Cash Flows (All Fees)'!D182 -> 0 | E182: 0 | F182: 0 | N182: =IF(Admin="On",-1*TieredValue(K182,Recurring!$C$58:$D$62)/12,0) ->  | Q182: 0
A183: 2041-03-24 | B183: 14 | C183: 180 | D183: ='Recurring Cash Flows (All Fees)'!D183 -> 0 | E183: 0 | F183: 0 | N183: =IF(Admin="On",-1*TieredValue(K183,Recurring!$C$58:$D$62)/12,0) ->  | Q183: 0
A184: 2041-04-24 | B184: 15 | C184: 181 | D184: ='Recurring Cash Flows (All Fees)'!D184 -> 0 | E184: 0 | F184: 0 | N184: =IF(Admin="On",-1*TieredValue(K184,Recurring!$C$58:$D$62)/12,0) ->  | Q184: 0
A185: 2041-05-24 | B185: 15 | C185: 182 | D185: ='Recurring Cash Flows (All Fees)'!D185 -> 0 | E185: 0 | F185: 0 | N185: =IF(Admin="On",-1*TieredValue(K185,Recurring!$C$58:$D$62)/12,0) ->  | Q185: 0
A186: 2041-06-24 | B186: 15 | C186: 183 | D186: ='Recurring Cash Flows (All Fees)'!D186 -> 0 | E186: 0 | F186: 0 | N186: =IF(Admin="On",-1*TieredValue(K186,Recurring!$C$58:$D$62)/12,0) ->  | Q186: 0
A187: 2041-07-24 | B187: 15 | C187: 184 | D187: ='Recurring Cash Flows (All Fees)'!D187 -> 0 | E187: 0 | F187: 0 | N187: =IF(Admin="On",-1*TieredValue(K187,Recurring!$C$58:$D$62)/12,0) ->  | Q187: 0
A188: 2041-08-24 | B188: 15 | C188: 185 | D188: ='Recurring Cash Flows (All Fees)'!D188 -> 0 | E188: 0 | F188: 0 | N188: =IF(Admin="On",-1*TieredValue(K188,Recurring!$C$58:$D$62)/12,0) ->  | Q188: 0
A189: 2041-09-24 | B189: 15 | C189: 186 | D189: ='Recurring Cash Flows (All Fees)'!D189 -> 0 | E189: 0 | F189: 0 | N189: =IF(Admin="On",-1*TieredValue(K189,Recurring!$C$58:$D$62)/12,0) ->  | Q189: 0
A190: 2041-10-24 | B190: 15 | C190: 187 | D190: ='Recurring Cash Flows (All Fees)'!D190 -> 0 | E190: 0 | F190: 0 | N190: =IF(Admin="On",-1*TieredValue(K190,Recurring!$C$58:$D$62)/12,0) ->  | Q190: 0
A191: 2041-11-24 | B191: 15 | C191: 188 | D191: ='Recurring Cash Flows (All Fees)'!D191 -> 0 | E191: 0 | F191: 0 | N191: =IF(Admin="On",-1*TieredValue(K191,Recurring!$C$58:$D$62)/12,0) ->  | Q191: 0
A192: 2041-12-24 | B192: 15 | C192: 189 | D192: ='Recurring Cash Flows (All Fees)'!D192 -> 0 | E192: 0 | F192: 0 | N192: =IF(Admin="On",-1*TieredValue(K192,Recurring!$C$58:$D$62)/12,0) ->  | Q192: 0
A193: 2042-01-24 | B193: 15 | C193: 190 | D193: ='Recurring Cash Flows (All Fees)'!D193 -> 0 | E193: 0 | F193: 0 | N193: =IF(Admin="On",-1*TieredValue(K193,Recurring!$C$58:$D$62)/12,0) ->  | Q193: 0
A194: 2042-02-24 | B194: 15 | C194: 191 | D194: ='Recurring Cash Flows (All Fees)'!D194 -> 0 | E194: 0 | F194: 0 | N194: =IF(Admin="On",-1*TieredValue(K194,Recurring!$C$58:$D$62)/12,0) ->  | Q194: 0
A195: 2042-03-24 | B195: 15 | C195: 192 | D195: ='Recurring Cash Flows (All Fees)'!D195 -> 0 | E195: 0 | F195: 0 | N195: =IF(Admin="On",-1*TieredValue(K195,Recurring!$C$58:$D$62)/12,0) ->  | Q195: 0
A196: 2042-04-24 | B196: 16 | C196: 193 | D196: ='Recurring Cash Flows (All Fees)'!D196 -> 0 | E196: =IF(Advisor = "On",-1*E$2*$D196,0) -> 0 | F196: =IF(Admin = "On",-1*F$2*$D196,0) -> 0 | G196: =IF(Fund = "On",-1*G$2*$D196,0) ->  | J196: =IF(Fund="On",-1*$J$2*I196/12,0) ->  | N196: =IF(Admin="On",-1*TieredValue(K196,Recurring!$C$58:$D$62)/12,0) ->  | Q196: =IF(Advisor = "On",-1*Q$2*$K196/12,0) -> 0
A197: 2042-05-24 | B197: =ROUNDDOWN((C197-1)/12,0) -> 16 | C197: 194 | D197: ='Recurring Cash Flows (All Fees)'!D197 -> 0 | E197: 0 | F197: 0 | I197: =H197*(1+$I$2)^(YEARFRAC(A197,A198,3)) ->  | K197: =SUM(I197:J197) ->  | N197: =IF(Admin="On",-1*TieredValue(K197,Recurring!$C$58:$D$62)/12,0) ->  | Q197: 0 | R197: =SUM(K197,N197:Q197) -> 
A198: =DATE(YEAR(A197+1),MONTH(A197+1)+1,DAY(A197+1))-1 -> 2042-06-24 | B198: 16 | C198: 195 | D198: ='Recurring Cash Flows (All Fees)'!D198 -> 0 | E198: 0 | F198: 0 | H198: =R197+SUM(D198:G198) ->  | N198: =IF(Admin="On",-1*TieredValue(K198,Recurring!$C$58:$D$62)/12,0) ->  | Q198: 0
A199: 2042-07-24 | B199: 16 | C199: 196 | D199: ='Recurring Cash Flows (All Fees)'!D199 -> 0 | E199: 0 | F199: 0 | N199: =IF(Admin="On",-1*TieredValue(K199,Recurring!$C$58:$D$62)/12,0) ->  | Q199: 0
A200: 2042-08-24 | B200: 16 | C200: 197 | D200: ='Recurring Cash Flows (All Fees)'!D200 -> 0 | E200: 0 | F200: 0 | N200: =IF(Admin="On",-1*TieredValue(K200,Recurring!$C$58:$D$62)/12,0) ->  | Q200: 0
... 164 more rows

Sheet Recurring Cash Flows (Fund) (hidden)
I1: Growth | J1: TER | T1: Admin Fees | U1: On | V1: Advisor Fees | W1: On | X1: Fund Fees | Y1: Off
A2: Date | B2: ='Recurring Cash Flows (All Fees)'!B2 -> 2026-04-24 | E2: ='Recurring Cash Flows (All Fees)'!E2 -> 0 | F2: ='Recurring Cash Flows (All Fees)'!F2 -> 0 | G2: ='Recurring Cash Flows (All Fees)'!G2 ->  | I2: =Recurring!C62-Recurring!D43 -> 0.06 | J2: ='Recurring Cash Flows (All Fees)'!J2 -> 0 | Q2: ='Recurring Cash Flows (All Fees)'!Q2 -> 0
A3: CashFlow Dates | B3: Year | C3: Month | D3: Initial Investment | E3: Advisor Initial Fee | F3: Admin Initial Fee | G3: Fund Initial Fee | H3: Net Inv Amount | I3: Growth Before AMF | J3: AMF | K3: Before Fees | L3: Admin Fee (Min) | M3: Admin Fee(Max) | N3: Admin Fee (actual) | O3: Fund Access Fee | P3: Wealth Service | Q3: Ongoing Advisor Fees | R3: Fund After | U3: Portfolio Value | V3: Goal Value | W3: g Reduced | X3: RIY
A4: =B2+1-1 -> 2026-04-24 | B4: =ROUNDDOWN((C4-1)/12,0) -> 0 | C4: 1 | D4: ='Recurring Cash Flows (All Fees)'!D4 -> 0 | E4: =IF(Advisor = "On",-1*E$2*$D4,0) -> 0 | F4: =IF(Admin = "On",-1*F$2*$D4,0) -> 0 | G4: =IF(Fund = "On",-1*G$2*$D4,0) -> 0 | H4: =SUM(D4:G4) -> 0 | I4: =H4*(1+$I$2)^(YEARFRAC(A4,A5,3)) -> 0 | J4: =IF(Fund="On",-1*$J$2*I4/12,0) -> 0 | K4: =SUM(I4:J4) -> 0 | N4: =IF(Admin="On",-1*TieredValue(K4,Recurring!$C$58:$D$62)/12,0) -> 0 | Q4: =IF(Advisor = "On",-1*Q$2*$K4/12,0) -> 0 | R4: =SUM(K4,N4:Q4) -> 0 | T4: 1 Year | U4: =R15 -> 0 | V4: ='Recurring Cash Flows (All Fees)'!U4 ->  | W4: =I2 -> 0.06 | X4: ='Recurring Cash Flows (All Fees)'!V4-'Recurring Cash Flows (Fund)'!W4 -> 0
A5: =DATE(YEAR(A4+1),MONTH(A4+1)+1,DAY(A4+1))-1 -> 2026-05-24 | B5: =ROUNDDOWN((C5-1)/12,0) -> 0 | C5: 2 | D5: ='Recurring Cash Flows (All Fees)'!D5 -> 0 | E5: 0 | F5: 0 | G5: 0 | H5: =R4+SUM(D5:G5) -> 0 | I5: =H5*(1+$I$2)^(YEARFRAC(A5,A6,3)) -> 0 | J5: 0 | K5: =SUM(I5:J5) -> 0 | N5: =IF(Admin="On",-1*TieredValue(K5,Recurring!$C$58:$D$62)/12,0) -> 0 | Q5: 0 | R5: =SUM(K5,N5:Q5) -> 0 | T5: 3 Year | U5: =R39 -> 0 | V5: ='Recurring Cash Flows (All Fees)'!U5 ->  | W5: =W4 -> 0.06 | X5: ='Recurring Cash Flows (All Fees)'!V5-'Recurring Cash Flows (Fund)'!W5 -> 0
A6: =DATE(YEAR(A5+1),MONTH(A5+1)+1,DAY(A5+1))-1 -> 2026-06-24 | B6: 0 | C6: 3 | D6: ='Recurring Cash Flows (All Fees)'!D6 -> 0 | E6: 0 | F6: 0 | G6: 0 | H6: =R5+SUM(D6:G6) -> 0 | I6: 0 | J6: 0 | K6: 0 | N6: =IF(Admin="On",-1*TieredValue(K6,Recurring!$C$58:$D$62)/12,0) -> 0 | Q6: 0 | R6: 0 | T6: 5 Year | U6: =R63 -> 0 | V6: ='Recurring Cash Flows (All Fees)'!U6 ->  | W6: =W5 -> 0.06 | X6: ='Recurring Cash Flows (All Fees)'!V6-'Recurring Cash Flows (Fund)'!W6 -> 0
A7: 2026-07-24 | B7: 0 | C7: 4 | D7: ='Recurring Cash Flows (All Fees)'!D7 -> 0 | E7: 0 | F7: 0 | G7: 0 | H7: 0 | I7: 0 | J7: 0 | K7: 0 | N7: =IF(Admin="On",-1*TieredValue(K7,Recurring!$C$58:$D$62)/12,0) -> 0 | Q7: 0 | R7: 0 | T7: 10 Year | U7: =R135 -> 0 | V7: ='Recurring Cash Flows (All Fees)'!U7 ->  | W7: 0.06 | X7: ='Recurring Cash Flows (All Fees)'!V7-'Recurring Cash Flows (Fund)'!W7 -> 0
A8: 2026-08-24 | B8: 0 | C8: 5 | D8: ='Recurring Cash Flows (All Fees)'!D8 -> 0 | E8: 0 | F8: 0 | G8: 0 | H8: 0 | I8: 0 | J8: 0 | K8: 0 | N8: =IF(Admin="On",-1*TieredValue(K8,Recurring!$C$58:$D$62)/12,0) -> 0 | Q8: 0 | R8: 0
A9: 2026-09-24 | B9: 0 | C9: 6 | D9: ='Recurring Cash Flows (All Fees)'!D9 -> 0 | E9: 0 | F9: 0 | G9: 0 | H9: 0 | I9: 0 | J9: 0 | K9: 0 | N9: =IF(Admin="On",-1*TieredValue(K9,Recurring!$C$58:$D$62)/12,0) -> 0 | Q9: 0 | R9: 0
A10: 2026-10-24 | B10: 0 | C10: 7 | D10: ='Recurring Cash Flows (All Fees)'!D10 -> 0 | E10: 0 | F10: 0 | G10: 0 | H10: 0 | I10: 0 | J10: 0 | K10: 0 | N10: =IF(Admin="On",-1*TieredValue(K10,Recurring!$C$58:$D$62)/12,0) -> 0 | Q10: 0 | R10: 0
A11: 2026-11-24 | B11: 0 | C11: 8 | D11: ='Recurring Cash Flows (All Fees)'!D11 -> 0 | E11: 0 | F11: 0 | G11: 0 | H11: 0 | I11: 0 | J11: 0 | K11: 0 | N11: =IF(Admin="On",-1*TieredValue(K11,Recurring!$C$58:$D$62)/12,0) -> 0 | Q11: 0 | R11: 0
A12: 2026-12-24 | B12: 0 | C12: 9 | D12: ='Recurring Cash Flows (All Fees)'!D12 -> 0 | E12: 0 | F12: 0 | G12: 0 | H12: 0 | I12: 0 | J12: 0 | K12: 0 | N12: =IF(Admin="On",-1*TieredValue(K12,Recurring!$C$58:$D$62)/12,0) -> 0 | Q12: 0 | R12: 0
A13: 2027-01-24 | B13: 0 | C13: 10 | D13: ='Recurring Cash Flows (All Fees)'!D13 -> 0 | E13: 0 | F13: 0 | G13: 0 | H13: 0 | I13: 0 | J13: 0 | K13: 0 | N13: =IF(Admin="On",-1*TieredValue(K13,Recurring!$C$58:$D$62)/12,0) -> 0 | Q13: 0 | R13: 0
A14: 2027-02-24 | B14: 0 | C14: 11 | D14: ='Recurring Cash Flows (All Fees)'!D14 -> 0 | E14: 0 | F14: 0 | G14: 0 | H14: 0 | I14: 0 | J14: 0 | K14: 0 | N14: =IF(Admin="On",-1*TieredValue(K14,Recurring!$C$58:$D$62)/12,0) -> 0 | Q14: 0 | R14: 0
A15: 2027-03-24 | B15: 0 | C15: 12 | D15: ='Recurring Cash Flows (All Fees)'!D15 -> 0 | E15: 0 | F15: 0 | G15: 0 | H15: 0 | I15: 0 | J15: 0 | K15: 0 | N15: =IF(Admin="On",-1*TieredValue(K15,Recurring!$C$58:$D$62)/12,0) -> 0 | Q15: 0 | R15: 0
A16: 2027-04-24 | B16: 1 | C16: 13 | D16: ='Recurring Cash Flows (All Fees)'!D16 -> 0 | E16: 0 | F16: 0 | G16: 0 | H16: 0 | I16: 0 | J16: 0 | K16: 0 | N16: =IF(Admin="On",-1*TieredValue(K16,Recurring!$C$58:$D$62)/12,0) -> 0 | Q16: 0 | R16: 0
A17: 2027-05-24 | B17: 1 | C17: 14 | D17: ='Recurring Cash Flows (All Fees)'!D17 -> 0 | E17: 0 | F17: 0 | G17: 0 | H17: 0 | I17: 0 | J17: 0 | K17: 0 | N17: =IF(Admin="On",-1*TieredValue(K17,Recurring!$C$58:$D$62)/12,0) -> 0 | Q17: 0 | R17: 0
A18: 2027-06-24 | B18: 1 | C18: 15 | D18: ='Recurring Cash Flows (All Fees)'!D18 -> 0 | E18: 0 | F18: 0 | G18: 0 | H18: 0 | I18: 0 | J18: 0 | K18: 0 | N18: =IF(Admin="On",-1*TieredValue(K18,Recurring!$C$58:$D$62)/12,0) -> 0 | Q18: 0 | R18: 0
A19: 2027-07-24 | B19: 1 | C19: 16 | D19: ='Recurring Cash Flows (All Fees)'!D19 -> 0 | E19: 0 | F19: 0 | G19: 0 | H19: 0 | I19: 0 | J19: 0 | K19: 0 | N19: =IF(Admin="On",-1*TieredValue(K19,Recurring!$C$58:$D$62)/12,0) -> 0 | Q19: 0 | R19: 0
A20: 2027-08-24 | B20: 1 | C20: 17 | D20: ='Recurring Cash Flows (All Fees)'!D20 -> 0 | E20: 0 | F20: 0 | G20: 0 | H20: 0 | I20: 0 | J20: 0 | K20: 0 | N20: =IF(Admin="On",-1*TieredValue(K20,Recurring!$C$58:$D$62)/12,0) -> 0 | Q20: 0 | R20: 0
A21: 2027-09-24 | B21: 1 | C21: 18 | D21: ='Recurring Cash Flows (All Fees)'!D21 -> 0 | E21: 0 | F21: 0 | G21: 0 | H21: 0 | I21: 0 | J21: 0 | K21: 0 | N21: =IF(Admin="On",-1*TieredValue(K21,Recurring!$C$58:$D$62)/12,0) -> 0 | Q21: 0 | R21: 0
A22: 2027-10-24 | B22: 1 | C22: 19 | D22: ='Recurring Cash Flows (All Fees)'!D22 -> 0 | E22: 0 | F22: 0 | G22: 0 | H22: 0 | I22: 0 | J22: 0 | K22: 0 | N22: =IF(Admin="On",-1*TieredValue(K22,Recurring!$C$58:$D$62)/12,0) -> 0 | Q22: 0 | R22: 0
A23: 2027-11-24 | B23: 1 | C23: 20 | D23: ='Recurring Cash Flows (All Fees)'!D23 -> 0 | E23: 0 | F23: 0 | G23: 0 | H23: 0 | I23: 0 | J23: 0 | K23: 0 | N23: =IF(Admin="On",-1*TieredValue(K23,Recurring!$C$58:$D$62)/12,0) -> 0 | Q23: 0 | R23: 0
A24: 2027-12-24 | B24: 1 | C24: 21 | D24: ='Recurring Cash Flows (All Fees)'!D24 -> 0 | E24: 0 | F24: 0 | G24: 0 | H24: 0 | I24: 0 | J24: 0 | K24: 0 | N24: =IF(Admin="On",-1*TieredValue(K24,Recurring!$C$58:$D$62)/12,0) -> 0 | Q24: 0 | R24: 0
A25: 2028-01-24 | B25: 1 | C25: 22 | D25: ='Recurring Cash Flows (All Fees)'!D25 -> 0 | E25: 0 | F25: 0 | G25: 0 | H25: 0 | I25: 0 | J25: 0 | K25: 0 | N25: =IF(Admin="On",-1*TieredValue(K25,Recurring!$C$58:$D$62)/12,0) -> 0 | Q25: 0 | R25: 0
A26: 2028-02-24 | B26: 1 | C26: 23 | D26: ='Recurring Cash Flows (All Fees)'!D26 -> 0 | E26: 0 | F26: 0 | G26: 0 | H26: 0 | I26: 0 | J26: 0 | K26: 0 | N26: =IF(Admin="On",-1*TieredValue(K26,Recurring!$C$58:$D$62)/12,0) -> 0 | Q26: 0 | R26: 0
A27: 2028-03-24 | B27: 1 | C27: 24 | D27: ='Recurring Cash Flows (All Fees)'!D27 -> 0 | E27: 0 | F27: 0 | G27: 0 | H27: 0 | I27: 0 | J27: 0 | K27: 0 | N27: =IF(Admin="On",-1*TieredValue(K27,Recurring!$C$58:$D$62)/12,0) -> 0 | Q27: 0 | R27: 0
A28: 2028-04-24 | B28: 2 | C28: 25 | D28: ='Recurring Cash Flows (All Fees)'!D28 -> 0 | E28: 0 | F28: 0 | G28: 0 | H28: 0 | I28: 0 | J28: 0 | K28: 0 | N28: =IF(Admin="On",-1*TieredValue(K28,Recurring!$C$58:$D$62)/12,0) -> 0 | Q28: 0 | R28: 0
A29: 2028-05-24 | B29: 2 | C29: 26 | D29: ='Recurring Cash Flows (All Fees)'!D29 -> 0 | E29: 0 | F29: 0 | G29: 0 | H29: 0 | I29: 0 | J29: 0 | K29: 0 | N29: =IF(Admin="On",-1*TieredValue(K29,Recurring!$C$58:$D$62)/12,0) -> 0 | Q29: 0 | R29: 0
A30: 2028-06-24 | B30: 2 | C30: 27 | D30: ='Recurring Cash Flows (All Fees)'!D30 -> 0 | E30: 0 | F30: 0 | G30: 0 | H30: 0 | I30: 0 | J30: 0 | K30: 0 | N30: =IF(Admin="On",-1*TieredValue(K30,Recurring!$C$58:$D$62)/12,0) -> 0 | Q30: 0 | R30: 0
A31: 2028-07-24 | B31: 2 | C31: 28 | D31: ='Recurring Cash Flows (All Fees)'!D31 -> 0 | E31: 0 | F31: 0 | G31: 0 | H31: 0 | I31: 0 | J31: 0 | K31: 0 | N31: =IF(Admin="On",-1*TieredValue(K31,Recurring!$C$58:$D$62)/12,0) -> 0 | Q31: 0 | R31: 0
A32: 2028-08-24 | B32: 2 | C32: 29 | D32: ='Recurring Cash Flows (All Fees)'!D32 -> 0 | E32: 0 | F32: 0 | G32: 0 | H32: 0 | I32: 0 | J32: 0 | K32: 0 | N32: =IF(Admin="On",-1*TieredValue(K32,Recurring!$C$58:$D$62)/12,0) -> 0 | Q32: 0 | R32: 0
A33: 2028-09-24 | B33: 2 | C33: 30 | D33: ='Recurring Cash Flows (All Fees)'!D33 -> 0 | E33: 0 | F33: 0 | G33: 0 | H33: 0 | I33: 0 | J33: 0 | K33: 0 | N33: =IF(Admin="On",-1*TieredValue(K33,Recurring!$C$58:$D$62)/12,0) -> 0 | Q33: 0 | R33: 0
A34: 2028-10-24 | B34: 2 | C34: 31 | D34: ='Recurring Cash Flows (All Fees)'!D34 -> 0 | E34: 0 | F34: 0 | G34: 0 | H34: 0 | I34: 0 | J34: 0 | K34: 0 | N34: =IF(Admin="On",-1*TieredValue(K34,Recurring!$C$58:$D$62)/12,0) -> 0 | Q34: 0 | R34: 0
A35: 2028-11-24 | B35: 2 | C35: 32 | D35: ='Recurring Cash Flows (All Fees)'!D35 -> 0 | E35: 0 | F35: 0 | G35: 0 | H35: 0 | I35: 0 | J35: 0 | K35: 0 | N35: =IF(Admin="On",-1*TieredValue(K35,Recurring!$C$58:$D$62)/12,0) -> 0 | Q35: 0 | R35: 0
A36: 2028-12-24 | B36: 2 | C36: 33 | D36: ='Recurring Cash Flows (All Fees)'!D36 -> 0 | E36: 0 | F36: 0 | G36: 0 | H36: 0 | I36: 0 | J36: 0 | K36: 0 | N36: =IF(Admin="On",-1*TieredValue(K36,Recurring!$C$58:$D$62)/12,0) -> 0 | Q36: 0 | R36: 0
A37: 2029-01-24 | B37: 2 | C37: 34 | D37: ='Recurring Cash Flows (All Fees)'!D37 -> 0 | E37: 0 | F37: 0 | G37: 0 | H37: 0 | I37: 0 | J37: 0 | K37: 0 | N37: =IF(Admin="On",-1*TieredValue(K37,Recurring!$C$58:$D$62)/12,0) -> 0 | Q37: 0 | R37: 0
A38: 2029-02-24 | B38: 2 | C38: 35 | D38: ='Recurring Cash Flows (All Fees)'!D38 -> 0 | E38: 0 | F38: 0 | G38: 0 | H38: 0 | I38: 0 | J38: 0 | K38: 0 | N38: =IF(Admin="On",-1*TieredValue(K38,Recurring!$C$58:$D$62)/12,0) -> 0 | Q38: 0 | R38: 0
A39: 2029-03-24 | B39: 2 | C39: 36 | D39: ='Recurring Cash Flows (All Fees)'!D39 -> 0 | E39: 0 | F39: 0 | G39: 0 | H39: 0 | I39: 0 | J39: 0 | K39: 0 | N39: =IF(Admin="On",-1*TieredValue(K39,Recurring!$C$58:$D$62)/12,0) -> 0 | Q39: 0 | R39: 0
A40: 2029-04-24 | B40: 3 | C40: 37 | D40: ='Recurring Cash Flows (All Fees)'!D40 -> 0 | E40: 0 | F40: 0 | G40: 0 | H40: 0 | I40: 0 | J40: 0 | K40: 0 | N40: =IF(Admin="On",-1*TieredValue(K40,Recurring!$C$58:$D$62)/12,0) -> 0 | Q40: 0 | R40: 0
A41: 2029-05-24 | B41: 3 | C41: 38 | D41: ='Recurring Cash Flows (All Fees)'!D41 -> 0 | E41: 0 | F41: 0 | G41: 0 | H41: 0 | I41: 0 | J41: 0 | K41: 0 | N41: =IF(Admin="On",-1*TieredValue(K41,Recurring!$C$58:$D$62)/12,0) -> 0 | Q41: 0 | R41: 0
A42: 2029-06-24 | B42: 3 | C42: 39 | D42: ='Recurring Cash Flows (All Fees)'!D42 -> 0 | E42: 0 | F42: 0 | G42: 0 | H42: 0 | I42: 0 | J42: 0 | K42: 0 | N42: =IF(Admin="On",-1*TieredValue(K42,Recurring!$C$58:$D$62)/12,0) -> 0 | Q42: 0 | R42: 0
A43: 2029-07-24 | B43: 3 | C43: 40 | D43: ='Recurring Cash Flows (All Fees)'!D43 -> 0 | E43: 0 | F43: 0 | G43: 0 | H43: 0 | I43: 0 | J43: 0 | K43: 0 | N43: =IF(Admin="On",-1*TieredValue(K43,Recurring!$C$58:$D$62)/12,0) -> 0 | Q43: 0 | R43: 0
A44: 2029-08-24 | B44: 3 | C44: 41 | D44: ='Recurring Cash Flows (All Fees)'!D44 -> 0 | E44: 0 | F44: 0 | G44: 0 | H44: 0 | I44: 0 | J44: 0 | K44: 0 | N44: =IF(Admin="On",-1*TieredValue(K44,Recurring!$C$58:$D$62)/12,0) -> 0 | Q44: 0 | R44: 0
A45: 2029-09-24 | B45: 3 | C45: 42 | D45: ='Recurring Cash Flows (All Fees)'!D45 -> 0 | E45: 0 | F45: 0 | G45: 0 | H45: 0 | I45: 0 | J45: 0 | K45: 0 | N45: =IF(Admin="On",-1*TieredValue(K45,Recurring!$C$58:$D$62)/12,0) -> 0 | Q45: 0 | R45: 0
A46: 2029-10-24 | B46: 3 | C46: 43 | D46: ='Recurring Cash Flows (All Fees)'!D46 -> 0 | E46: 0 | F46: 0 | G46: 0 | H46: 0 | I46: 0 | J46: 0 | K46: 0 | N46: =IF(Admin="On",-1*TieredValue(K46,Recurring!$C$58:$D$62)/12,0) -> 0 | Q46: 0 | R46: 0
A47: 2029-11-24 | B47: 3 | C47: 44 | D47: ='Recurring Cash Flows (All Fees)'!D47 -> 0 | E47: 0 | F47: 0 | G47: 0 | H47: 0 | I47: 0 | J47: 0 | K47: 0 | N47: =IF(Admin="On",-1*TieredValue(K47,Recurring!$C$58:$D$62)/12,0) -> 0 | Q47: 0 | R47: 0
A48: 2029-12-24 | B48: 3 | C48: 45 | D48: ='Recurring Cash Flows (All Fees)'!D48 -> 0 | E48: 0 | F48: 0 | G48: 0 | H48: 0 | I48: 0 | J48: 0 | K48: 0 | N48: =IF(Admin="On",-1*TieredValue(K48,Recurring!$C$58:$D$62)/12,0) -> 0 | Q48: 0 | R48: 0
A49: 2030-01-24 | B49: 3 | C49: 46 | D49: ='Recurring Cash Flows (All Fees)'!D49 -> 0 | E49: 0 | F49: 0 | G49: 0 | H49: 0 | I49: 0 | J49: 0 | K49: 0 | N49: =IF(Admin="On",-1*TieredValue(K49,Recurring!$C$58:$D$62)/12,0) -> 0 | Q49: 0 | R49: 0
A50: 2030-02-24 | B50: 3 | C50: 47 | D50: ='Recurring Cash Flows (All Fees)'!D50 -> 0 | E50: 0 | F50: 0 | G50: 0 | H50: 0 | I50: 0 | J50: 0 | K50: 0 | N50: =IF(Admin="On",-1*TieredValue(K50,Recurring!$C$58:$D$62)/12,0) -> 0 | Q50: 0 | R50: 0
A51: 2030-03-24 | B51: 3 | C51: 48 | D51: ='Recurring Cash Flows (All Fees)'!D51 -> 0 | E51: 0 | F51: 0 | G51: 0 | H51: 0 | I51: 0 | J51: 0 | K51: 0 | N51: =IF(Admin="On",-1*TieredValue(K51,Recurring!$C$58:$D$62)/12,0) -> 0 | Q51: 0 | R51: 0
A52: 2030-04-24 | B52: 4 | C52: 49 | D52: ='Recurring Cash Flows (All Fees)'!D52 -> 0 | E52: 0 | F52: 0 | G52: 0 | H52: 0 | I52: 0 | J52: 0 | K52: 0 | N52: =IF(Admin="On",-1*TieredValue(K52,Recurring!$C$58:$D$62)/12,0) -> 0 | Q52: 0 | R52: 0
A53: 2030-05-24 | B53: 4 | C53: 50 | D53: ='Recurring Cash Flows (All Fees)'!D53 -> 0 | E53: 0 | F53: 0 | G53: 0 | H53: 0 | I53: 0 | J53: 0 | K53: 0 | N53: =IF(Admin="On",-1*TieredValue(K53,Recurring!$C$58:$D$62)/12,0) -> 0 | Q53: 0 | R53: 0
A54: 2030-06-24 | B54: 4 | C54: 51 | D54: ='Recurring Cash Flows (All Fees)'!D54 -> 0 | E54: 0 | F54: 0 | G54: 0 | H54: 0 | I54: 0 | J54: 0 | K54: 0 | N54: =IF(Admin="On",-1*TieredValue(K54,Recurring!$C$58:$D$62)/12,0) -> 0 | Q54: 0 | R54: 0
A55: 2030-07-24 | B55: 4 | C55: 52 | D55: ='Recurring Cash Flows (All Fees)'!D55 -> 0 | E55: 0 | F55: 0 | G55: 0 | H55: 0 | I55: 0 | J55: 0 | K55: 0 | N55: =IF(Admin="On",-1*TieredValue(K55,Recurring!$C$58:$D$62)/12,0) -> 0 | Q55: 0 | R55: 0
A56: 2030-08-24 | B56: 4 | C56: 53 | D56: ='Recurring Cash Flows (All Fees)'!D56 -> 0 | E56: 0 | F56: 0 | G56: 0 | H56: 0 | I56: 0 | J56: 0 | K56: 0 | N56: =IF(Admin="On",-1*TieredValue(K56,Recurring!$C$58:$D$62)/12,0) -> 0 | Q56: 0 | R56: 0
A57: 2030-09-24 | B57: 4 | C57: 54 | D57: ='Recurring Cash Flows (All Fees)'!D57 -> 0 | E57: 0 | F57: 0 | G57: 0 | H57: 0 | I57: 0 | J57: 0 | K57: 0 | N57: =IF(Admin="On",-1*TieredValue(K57,Recurring!$C$58:$D$62)/12,0) -> 0 | Q57: 0 | R57: 0
A58: 2030-10-24 | B58: 4 | C58: 55 | D58: ='Recurring Cash Flows (All Fees)'!D58 -> 0 | E58: 0 | F58: 0 | G58: 0 | H58: 0 | I58: 0 | J58: 0 | K58: 0 | N58: =IF(Admin="On",-1*TieredValue(K58,Recurring!$C$58:$D$62)/12,0) -> 0 | Q58: 0 | R58: 0
A59: 2030-11-24 | B59: 4 | C59: 56 | D59: ='Recurring Cash Flows (All Fees)'!D59 -> 0 | E59: 0 | F59: 0 | G59: 0 | H59: 0 | I59: 0 | J59: 0 | K59: 0 | N59: =IF(Admin="On",-1*TieredValue(K59,Recurring!$C$58:$D$62)/12,0) -> 0 | Q59: 0 | R59: 0
A60: 2030-12-24 | B60: 4 | C60: 57 | D60: ='Recurring Cash Flows (All Fees)'!D60 -> 0 | E60: 0 | F60: 0 | G60: 0 | H60: 0 | I60: 0 | J60: 0 | K60: 0 | N60: =IF(Admin="On",-1*TieredValue(K60,Recurring!$C$58:$D$62)/12,0) -> 0 | Q60: 0 | R60: 0
A61: 2031-01-24 | B61: 4 | C61: 58 | D61: ='Recurring Cash Flows (All Fees)'!D61 -> 0 | E61: 0 | F61: 0 | G61: 0 | H61: 0 | I61: 0 | J61: 0 | K61: 0 | N61: =IF(Admin="On",-1*TieredValue(K61,Recurring!$C$58:$D$62)/12,0) -> 0 | Q61: 0 | R61: 0
A62: 2031-02-24 | B62: 4 | C62: 59 | D62: ='Recurring Cash Flows (All Fees)'!D62 -> 0 | E62: 0 | F62: 0 | G62: 0 | H62: 0 | I62: 0 | J62: 0 | K62: 0 | N62: =IF(Admin="On",-1*TieredValue(K62,Recurring!$C$58:$D$62)/12,0) -> 0 | Q62: 0 | R62: 0
A63: 2031-03-24 | B63: 4 | C63: 60 | D63: ='Recurring Cash Flows (All Fees)'!D63 -> 0 | E63: 0 | F63: 0 | G63: 0 | H63: 0 | I63: 0 | J63: 0 | K63: 0 | N63: =IF(Admin="On",-1*TieredValue(K63,Recurring!$C$58:$D$62)/12,0) -> 0 | Q63: 0 | R63: 0
A64: 2031-04-24 | B64: 5 | C64: 61 | D64: ='Recurring Cash Flows (All Fees)'!D64 -> 0 | E64: 0 | F64: 0 | G64: 0 | H64: 0 | I64: 0 | J64: 0 | K64: 0 | N64: =IF(Admin="On",-1*TieredValue(K64,Recurring!$C$58:$D$62)/12,0) -> 0 | Q64: 0 | R64: 0
A65: 2031-05-24 | B65: 5 | C65: 62 | D65: ='Recurring Cash Flows (All Fees)'!D65 -> 0 | E65: 0 | F65: 0 | G65: 0 | H65: 0 | I65: 0 | J65: 0 | K65: 0 | N65: =IF(Admin="On",-1*TieredValue(K65,Recurring!$C$58:$D$62)/12,0) -> 0 | Q65: 0 | R65: 0
A66: 2031-06-24 | B66: 5 | C66: 63 | D66: ='Recurring Cash Flows (All Fees)'!D66 -> 0 | E66: 0 | F66: 0 | G66: 0 | H66: 0 | I66: 0 | J66: 0 | K66: 0 | N66: =IF(Admin="On",-1*TieredValue(K66,Recurring!$C$58:$D$62)/12,0) -> 0 | Q66: 0 | R66: 0
A67: 2031-07-24 | B67: 5 | C67: 64 | D67: ='Recurring Cash Flows (All Fees)'!D67 -> 0 | E67: 0 | F67: 0 | G67: 0 | H67: 0 | I67: 0 | J67: 0 | K67: 0 | N67: =IF(Admin="On",-1*TieredValue(K67,Recurring!$C$58:$D$62)/12,0) -> 0 | Q67: 0 | R67: 0
A68: 2031-08-24 | B68: 5 | C68: 65 | D68: ='Recurring Cash Flows (All Fees)'!D68 -> 0 | E68: =IF(Advisor = "On",-1*E$2*$D68,0) -> 0 | F68: =IF(Admin = "On",-1*F$2*$D68,0) -> 0 | G68: =IF(Fund = "On",-1*G$2*$D68,0) -> 0 | H68: 0 | I68: 0 | J68: =IF(Fund="On",-1*$J$2*I68/12,0) -> 0 | K68: 0 | N68: =IF(Admin="On",-1*TieredValue(K68,Recurring!$C$58:$D$62)/12,0) -> 0 | Q68: =IF(Advisor = "On",-1*Q$2*$K68/12,0) -> 0 | R68: 0
A69: 2031-09-24 | B69: =ROUNDDOWN((C69-1)/12,0) -> 5 | C69: 66 | D69: ='Recurring Cash Flows (All Fees)'!D69 -> 0 | E69: 0 | F69: 0 | G69: 0 | H69: 0 | I69: =H69*(1+$I$2)^(YEARFRAC(A69,A70,3)) -> 0 | J69: 0 | K69: =SUM(I69:J69) -> 0 | N69: =IF(Admin="On",-1*TieredValue(K69,Recurring!$C$58:$D$62)/12,0) -> 0 | Q69: 0 | R69: =SUM(K69,N69:Q69) -> 0
A70: =DATE(YEAR(A69+1),MONTH(A69+1)+1,DAY(A69+1))-1 -> 2031-10-24 | B70: 5 | C70: 67 | D70: ='Recurring Cash Flows (All Fees)'!D70 -> 0 | E70: 0 | F70: 0 | G70: 0 | H70: =R69+SUM(D70:G70) -> 0 | I70: 0 | J70: 0 | K70: 0 | N70: =IF(Admin="On",-1*TieredValue(K70,Recurring!$C$58:$D$62)/12,0) -> 0 | Q70: 0 | R70: 0
A71: 2031-11-24 | B71: 5 | C71: 68 | D71: ='Recurring Cash Flows (All Fees)'!D71 -> 0 | E71: 0 | F71: 0 | G71: 0 | H71: 0 | I71: 0 | J71: 0 | K71: 0 | N71: =IF(Admin="On",-1*TieredValue(K71,Recurring!$C$58:$D$62)/12,0) -> 0 | Q71: 0 | R71: 0
A72: 2031-12-24 | B72: 5 | C72: 69 | D72: ='Recurring Cash Flows (All Fees)'!D72 -> 0 | E72: 0 | F72: 0 | G72: 0 | H72: 0 | I72: 0 | J72: 0 | K72: 0 | N72: =IF(Admin="On",-1*TieredValue(K72,Recurring!$C$58:$D$62)/12,0) -> 0 | Q72: 0 | R72: 0
A73: 2032-01-24 | B73: 5 | C73: 70 | D73: ='Recurring Cash Flows (All Fees)'!D73 -> 0 | E73: 0 | F73: 0 | G73: 0 | H73: 0 | I73: 0 | J73: 0 | K73: 0 | N73: =IF(Admin="On",-1*TieredValue(K73,Recurring!$C$58:$D$62)/12,0) -> 0 | Q73: 0 | R73: 0
A74: 2032-02-24 | B74: 5 | C74: 71 | D74: ='Recurring Cash Flows (All Fees)'!D74 -> 0 | E74: 0 | F74: 0 | G74: 0 | H74: 0 | I74: 0 | J74: 0 | K74: 0 | N74: =IF(Admin="On",-1*TieredValue(K74,Recurring!$C$58:$D$62)/12,0) -> 0 | Q74: 0 | R74: 0
A75: 2032-03-24 | B75: 5 | C75: 72 | D75: ='Recurring Cash Flows (All Fees)'!D75 -> 0 | E75: 0 | F75: 0 | G75: 0 | H75: 0 | I75: 0 | J75: 0 | K75: 0 | N75: =IF(Admin="On",-1*TieredValue(K75,Recurring!$C$58:$D$62)/12,0) -> 0 | Q75: 0 | R75: 0
A76: 2032-04-24 | B76: 6 | C76: 73 | D76: ='Recurring Cash Flows (All Fees)'!D76 -> 0 | E76: 0 | F76: 0 | G76: 0 | H76: 0 | I76: 0 | J76: 0 | K76: 0 | N76: =IF(Admin="On",-1*TieredValue(K76,Recurring!$C$58:$D$62)/12,0) -> 0 | Q76: 0 | R76: 0
A77: 2032-05-24 | B77: 6 | C77: 74 | D77: ='Recurring Cash Flows (All Fees)'!D77 -> 0 | E77: 0 | F77: 0 | G77: 0 | H77: 0 | I77: 0 | J77: 0 | K77: 0 | N77: =IF(Admin="On",-1*TieredValue(K77,Recurring!$C$58:$D$62)/12,0) -> 0 | Q77: 0 | R77: 0
A78: 2032-06-24 | B78: 6 | C78: 75 | D78: ='Recurring Cash Flows (All Fees)'!D78 -> 0 | E78: 0 | F78: 0 | G78: 0 | H78: 0 | I78: 0 | J78: 0 | K78: 0 | N78: =IF(Admin="On",-1*TieredValue(K78,Recurring!$C$58:$D$62)/12,0) -> 0 | Q78: 0 | R78: 0
A79: 2032-07-24 | B79: 6 | C79: 76 | D79: ='Recurring Cash Flows (All Fees)'!D79 -> 0 | E79: 0 | F79: 0 | G79: 0 | H79: 0 | I79: 0 | J79: 0 | K79: 0 | N79: =IF(Admin="On",-1*TieredValue(K79,Recurring!$C$58:$D$62)/12,0) -> 0 | Q79: 0 | R79: 0
A80: 2032-08-24 | B80: 6 | C80: 77 | D80: ='Recurring Cash Flows (All Fees)'!D80 -> 0 | E80: 0 | F80: 0 | G80: 0 | H80: 0 | I80: 0 | J80: 0 | K80: 0 | N80: =IF(Admin="On",-1*TieredValue(K80,Recurring!$C$58:$D$62)/12,0) -> 0 | Q80: 0 | R80: 0
A81: 2032-09-24 | B81: 6 | C81: 78 | D81: ='Recurring Cash Flows (All Fees)'!D81 -> 0 | E81: 0 | F81: 0 | G81: 0 | H81: 0 | I81: 0 | J81: 0 | K81: 0 | N81: =IF(Admin="On",-1*TieredValue(K81,Recurring!$C$58:$D$62)/12,0) -> 0 | Q81: 0 | R81: 0
A82: 2032-10-24 | B82: 6 | C82: 79 | D82: ='Recurring Cash Flows (All Fees)'!D82 -> 0 | E82: 0 | F82: 0 | G82: 0 | H82: 0 | I82: 0 | J82: 0 | K82: 0 | N82: =IF(Admin="On",-1*TieredValue(K82,Recurring!$C$58:$D$62)/12,0) -> 0 | Q82: 0 | R82: 0
A83: 2032-11-24 | B83: 6 | C83: 80 | D83: ='Recurring Cash Flows (All Fees)'!D83 -> 0 | E83: 0 | F83: 0 | G83: 0 | H83: 0 | I83: 0 | J83: 0 | K83: 0 | N83: =IF(Admin="On",-1*TieredValue(K83,Recurring!$C$58:$D$62)/12,0) -> 0 | Q83: 0 | R83: 0
A84: 2032-12-24 | B84: 6 | C84: 81 | D84: ='Recurring Cash Flows (All Fees)'!D84 -> 0 | E84: 0 | F84: 0 | G84: 0 | H84: 0 | I84: 0 | J84: 0 | K84: 0 | N84: =IF(Admin="On",-1*TieredValue(K84,Recurring!$C$58:$D$62)/12,0) -> 0 | Q84: 0 | R84: 0
A85: 2033-01-24 | B85: 6 | C85: 82 | D85: ='Recurring Cash Flows (All Fees)'!D85 -> 0 | E85: 0 | F85: 0 | G85: 0 | H85: 0 | I85: 0 | J85: 0 | K85: 0 | N85: =IF(Admin="On",-1*TieredValue(K85,Recurring!$C$58:$D$62)/12,0) -> 0 | Q85: 0 | R85: 0
A86: 2033-02-24 | B86: 6 | C86: 83 | D86: ='Recurring Cash Flows (All Fees)'!D86 -> 0 | E86: 0 | F86: 0 | G86: 0 | H86: 0 | I86: 0 | J86: 0 | K86: 0 | N86: =IF(Admin="On",-1*TieredValue(K86,Recurring!$C$58:$D$62)/12,0) -> 0 | Q86: 0 | R86: 0
A87: 2033-03-24 | B87: 6 | C87: 84 | D87: ='Recurring Cash Flows (All Fees)'!D87 -> 0 | E87: 0 | F87: 0 | G87: 0 | H87: 0 | I87: 0 | J87: 0 | K87: 0 | N87: =IF(Admin="On",-1*TieredValue(K87,Recurring!$C$58:$D$62)/12,0) -> 0 | Q87: 0 | R87: 0
A88: 2033-04-24 | B88: 7 | C88: 85 | D88: ='Recurring Cash Flows (All Fees)'!D88 -> 0 | E88: 0 | F88: 0 | G88: 0 | H88: 0 | I88: 0 | J88: 0 | K88: 0 | N88: =IF(Admin="On",-1*TieredValue(K88,Recurring!$C$58:$D$62)/12,0) -> 0 | Q88: 0 | R88: 0
A89: 2033-05-24 | B89: 7 | C89: 86 | D89: ='Recurring Cash Flows (All Fees)'!D89 -> 0 | E89: 0 | F89: 0 | G89: 0 | H89: 0 | I89: 0 | J89: 0 | K89: 0 | N89: =IF(Admin="On",-1*TieredValue(K89,Recurring!$C$58:$D$62)/12,0) -> 0 | Q89: 0 | R89: 0
A90: 2033-06-24 | B90: 7 | C90: 87 | D90: ='Recurring Cash Flows (All Fees)'!D90 -> 0 | E90: 0 | F90: 0 | G90: 0 | H90: 0 | I90: 0 | J90: 0 | K90: 0 | N90: =IF(Admin="On",-1*TieredValue(K90,Recurring!$C$58:$D$62)/12,0) -> 0 | Q90: 0 | R90: 0
A91: 2033-07-24 | B91: 7 | C91: 88 | D91: ='Recurring Cash Flows (All Fees)'!D91 -> 0 | E91: 0 | F91: 0 | G91: 0 | H91: 0 | I91: 0 | J91: 0 | K91: 0 | N91: =IF(Admin="On",-1*TieredValue(K91,Recurring!$C$58:$D$62)/12,0) -> 0 | Q91: 0 | R91: 0
A92: 2033-08-24 | B92: 7 | C92: 89 | D92: ='Recurring Cash Flows (All Fees)'!D92 -> 0 | E92: 0 | F92: 0 | G92: 0 | H92: 0 | I92: 0 | J92: 0 | K92: 0 | N92: =IF(Admin="On",-1*TieredValue(K92,Recurring!$C$58:$D$62)/12,0) -> 0 | Q92: 0 | R92: 0
A93: 2033-09-24 | B93: 7 | C93: 90 | D93: ='Recurring Cash Flows (All Fees)'!D93 -> 0 | E93: 0 | F93: 0 | G93: 0 | H93: 0 | I93: 0 | J93: 0 | K93: 0 | N93: =IF(Admin="On",-1*TieredValue(K93,Recurring!$C$58:$D$62)/12,0) -> 0 | Q93: 0 | R93: 0
A94: 2033-10-24 | B94: 7 | C94: 91 | D94: ='Recurring Cash Flows (All Fees)'!D94 -> 0 | E94: 0 | F94: 0 | G94: 0 | H94: 0 | I94: 0 | J94: 0 | K94: 0 | N94: =IF(Admin="On",-1*TieredValue(K94,Recurring!$C$58:$D$62)/12,0) -> 0 | Q94: 0 | R94: 0
A95: 2033-11-24 | B95: 7 | C95: 92 | D95: ='Recurring Cash Flows (All Fees)'!D95 -> 0 | E95: 0 | F95: 0 | G95: 0 | H95: 0 | I95: 0 | J95: 0 | K95: 0 | N95: =IF(Admin="On",-1*TieredValue(K95,Recurring!$C$58:$D$62)/12,0) -> 0 | Q95: 0 | R95: 0
A96: 2033-12-24 | B96: 7 | C96: 93 | D96: ='Recurring Cash Flows (All Fees)'!D96 -> 0 | E96: 0 | F96: 0 | G96: 0 | H96: 0 | I96: 0 | J96: 0 | K96: 0 | N96: =IF(Admin="On",-1*TieredValue(K96,Recurring!$C$58:$D$62)/12,0) -> 0 | Q96: 0 | R96: 0
A97: 2034-01-24 | B97: 7 | C97: 94 | D97: ='Recurring Cash Flows (All Fees)'!D97 -> 0 | E97: 0 | F97: 0 | G97: 0 | H97: 0 | I97: 0 | J97: 0 | K97: 0 | N97: =IF(Admin="On",-1*TieredValue(K97,Recurring!$C$58:$D$62)/12,0) -> 0 | Q97: 0 | R97: 0
A98: 2034-02-24 | B98: 7 | C98: 95 | D98: ='Recurring Cash Flows (All Fees)'!D98 -> 0 | E98: 0 | F98: 0 | G98: 0 | H98: 0 | I98: 0 | J98: 0 | K98: 0 | N98: =IF(Admin="On",-1*TieredValue(K98,Recurring!$C$58:$D$62)/12,0) -> 0 | Q98: 0 | R98: 0
A99: 2034-03-24 | B99: 7 | C99: 96 | D99: ='Recurring Cash Flows (All Fees)'!D99 -> 0 | E99: 0 | F99: 0 | G99: 0 | H99: 0 | I99: 0 | J99: 0 | K99: 0 | N99: =IF(Admin="On",-1*TieredValue(K99,Recurring!$C$58:$D$62)/12,0) -> 0 | Q99: 0 | R99: 0
A100: 2034-04-24 | B100: 8 | C100: 97 | D100: ='Recurring Cash Flows (All Fees)'!D100 -> 0 | E100: 0 | F100: 0 | G100: 0 | H100: 0 | I100: 0 | J100: 0 | K100: 0 | N100: =IF(Admin="On",-1*TieredValue(K100,Recurring!$C$58:$D$62)/12,0) -> 0 | Q100: 0 | R100: 0
A101: 2034-05-24 | B101: 8 | C101: 98 | D101: ='Recurring Cash Flows (All Fees)'!D101 -> 0 | E101: 0 | F101: 0 | G101: 0 | H101: 0 | I101: 0 | J101: 0 | K101: 0 | N101: =IF(Admin="On",-1*TieredValue(K101,Recurring!$C$58:$D$62)/12,0) -> 0 | Q101: 0 | R101: 0
A102: 2034-06-24 | B102: 8 | C102: 99 | D102: ='Recurring Cash Flows (All Fees)'!D102 -> 0 | E102: 0 | F102: 0 | G102: 0 | H102: 0 | I102: 0 | J102: 0 | K102: 0 | N102: =IF(Admin="On",-1*TieredValue(K102,Recurring!$C$58:$D$62)/12,0) -> 0 | Q102: 0 | R102: 0
A103: 2034-07-24 | B103: 8 | C103: 100 | D103: ='Recurring Cash Flows (All Fees)'!D103 -> 0 | E103: 0 | F103: 0 | G103: 0 | H103: 0 | I103: 0 | J103: 0 | K103: 0 | N103: =IF(Admin="On",-1*TieredValue(K103,Recurring!$C$58:$D$62)/12,0) -> 0 | Q103: 0 | R103: 0
A104: 2034-08-24 | B104: 8 | C104: 101 | D104: ='Recurring Cash Flows (All Fees)'!D104 -> 0 | E104: 0 | F104: 0 | G104: 0 | H104: 0 | I104: 0 | J104: 0 | K104: 0 | N104: =IF(Admin="On",-1*TieredValue(K104,Recurring!$C$58:$D$62)/12,0) -> 0 | Q104: 0 | R104: 0
A105: 2034-09-24 | B105: 8 | C105: 102 | D105: ='Recurring Cash Flows (All Fees)'!D105 -> 0 | E105: 0 | F105: 0 | G105: 0 | H105: 0 | I105: 0 | J105: 0 | K105: 0 | N105: =IF(Admin="On",-1*TieredValue(K105,Recurring!$C$58:$D$62)/12,0) -> 0 | Q105: 0 | R105: 0
A106: 2034-10-24 | B106: 8 | C106: 103 | D106: ='Recurring Cash Flows (All Fees)'!D106 -> 0 | E106: 0 | F106: 0 | G106: 0 | H106: 0 | I106: 0 | J106: 0 | K106: 0 | N106: =IF(Admin="On",-1*TieredValue(K106,Recurring!$C$58:$D$62)/12,0) -> 0 | Q106: 0 | R106: 0
A107: 2034-11-24 | B107: 8 | C107: 104 | D107: ='Recurring Cash Flows (All Fees)'!D107 -> 0 | E107: 0 | F107: 0 | G107: 0 | H107: 0 | I107: 0 | J107: 0 | K107: 0 | N107: =IF(Admin="On",-1*TieredValue(K107,Recurring!$C$58:$D$62)/12,0) -> 0 | Q107: 0 | R107: 0
A108: 2034-12-24 | B108: 8 | C108: 105 | D108: ='Recurring Cash Flows (All Fees)'!D108 -> 0 | E108: 0 | F108: 0 | G108: 0 | H108: 0 | I108: 0 | J108: 0 | K108: 0 | N108: =IF(Admin="On",-1*TieredValue(K108,Recurring!$C$58:$D$62)/12,0) -> 0 | Q108: 0 | R108: 0
A109: 2035-01-24 | B109: 8 | C109: 106 | D109: ='Recurring Cash Flows (All Fees)'!D109 -> 0 | E109: 0 | F109: 0 | G109: 0 | H109: 0 | I109: 0 | J109: 0 | K109: 0 | N109: =IF(Admin="On",-1*TieredValue(K109,Recurring!$C$58:$D$62)/12,0) -> 0 | Q109: 0 | R109: 0
A110: 2035-02-24 | B110: 8 | C110: 107 | D110: ='Recurring Cash Flows (All Fees)'!D110 -> 0 | E110: 0 | F110: 0 | G110: 0 | H110: 0 | I110: 0 | J110: 0 | K110: 0 | N110: =IF(Admin="On",-1*TieredValue(K110,Recurring!$C$58:$D$62)/12,0) -> 0 | Q110: 0 | R110: 0
A111: 2035-03-24 | B111: 8 | C111: 108 | D111: ='Recurring Cash Flows (All Fees)'!D111 -> 0 | E111: 0 | F111: 0 | G111: 0 | H111: 0 | I111: 0 | J111: 0 | K111: 0 | N111: =IF(Admin="On",-1*TieredValue(K111,Recurring!$C$58:$D$62)/12,0) -> 0 | Q111: 0 | R111: 0
A112: 2035-04-24 | B112: 9 | C112: 109 | D112: ='Recurring Cash Flows (All Fees)'!D112 -> 0 | E112: 0 | F112: 0 | G112: 0 | H112: 0 | I112: 0 | J112: 0 | K112: 0 | N112: =IF(Admin="On",-1*TieredValue(K112,Recurring!$C$58:$D$62)/12,0) -> 0 | Q112: 0 | R112: 0
A113: 2035-05-24 | B113: 9 | C113: 110 | D113: ='Recurring Cash Flows (All Fees)'!D113 -> 0 | E113: 0 | F113: 0 | G113: 0 | H113: 0 | I113: 0 | J113: 0 | K113: 0 | N113: =IF(Admin="On",-1*TieredValue(K113,Recurring!$C$58:$D$62)/12,0) -> 0 | Q113: 0 | R113: 0
A114: 2035-06-24 | B114: 9 | C114: 111 | D114: ='Recurring Cash Flows (All Fees)'!D114 -> 0 | E114: 0 | F114: 0 | G114: 0 | H114: 0 | I114: 0 | J114: 0 | K114: 0 | N114: =IF(Admin="On",-1*TieredValue(K114,Recurring!$C$58:$D$62)/12,0) -> 0 | Q114: 0 | R114: 0
A115: 2035-07-24 | B115: 9 | C115: 112 | D115: ='Recurring Cash Flows (All Fees)'!D115 -> 0 | E115: 0 | F115: 0 | G115: 0 | H115: 0 | I115: 0 | J115: 0 | K115: 0 | N115: =IF(Admin="On",-1*TieredValue(K115,Recurring!$C$58:$D$62)/12,0) -> 0 | Q115: 0 | R115: 0
A116: 2035-08-24 | B116: 9 | C116: 113 | D116: ='Recurring Cash Flows (All Fees)'!D116 -> 0 | E116: 0 | F116: 0 | G116: 0 | H116: 0 | I116: 0 | J116: 0 | K116: 0 | N116: =IF(Admin="On",-1*TieredValue(K116,Recurring!$C$58:$D$62)/12,0) -> 0 | Q116: 0 | R116: 0
A117: 2035-09-24 | B117: 9 | C117: 114 | D117: ='Recurring Cash Flows (All Fees)'!D117 -> 0 | E117: 0 | F117: 0 | G117: 0 | H117: 0 | I117: 0 | J117: 0 | K117: 0 | N117: =IF(Admin="On",-1*TieredValue(K117,Recurring!$C$58:$D$62)/12,0) -> 0 | Q117: 0 | R117: 0
A118: 2035-10-24 | B118: 9 | C118: 115 | D118: ='Recurring Cash Flows (All Fees)'!D118 -> 0 | E118: 0 | F118: 0 | G118: 0 | H118: 0 | I118: 0 | J118: 0 | K118: 0 | N118: =IF(Admin="On",-1*TieredValue(K118,Recurring!$C$58:$D$62)/12,0) -> 0 | Q118: 0 | R118: 0
A119: 2035-11-24 | B119: 9 | C119: 116 | D119: ='Recurring Cash Flows (All Fees)'!D119 -> 0 | E119: 0 | F119: 0 | G119: 0 | H119: 0 | I119: 0 | J119: 0 | K119: 0 | N119: =IF(Admin="On",-1*TieredValue(K119,Recurring!$C$58:$D$62)/12,0) -> 0 | Q119: 0 | R119: 0
A120: 2035-12-24 | B120: 9 | C120: 117 | D120: ='Recurring Cash Flows (All Fees)'!D120 -> 0 | E120: 0 | F120: 0 | G120: 0 | H120: 0 | I120: 0 | J120: 0 | K120: 0 | N120: =IF(Admin="On",-1*TieredValue(K120,Recurring!$C$58:$D$62)/12,0) -> 0 | Q120: 0 | R120: 0
A121: 2036-01-24 | B121: 9 | C121: 118 | D121: ='Recurring Cash Flows (All Fees)'!D121 -> 0 | E121: 0 | F121: 0 | G121: 0 | H121: 0 | I121: 0 | J121: 0 | K121: 0 | N121: =IF(Admin="On",-1*TieredValue(K121,Recurring!$C$58:$D$62)/12,0) -> 0 | Q121: 0 | R121: 0
A122: 2036-02-24 | B122: 9 | C122: 119 | D122: ='Recurring Cash Flows (All Fees)'!D122 -> 0 | E122: 0 | F122: 0 | G122: 0 | H122: 0 | I122: 0 | J122: 0 | K122: 0 | N122: =IF(Admin="On",-1*TieredValue(K122,Recurring!$C$58:$D$62)/12,0) -> 0 | Q122: 0 | R122: 0
A123: 2036-03-24 | B123: 9 | C123: 120 | D123: ='Recurring Cash Flows (All Fees)'!D123 -> 0 | E123: 0 | F123: 0 | G123: 0 | H123: 0 | I123: 0 | J123: 0 | K123: 0 | N123: =IF(Admin="On",-1*TieredValue(K123,Recurring!$C$58:$D$62)/12,0) -> 0 | Q123: 0 | R123: 0
A124: 2036-04-24 | B124: 10 | C124: 121 | D124: ='Recurring Cash Flows (All Fees)'!D124 -> 0 | E124: 0 | F124: 0 | G124: 0 | H124: 0 | I124: 0 | J124: 0 | K124: 0 | N124: =IF(Admin="On",-1*TieredValue(K124,Recurring!$C$58:$D$62)/12,0) -> 0 | Q124: 0 | R124: 0
A125: 2036-05-24 | B125: 10 | C125: 122 | D125: ='Recurring Cash Flows (All Fees)'!D125 -> 0 | E125: 0 | F125: 0 | G125: 0 | H125: 0 | I125: 0 | J125: 0 | K125: 0 | N125: =IF(Admin="On",-1*TieredValue(K125,Recurring!$C$58:$D$62)/12,0) -> 0 | Q125: 0 | R125: 0
A126: 2036-06-24 | B126: 10 | C126: 123 | D126: ='Recurring Cash Flows (All Fees)'!D126 -> 0 | E126: 0 | F126: 0 | G126: 0 | H126: 0 | I126: 0 | J126: 0 | K126: 0 | N126: =IF(Admin="On",-1*TieredValue(K126,Recurring!$C$58:$D$62)/12,0) -> 0 | Q126: 0 | R126: 0
A127: 2036-07-24 | B127: 10 | C127: 124 | D127: ='Recurring Cash Flows (All Fees)'!D127 -> 0 | E127: 0 | F127: 0 | G127: 0 | H127: 0 | I127: 0 | J127: 0 | K127: 0 | N127: =IF(Admin="On",-1*TieredValue(K127,Recurring!$C$58:$D$62)/12,0) -> 0 | Q127: 0 | R127: 0
A128: 2036-08-24 | B128: 10 | C128: 125 | D128: ='Recurring Cash Flows (All Fees)'!D128 -> 0 | E128: 0 | F128: 0 | G128: 0 | H128: 0 | I128: 0 | J128: 0 | K128: 0 | N128: =IF(Admin="On",-1*TieredValue(K128,Recurring!$C$58:$D$62)/12,0) -> 0 | Q128: 0 | R128: 0
A129: 2036-09-24 | B129: 10 | C129: 126 | D129: ='Recurring Cash Flows (All Fees)'!D129 -> 0 | E129: 0 | F129: 0 | G129: 0 | H129: 0 | I129: 0 | J129: 0 | K129: 0 | N129: =IF(Admin="On",-1*TieredValue(K129,Recurring!$C$58:$D$62)/12,0) -> 0 | Q129: 0 | R129: 0
A130: 2036-10-24 | B130: 10 | C130: 127 | D130: ='Recurring Cash Flows (All Fees)'!D130 -> 0 | E130: 0 | F130: 0 | G130: 0 | H130: 0 | I130: 0 | J130: 0 | K130: 0 | N130: =IF(Admin="On",-1*TieredValue(K130,Recurring!$C$58:$D$62)/12,0) -> 0 | Q130: 0 | R130: 0
A131: 2036-11-24 | B131: 10 | C131: 128 | D131: ='Recurring Cash Flows (All Fees)'!D131 -> 0 | E131: 0 | F131: 0 | G131: 0 | H131: 0 | I131: 0 | J131: 0 | K131: 0 | N131: =IF(Admin="On",-1*TieredValue(K131,Recurring!$C$58:$D$62)/12,0) -> 0 | Q131: 0 | R131: 0
A132: 2036-12-24 | B132: 10 | C132: 129 | D132: ='Recurring Cash Flows (All Fees)'!D132 -> 0 | E132: =IF(Advisor = "On",-1*E$2*$D132,0) -> 0 | F132: =IF(Admin = "On",-1*F$2*$D132,0) -> 0 | G132: =IF(Fund = "On",-1*G$2*$D132,0) -> 0 | H132: 0 | I132: 0 | J132: =IF(Fund="On",-1*$J$2*I132/12,0) -> 0 | K132: 0 | N132: =IF(Admin="On",-1*TieredValue(K132,Recurring!$C$58:$D$62)/12,0) -> 0 | Q132: =IF(Advisor = "On",-1*Q$2*$K132/12,0) -> 0 | R132: 0
A133: 2037-01-24 | B133: =ROUNDDOWN((C133-1)/12,0) -> 10 | C133: 130 | D133: ='Recurring Cash Flows (All Fees)'!D133 -> 0 | E133: 0 | F133: 0 | G133: 0 | H133: 0 | I133: =H133*(1+$I$2)^(YEARFRAC(A133,A134,3)) -> 0 | J133: 0 | K133: =SUM(I133:J133) -> 0 | N133: =IF(Admin="On",-1*TieredValue(K133,Recurring!$C$58:$D$62)/12,0) -> 0 | Q133: 0 | R133: =SUM(K133,N133:Q133) -> 0
A134: =DATE(YEAR(A133+1),MONTH(A133+1)+1,DAY(A133+1))-1 -> 2037-02-24 | B134: 10 | C134: 131 | D134: ='Recurring Cash Flows (All Fees)'!D134 -> 0 | E134: 0 | F134: 0 | G134: 0 | H134: =R133+SUM(D134:G134) -> 0 | I134: 0 | J134: 0 | K134: 0 | N134: =IF(Admin="On",-1*TieredValue(K134,Recurring!$C$58:$D$62)/12,0) -> 0 | Q134: 0 | R134: 0
A135: 2037-03-24 | B135: 10 | C135: 132 | D135: ='Recurring Cash Flows (All Fees)'!D135 -> 0 | E135: 0 | F135: 0 | G135: 0 | H135: 0 | I135: 0 | J135: 0 | K135: 0 | N135: =IF(Admin="On",-1*TieredValue(K135,Recurring!$C$58:$D$62)/12,0) -> 0 | Q135: 0 | R135: 0
A136: 2037-04-24 | B136: 11 | C136: 133 | D136: ='Recurring Cash Flows (All Fees)'!D136 -> 0 | E136: 0 | F136: 0 | G136: 0 | H136: 0 | I136: 0 | J136: 0 | K136: 0 | N136: =IF(Admin="On",-1*TieredValue(K136,Recurring!$C$58:$D$62)/12,0) -> 0 | Q136: 0 | R136: 0
A137: 2037-05-24 | B137: 11 | C137: 134 | D137: ='Recurring Cash Flows (All Fees)'!D137 -> 0 | E137: 0 | F137: 0 | G137: 0 | H137: 0 | I137: 0 | J137: 0 | K137: 0 | N137: =IF(Admin="On",-1*TieredValue(K137,Recurring!$C$58:$D$62)/12,0) -> 0 | Q137: 0 | R137: 0
A138: 2037-06-24 | B138: 11 | C138: 135 | D138: ='Recurring Cash Flows (All Fees)'!D138 -> 0 | E138: 0 | F138: 0 | G138: 0 | H138: 0 | I138: 0 | J138: 0 | K138: 0 | N138: =IF(Admin="On",-1*TieredValue(K138,Recurring!$C$58:$D$62)/12,0) -> 0 | Q138: 0 | R138: 0
A139: 2037-07-24 | B139: 11 | C139: 136 | D139: ='Recurring Cash Flows (All Fees)'!D139 -> 0 | E139: 0 | F139: 0 | G139: 0 | H139: 0 | I139: 0 | J139: 0 | K139: 0 | N139: =IF(Admin="On",-1*TieredValue(K139,Recurring!$C$58:$D$62)/12,0) -> 0 | Q139: 0 | R139: 0
A140: 2037-08-24 | B140: 11 | C140: 137 | D140: ='Recurring Cash Flows (All Fees)'!D140 -> 0 | E140: 0 | F140: 0 | G140: 0 | H140: 0 | I140: 0 | J140: 0 | K140: 0 | N140: =IF(Admin="On",-1*TieredValue(K140,Recurring!$C$58:$D$62)/12,0) -> 0 | Q140: 0 | R140: 0
A141: 2037-09-24 | B141: 11 | C141: 138 | D141: ='Recurring Cash Flows (All Fees)'!D141 -> 0 | E141: 0 | F141: 0 | G141: 0 | H141: 0 | I141: 0 | J141: 0 | K141: 0 | N141: =IF(Admin="On",-1*TieredValue(K141,Recurring!$C$58:$D$62)/12,0) -> 0 | Q141: 0 | R141: 0
A142: 2037-10-24 | B142: 11 | C142: 139 | D142: ='Recurring Cash Flows (All Fees)'!D142 -> 0 | E142: 0 | F142: 0 | G142: 0 | H142: 0 | I142: 0 | J142: 0 | K142: 0 | N142: =IF(Admin="On",-1*TieredValue(K142,Recurring!$C$58:$D$62)/12,0) -> 0 | Q142: 0 | R142: 0
A143: 2037-11-24 | B143: 11 | C143: 140 | D143: ='Recurring Cash Flows (All Fees)'!D143 -> 0 | E143: 0 | F143: 0 | G143: 0 | H143: 0 | I143: 0 | J143: 0 | K143: 0 | N143: =IF(Admin="On",-1*TieredValue(K143,Recurring!$C$58:$D$62)/12,0) -> 0 | Q143: 0 | R143: 0
A144: 2037-12-24 | B144: 11 | C144: 141 | D144: ='Recurring Cash Flows (All Fees)'!D144 -> 0 | E144: 0 | F144: 0 | G144: 0 | H144: 0 | I144: 0 | J144: 0 | K144: 0 | N144: =IF(Admin="On",-1*TieredValue(K144,Recurring!$C$58:$D$62)/12,0) -> 0 | Q144: 0 | R144: 0
A145: 2038-01-24 | B145: 11 | C145: 142 | D145: ='Recurring Cash Flows (All Fees)'!D145 -> 0 | E145: 0 | F145: 0 | G145: 0 | H145: 0 | I145: 0 | J145: 0 | K145: 0 | N145: =IF(Admin="On",-1*TieredValue(K145,Recurring!$C$58:$D$62)/12,0) -> 0 | Q145: 0 | R145: 0
A146: 2038-02-24 | B146: 11 | C146: 143 | D146: ='Recurring Cash Flows (All Fees)'!D146 -> 0 | E146: 0 | F146: 0 | G146: 0 | H146: 0 | I146: 0 | J146: 0 | K146: 0 | N146: =IF(Admin="On",-1*TieredValue(K146,Recurring!$C$58:$D$62)/12,0) -> 0 | Q146: 0 | R146: 0
A147: 2038-03-24 | B147: 11 | C147: 144 | D147: ='Recurring Cash Flows (All Fees)'!D147 -> 0 | E147: 0 | F147: 0 | G147: 0 | H147: 0 | I147: 0 | J147: 0 | K147: 0 | N147: =IF(Admin="On",-1*TieredValue(K147,Recurring!$C$58:$D$62)/12,0) -> 0 | Q147: 0 | R147: 0
A148: 2038-04-24 | B148: 12 | C148: 145 | D148: ='Recurring Cash Flows (All Fees)'!D148 -> 0 | E148: 0 | F148: 0 | G148: 0 | H148: 0 | I148: 0 | J148: 0 | K148: 0 | N148: =IF(Admin="On",-1*TieredValue(K148,Recurring!$C$58:$D$62)/12,0) -> 0 | Q148: 0 | R148: 0
A149: 2038-05-24 | B149: 12 | C149: 146 | D149: ='Recurring Cash Flows (All Fees)'!D149 -> 0 | E149: 0 | F149: 0 | G149: 0 | H149: 0 | I149: 0 | J149: 0 | K149: 0 | N149: =IF(Admin="On",-1*TieredValue(K149,Recurring!$C$58:$D$62)/12,0) -> 0 | Q149: 0 | R149: 0
A150: 2038-06-24 | B150: 12 | C150: 147 | D150: ='Recurring Cash Flows (All Fees)'!D150 -> 0 | E150: 0 | F150: 0 | G150: 0 | H150: 0 | I150: 0 | J150: 0 | K150: 0 | N150: =IF(Admin="On",-1*TieredValue(K150,Recurring!$C$58:$D$62)/12,0) -> 0 | Q150: 0 | R150: 0
A151: 2038-07-24 | B151: 12 | C151: 148 | D151: ='Recurring Cash Flows (All Fees)'!D151 -> 0 | E151: 0 | F151: 0 | G151: 0 | H151: 0 | I151: 0 | J151: 0 | K151: 0 | N151: =IF(Admin="On",-1*TieredValue(K151,Recurring!$C$58:$D$62)/12,0) -> 0 | Q151: 0 | R151: 0
A152: 2038-08-24 | B152: 12 | C152: 149 | D152: ='Recurring Cash Flows (All Fees)'!D152 -> 0 | E152: 0 | F152: 0 | G152: 0 | H152: 0 | I152: 0 | J152: 0 | K152: 0 | N152: =IF(Admin="On",-1*TieredValue(K152,Recurring!$C$58:$D$62)/12,0) -> 0 | Q152: 0 | R152: 0
A153: 2038-09-24 | B153: 12 | C153: 150 | D153: ='Recurring Cash Flows (All Fees)'!D153 -> 0 | E153: 0 | F153: 0 | G153: 0 | H153: 0 | I153: 0 | J153: 0 | K153: 0 | N153: =IF(Admin="On",-1*TieredValue(K153,Recurring!$C$58:$D$62)/12,0) -> 0 | Q153: 0 | R153: 0
A154: 2038-10-24 | B154: 12 | C154: 151 | D154: ='Recurring Cash Flows (All Fees)'!D154 -> 0 | E154: 0 | F154: 0 | G154: 0 | H154: 0 | I154: 0 | J154: 0 | K154: 0 | N154: =IF(Admin="On",-1*TieredValue(K154,Recurring!$C$58:$D$62)/12,0) -> 0 | Q154: 0 | R154: 0
A155: 2038-11-24 | B155: 12 | C155: 152 | D155: ='Recurring Cash Flows (All Fees)'!D155 -> 0 | E155: 0 | F155: 0 | G155: 0 | H155: 0 | I155: 0 | J155: 0 | K155: 0 | N155: =IF(Admin="On",-1*TieredValue(K155,Recurring!$C$58:$D$62)/12,0) -> 0 | Q155: 0 | R155: 0
A156: 2038-12-24 | B156: 12 | C156: 153 | D156: ='Recurring Cash Flows (All Fees)'!D156 -> 0 | E156: 0 | F156: 0 | G156: 0 | H156: 0 | I156: 0 | J156: 0 | K156: 0 | N156: =IF(Admin="On",-1*TieredValue(K156,Recurring!$C$58:$D$62)/12,0) -> 0 | Q156: 0 | R156: 0
A157: 2039-01-24 | B157: 12 | C157: 154 | D157: ='Recurring Cash Flows (All Fees)'!D157 -> 0 | E157: 0 | F157: 0 | G157: 0 | H157: 0 | I157: 0 | J157: 0 | K157: 0 | N157: =IF(Admin="On",-1*TieredValue(K157,Recurring!$C$58:$D$62)/12,0) -> 0 | Q157: 0 | R157: 0
A158: 2039-02-24 | B158: 12 | C158: 155 | D158: ='Recurring Cash Flows (All Fees)'!D158 -> 0 | E158: 0 | F158: 0 | G158: 0 | H158: 0 | I158: 0 | J158: 0 | K158: 0 | N158: =IF(Admin="On",-1*TieredValue(K158,Recurring!$C$58:$D$62)/12,0) -> 0 | Q158: 0 | R158: 0
A159: 2039-03-24 | B159: 12 | C159: 156 | D159: ='Recurring Cash Flows (All Fees)'!D159 -> 0 | E159: 0 | F159: 0 | G159: 0 | H159: 0 | I159: 0 | J159: 0 | K159: 0 | N159: =IF(Admin="On",-1*TieredValue(K159,Recurring!$C$58:$D$62)/12,0) -> 0 | Q159: 0 | R159: 0
A160: 2039-04-24 | B160: 13 | C160: 157 | D160: ='Recurring Cash Flows (All Fees)'!D160 -> 0 | E160: 0 | F160: 0 | G160: 0 | H160: 0 | I160: 0 | J160: 0 | K160: 0 | N160: =IF(Admin="On",-1*TieredValue(K160,Recurring!$C$58:$D$62)/12,0) -> 0 | Q160: 0 | R160: 0
A161: 2039-05-24 | B161: 13 | C161: 158 | D161: ='Recurring Cash Flows (All Fees)'!D161 -> 0 | E161: 0 | F161: 0 | G161: 0 | H161: 0 | I161: 0 | J161: 0 | K161: 0 | N161: =IF(Admin="On",-1*TieredValue(K161,Recurring!$C$58:$D$62)/12,0) -> 0 | Q161: 0 | R161: 0
A162: 2039-06-24 | B162: 13 | C162: 159 | D162: ='Recurring Cash Flows (All Fees)'!D162 -> 0 | E162: 0 | F162: 0 | G162: 0 | H162: 0 | I162: 0 | J162: 0 | K162: 0 | N162: =IF(Admin="On",-1*TieredValue(K162,Recurring!$C$58:$D$62)/12,0) -> 0 | Q162: 0 | R162: 0
A163: 2039-07-24 | B163: 13 | C163: 160 | D163: ='Recurring Cash Flows (All Fees)'!D163 -> 0 | E163: 0 | F163: 0 | G163: 0 | H163: 0 | I163: 0 | J163: 0 | K163: 0 | N163: =IF(Admin="On",-1*TieredValue(K163,Recurring!$C$58:$D$62)/12,0) -> 0 | Q163: 0 | R163: 0
A164: 2039-08-24 | B164: 13 | C164: 161 | D164: ='Recurring Cash Flows (All Fees)'!D164 -> 0 | E164: 0 | F164: 0 | G164: 0 | H164: 0 | I164: 0 | J164: 0 | K164: 0 | N164: =IF(Admin="On",-1*TieredValue(K164,Recurring!$C$58:$D$62)/12,0) -> 0 | Q164: 0 | R164: 0
A165: 2039-09-24 | B165: 13 | C165: 162 | D165: ='Recurring Cash Flows (All Fees)'!D165 -> 0 | E165: 0 | F165: 0 | G165: 0 | H165: 0 | I165: 0 | J165: 0 | K165: 0 | N165: =IF(Admin="On",-1*TieredValue(K165,Recurring!$C$58:$D$62)/12,0) -> 0 | Q165: 0 | R165: 0
A166: 2039-10-24 | B166: 13 | C166: 163 | D166: ='Recurring Cash Flows (All Fees)'!D166 -> 0 | E166: 0 | F166: 0 | G166: 0 | H166: 0 | I166: 0 | J166: 0 | K166: 0 | N166: =IF(Admin="On",-1*TieredValue(K166,Recurring!$C$58:$D$62)/12,0) -> 0 | Q166: 0 | R166: 0
A167: 2039-11-24 | B167: 13 | C167: 164 | D167: ='Recurring Cash Flows (All Fees)'!D167 -> 0 | E167: 0 | F167: 0 | G167: 0 | H167: 0 | I167: 0 | J167: 0 | K167: 0 | N167: =IF(Admin="On",-1*TieredValue(K167,Recurring!$C$58:$D$62)/12,0) -> 0 | Q167: 0 | R167: 0
A168: 2039-12-24 | B168: 13 | C168: 165 | D168: ='Recurring Cash Flows (All Fees)'!D168 -> 0 | E168: 0 | F168: 0 | G168: 0 | H168: 0 | I168: 0 | J168: 0 | K168: 0 | N168: =IF(Admin="On",-1*TieredValue(K168,Recurring!$C$58:$D$62)/12,0) -> 0 | Q168: 0 | R168: 0
A169: 2040-01-24 | B169: 13 | C169: 166 | D169: ='Recurring Cash Flows (All Fees)'!D169 -> 0 | E169: 0 | F169: 0 | G169: 0 | H169: 0 | I169: 0 | J169: 0 | K169: 0 | N169: =IF(Admin="On",-1*TieredValue(K169,Recurring!$C$58:$D$62)/12,0) -> 0 | Q169: 0 | R169: 0
A170: 2040-02-24 | B170: 13 | C170: 167 | D170: ='Recurring Cash Flows (All Fees)'!D170 -> 0 | E170: 0 | F170: 0 | G170: 0 | H170: 0 | I170: 0 | J170: 0 | K170: 0 | N170: =IF(Admin="On",-1*TieredValue(K170,Recurring!$C$58:$D$62)/12,0) -> 0 | Q170: 0 | R170: 0
A171: 2040-03-24 | B171: 13 | C171: 168 | D171: ='Recurring Cash Flows (All Fees)'!D171 -> 0 | E171: 0 | F171: 0 | G171: 0 | H171: 0 | I171: 0 | J171: 0 | K171: 0 | N171: =IF(Admin="On",-1*TieredValue(K171,Recurring!$C$58:$D$62)/12,0) -> 0 | Q171: 0 | R171: 0
A172: 2040-04-24 | B172: 14 | C172: 169 | D172: ='Recurring Cash Flows (All Fees)'!D172 -> 0 | E172: 0 | F172: 0 | G172: 0 | H172: 0 | I172: 0 | J172: 0 | K172: 0 | N172: =IF(Admin="On",-1*TieredValue(K172,Recurring!$C$58:$D$62)/12,0) -> 0 | Q172: 0 | R172: 0
A173: 2040-05-24 | B173: 14 | C173: 170 | D173: ='Recurring Cash Flows (All Fees)'!D173 -> 0 | E173: 0 | F173: 0 | G173: 0 | H173: 0 | I173: 0 | J173: 0 | K173: 0 | N173: =IF(Admin="On",-1*TieredValue(K173,Recurring!$C$58:$D$62)/12,0) -> 0 | Q173: 0 | R173: 0
A174: 2040-06-24 | B174: 14 | C174: 171 | D174: ='Recurring Cash Flows (All Fees)'!D174 -> 0 | E174: 0 | F174: 0 | G174: 0 | H174: 0 | I174: 0 | J174: 0 | K174: 0 | N174: =IF(Admin="On",-1*TieredValue(K174,Recurring!$C$58:$D$62)/12,0) -> 0 | Q174: 0 | R174: 0
A175: 2040-07-24 | B175: 14 | C175: 172 | D175: ='Recurring Cash Flows (All Fees)'!D175 -> 0 | E175: 0 | F175: 0 | G175: 0 | H175: 0 | I175: 0 | J175: 0 | K175: 0 | N175: =IF(Admin="On",-1*TieredValue(K175,Recurring!$C$58:$D$62)/12,0) -> 0 | Q175: 0 | R175: 0
A176: 2040-08-24 | B176: 14 | C176: 173 | D176: ='Recurring Cash Flows (All Fees)'!D176 -> 0 | E176: 0 | F176: 0 | G176: 0 | H176: 0 | I176: 0 | J176: 0 | K176: 0 | N176: =IF(Admin="On",-1*TieredValue(K176,Recurring!$C$58:$D$62)/12,0) -> 0 | Q176: 0 | R176: 0
A177: 2040-09-24 | B177: 14 | C177: 174 | D177: ='Recurring Cash Flows (All Fees)'!D177 -> 0 | E177: 0 | F177: 0 | G177: 0 | H177: 0 | I177: 0 | J177: 0 | K177: 0 | N177: =IF(Admin="On",-1*TieredValue(K177,Recurring!$C$58:$D$62)/12,0) -> 0 | Q177: 0 | R177: 0
A178: 2040-10-24 | B178: 14 | C178: 175 | D178: ='Recurring Cash Flows (All Fees)'!D178 -> 0 | E178: 0 | F178: 0 | G178: 0 | H178: 0 | I178: 0 | J178: 0 | K178: 0 | N178: =IF(Admin="On",-1*TieredValue(K178,Recurring!$C$58:$D$62)/12,0) -> 0 | Q178: 0 | R178: 0
A179: 2040-11-24 | B179: 14 | C179: 176 | D179: ='Recurring Cash Flows (All Fees)'!D179 -> 0 | E179: 0 | F179: 0 | G179: 0 | H179: 0 | I179: 0 | J179: 0 | K179: 0 | N179: =IF(Admin="On",-1*TieredValue(K179,Recurring!$C$58:$D$62)/12,0) -> 0 | Q179: 0 | R179: 0
A180: 2040-12-24 | B180: 14 | C180: 177 | D180: ='Recurring Cash Flows (All Fees)'!D180 -> 0 | E180: 0 | F180: 0 | G180: 0 | H180: 0 | I180: 0 | J180: 0 | K180: 0 | N180: =IF(Admin="On",-1*TieredValue(K180,Recurring!$C$58:$D$62)/12,0) -> 0 | Q180: 0 | R180: 0
A181: 2041-01-24 | B181: 14 | C181: 178 | D181: ='Recurring Cash Flows (All Fees)'!D181 -> 0 | E181: 0 | F181: 0 | G181: 0 | H181: 0 | I181: 0 | J181: 0 | K181: 0 | N181: =IF(Admin="On",-1*TieredValue(K181,Recurring!$C$58:$D$62)/12,0) -> 0 | Q181: 0 | R181: 0
A182: 2041-02-24 | B182: 14 | C182: 179 | D182: ='Recurring Cash Flows (All Fees)'!D182 -> 0 | E182: 0 | F182: 0 | G182: 0 | H182: 0 | I182: 0 | J182: 0 | K182: 0 | N182: =IF(Admin="On",-1*TieredValue(K182,Recurring!$C$58:$D$62)/12,0) -> 0 | Q182: 0 | R182: 0
A183: 2041-03-24 | B183: 14 | C183: 180 | D183: ='Recurring Cash Flows (All Fees)'!D183 -> 0 | E183: 0 | F183: 0 | G183: 0 | H183: 0 | I183: 0 | J183: 0 | K183: 0 | N183: =IF(Admin="On",-1*TieredValue(K183,Recurring!$C$58:$D$62)/12,0) -> 0 | Q183: 0 | R183: 0
A184: 2041-04-24 | B184: 15 | C184: 181 | D184: ='Recurring Cash Flows (All Fees)'!D184 -> 0 | E184: 0 | F184: 0 | G184: 0 | H184: 0 | I184: 0 | J184: 0 | K184: 0 | N184: =IF(Admin="On",-1*TieredValue(K184,Recurring!$C$58:$D$62)/12,0) -> 0 | Q184: 0 | R184: 0
A185: 2041-05-24 | B185: 15 | C185: 182 | D185: ='Recurring Cash Flows (All Fees)'!D185 -> 0 | E185: 0 | F185: 0 | G185: 0 | H185: 0 | I185: 0 | J185: 0 | K185: 0 | N185: =IF(Admin="On",-1*TieredValue(K185,Recurring!$C$58:$D$62)/12,0) -> 0 | Q185: 0 | R185: 0
A186: 2041-06-24 | B186: 15 | C186: 183 | D186: ='Recurring Cash Flows (All Fees)'!D186 -> 0 | E186: 0 | F186: 0 | G186: 0 | H186: 0 | I186: 0 | J186: 0 | K186: 0 | N186: =IF(Admin="On",-1*TieredValue(K186,Recurring!$C$58:$D$62)/12,0) -> 0 | Q186: 0 | R186: 0
A187: 2041-07-24 | B187: 15 | C187: 184 | D187: ='Recurring Cash Flows (All Fees)'!D187 -> 0 | E187: 0 | F187: 0 | G187: 0 | H187: 0 | I187: 0 | J187: 0 | K187: 0 | N187: =IF(Admin="On",-1*TieredValue(K187,Recurring!$C$58:$D$62)/12,0) -> 0 | Q187: 0 | R187: 0
A188: 2041-08-24 | B188: 15 | C188: 185 | D188: ='Recurring Cash Flows (All Fees)'!D188 -> 0 | E188: 0 | F188: 0 | G188: 0 | H188: 0 | I188: 0 | J188: 0 | K188: 0 | N188: =IF(Admin="On",-1*TieredValue(K188,Recurring!$C$58:$D$62)/12,0) -> 0 | Q188: 0 | R188: 0
A189: 2041-09-24 | B189: 15 | C189: 186 | D189: ='Recurring Cash Flows (All Fees)'!D189 -> 0 | E189: 0 | F189: 0 | G189: 0 | H189: 0 | I189: 0 | J189: 0 | K189: 0 | N189: =IF(Admin="On",-1*TieredValue(K189,Recurring!$C$58:$D$62)/12,0) -> 0 | Q189: 0 | R189: 0
A190: 2041-10-24 | B190: 15 | C190: 187 | D190: ='Recurring Cash Flows (All Fees)'!D190 -> 0 | E190: 0 | F190: 0 | G190: 0 | H190: 0 | I190: 0 | J190: 0 | K190: 0 | N190: =IF(Admin="On",-1*TieredValue(K190,Recurring!$C$58:$D$62)/12,0) -> 0 | Q190: 0 | R190: 0
A191: 2041-11-24 | B191: 15 | C191: 188 | D191: ='Recurring Cash Flows (All Fees)'!D191 -> 0 | E191: 0 | F191: 0 | G191: 0 | H191: 0 | I191: 0 | J191: 0 | K191: 0 | N191: =IF(Admin="On",-1*TieredValue(K191,Recurring!$C$58:$D$62)/12,0) -> 0 | Q191: 0 | R191: 0
A192: 2041-12-24 | B192: 15 | C192: 189 | D192: ='Recurring Cash Flows (All Fees)'!D192 -> 0 | E192: 0 | F192: 0 | G192: 0 | H192: 0 | I192: 0 | J192: 0 | K192: 0 | N192: =IF(Admin="On",-1*TieredValue(K192,Recurring!$C$58:$D$62)/12,0) -> 0 | Q192: 0 | R192: 0
A193: 2042-01-24 | B193: 15 | C193: 190 | D193: ='Recurring Cash Flows (All Fees)'!D193 -> 0 | E193: 0 | F193: 0 | G193: 0 | H193: 0 | I193: 0 | J193: 0 | K193: 0 | N193: =IF(Admin="On",-1*TieredValue(K193,Recurring!$C$58:$D$62)/12,0) -> 0 | Q193: 0 | R193: 0
A194: 2042-02-24 | B194: 15 | C194: 191 | D194: ='Recurring Cash Flows (All Fees)'!D194 -> 0 | E194: 0 | F194: 0 | G194: 0 | H194: 0 | I194: 0 | J194: 0 | K194: 0 | N194: =IF(Admin="On",-1*TieredValue(K194,Recurring!$C$58:$D$62)/12,0) -> 0 | Q194: 0 | R194: 0
A195: 2042-03-24 | B195: 15 | C195: 192 | D195: ='Recurring Cash Flows (All Fees)'!D195 -> 0 | E195: 0 | F195: 0 | G195: 0 | H195: 0 | I195: 0 | J195: 0 | K195: 0 | N195: =IF(Admin="On",-1*TieredValue(K195,Recurring!$C$58:$D$62)/12,0) -> 0 | Q195: 0 | R195: 0
A196: 2042-04-24 | B196: 16 | C196: 193 | D196: ='Recurring Cash Flows (All Fees)'!D196 -> 0 | E196: =IF(Advisor = "On",-1*E$2*$D196,0) -> 0 | F196: =IF(Admin = "On",-1*F$2*$D196,0) -> 0 | G196: =IF(Fund = "On",-1*G$2*$D196,0) -> 0 | H196: 0 | I196: 0 | J196: =IF(Fund="On",-1*$J$2*I196/12,0) -> 0 | K196: 0 | N196: =IF(Admin="On",-1*TieredValue(K196,Recurring!$C$58:$D$62)/12,0) -> 0 | Q196: =IF(Advisor = "On",-1*Q$2*$K196/12,0) -> 0 | R196: 0
A197: 2042-05-24 | B197: =ROUNDDOWN((C197-1)/12,0) -> 16 | C197: 194 | D197: ='Recurring Cash Flows (All Fees)'!D197 -> 0 | E197: 0 | F197: 0 | G197: 0 | H197: 0 | I197: =H197*(1+$I$2)^(YEARFRAC(A197,A198,3)) -> 0 | J197: 0 | K197: =SUM(I197:J197) -> 0 | N197: =IF(Admin="On",-1*TieredValue(K197,Recurring!$C$58:$D$62)/12,0) -> 0 | Q197: 0 | R197: =SUM(K197,N197:Q197) -> 0
A198: =DATE(YEAR(A197+1),MONTH(A197+1)+1,DAY(A197+1))-1 -> 2042-06-24 | B198: 16 | C198: 195 | D198: ='Recurring Cash Flows (All Fees)'!D198 -> 0 | E198: 0 | F198: 0 | G198: 0 | H198: =R197+SUM(D198:G198) -> 0 | I198: 0 | J198: 0 | K198: 0 | N198: =IF(Admin="On",-1*TieredValue(K198,Recurring!$C$58:$D$62)/12,0) -> 0 | Q198: 0 | R198: 0
A199: 2042-07-24 | B199: 16 | C199: 196 | D199: ='Recurring Cash Flows (All Fees)'!D199 -> 0 | E199: 0 | F199: 0 | G199: 0 | H199: 0 | I199: 0 | J199: 0 | K199: 0 | N199: =IF(Admin="On",-1*TieredValue(K199,Recurring!$C$58:$D$62)/12,0) -> 0 | Q199: 0 | R199: 0
A200: 2042-08-24 | B200: 16 | C200: 197 | D200: ='Recurring Cash Flows (All Fees)'!D200 -> 0 | E200: 0 | F200: 0 | G200: 0 | H200: 0 | I200: 0 | J200: 0 | K200: 0 | N200: =IF(Admin="On",-1*TieredValue(K200,Recurring!$C$58:$D$62)/12,0) -> 0 | Q200: 0 | R200: 0
... 164 more rows
